Service Heads (T),Executive (T),Director (T),Service Managers (T),Cost centre,Cost centre (T),Account,Account (T),Transaction number,Transaction Date,Period,Amount,Customer/supplier ID,Customer/supplier Name
AD Regulated Provision,Revenue Budgets,Childrens Services,CS Commissioning Service,A0492,Agency Fostercare,A56000,Other Establishments,30139471,30/04/2023,202305,"3,734.10",149498,Compass Fostering London Ltd
AD Regulated Provision,Revenue Budgets,Childrens Services,Children in Care Disability,A0509,Unaccomp Childr Asylum Seekers,A44050,Translating & Interpreter Services,30141534,30/04/2023,202305,685.42,148993,Clear Voice Interpreting Services
AD Regulated Provision,Revenue Budgets,Childrens Services,CS Commissioning Service,A0492,Agency Fostercare,A56000,Other Establishments,30140297,01/05/2023,202305,"3,321.96",144562,Unity Foster Care Ltd
AD Regulated Provision,Revenue Budgets,Childrens Services,Children in Care Disability,A0515,Childrens Disability Team,A56000,Other Establishments,30138522,09/05/2023,202305,349,1005886,Carebase
AD Regulated Provision,Revenue Budgets,Childrens Services,CS Commissioning Service,A1789,Childrens Serv Supp Housing,A56000,Other Establishments,30137245,18/05/2023,202305,734.84,1000106,Gravity Red Inspires
AD Regulated Provision,Revenue Budgets,Childrens Services,CS Commissioning Service,A0492,Agency Fostercare,A56000,Other Establishments,30138128,31/05/2023,202305,"3,451.07",112225,The National Fostering Agency
AD Regulated Provision,Revenue Budgets,Childrens Services,CS Commissioning Service,A0273,Agency Placement,A56000,Other Establishments,30139675,31/05/2023,202305,"30,594.58",1002458,Witherslack Group Limited
AD Regulated Provision,Revenue Budgets,Childrens Services,CS Residential Homes,A1718,REDACTED PERSONAL INFORMATION,A11005,Agency Supply Staff,30135657,05/06/2023,202305,"5,516.00",1000106,Gravity Red Inspires
AD Regulated Provision,Revenue Budgets,Childrens Services,Children in Care Disability,A0517,Direct Payments Scheme,A56000,Other Establishments,30139227,27/06/2023,202305,"1,823.54",1002181,Velox Healthcare
AD Regulated Provision,Revenue Budgets,Childrens Services,CS Residential Homes,A1718,REDACTED PERSONAL INFORMATION,A16015,Staff Training Expenses,30135494,30/06/2023,202305,"4,420.00",1006007,Crisp and Crane Consultancy Limited
AD Regulated Provision,Revenue Budgets,Childrens Services,CS Commissioning Service,A1767,Looked After Chld Travel Costs,A33005,Public Transport - Non Staff,30137184,30/06/2023,202305,250.99,100546,Links Taxis
AD Regulated Provision,Revenue Budgets,Childrens Services,CS Commissioning Service,A1767,Looked After Chld Travel Costs,A33005,Public Transport - Non Staff,30137184,30/06/2023,202305,"5,147.30",100546,Links Taxis
AD Regulated Provision,Revenue Budgets,Childrens Services,Fostering and Adoption,A1603,Adoption Support Fund,A49105,Other Supplies & Services,30137428,30/06/2023,202305,"1,260.00",1001758,Oakdale Therapies Ltd
AD Regulated Provision,Revenue Budgets,Childrens Services,CS Commissioning Service,A0273,Agency Placement,A56000,Other Establishments,30139678,30/06/2023,202305,"30,594.58",1002458,Witherslack Group Limited
AD Regulated Provision,Revenue Budgets,Childrens Services,CS Commissioning Service,A0492,Agency Fostercare,A56000,Other Establishments,30135792,01/07/2023,202305,-544,128418,Nexus Fostering Ltd
AD Regulated Provision,Revenue Budgets,Childrens Services,CS Commissioning Service,A0492,Agency Fostercare,A56000,Other Establishments,30135803,01/07/2023,202305,-544,128418,Nexus Fostering Ltd
AD Regulated Provision,Revenue Budgets,Childrens Services,CS Commissioning Service,A1789,Childrens Serv Supp Housing,A56000,Other Establishments,30140235,01/07/2023,202305,"14,101.58",1000106,Gravity Red Inspires
AD Regulated Provision,Revenue Budgets,Childrens Services,CS Residential Homes,A0500,REDACTED PERSONAL INFORMATION,A56000,Other Establishments,30139114,03/07/2023,202305,"3,120.00",101836,Ofsted
AD Regulated Provision,Revenue Budgets,Childrens Services,Children in Care Disability,A0511,Care Leavers Allowances,A61163,Driving Lessons,30138725,05/07/2023,202305,594,1005601,Anderby Driving Centre Ltd
AD Regulated Provision,Revenue Budgets,Childrens Services,CS Residential Homes,A0500,REDACTED PERSONAL INFORMATION,A40920,Purchase of Equipment,30139622,05/07/2023,202305,337.28,PETTY CASH,PETTY CASH
AD Regulated Provision,Revenue Budgets,Childrens Services,CS Residential Homes,A0504,REDACTED PERSONAL INFORMATION,A44030,Provisions,30139622,05/07/2023,202305,395.43,PETTY CASH,PETTY CASH
AD Regulated Provision,Revenue Budgets,Childrens Services,CS Commissioning Service,A0492,Agency Fostercare,A56000,Other Establishments,30141039,05/07/2023,202305,890.8,1007402,Ivy House Fostering Agency
AD Regulated Provision,Revenue Budgets,Childrens Services,Children in Care Disability,A0515,Childrens Disability Team,A11005,Agency Supply Staff,30139302,07/07/2023,202305,"2,287.22",129224,Paradigm Professional Consultancy Ltd
AD Regulated Provision,Revenue Budgets,Childrens Services,CS Commissioning Service,A0492,Agency Fostercare,A56000,Other Establishments,30141175,10/07/2023,202305,"3,919.52",1007402,Ivy House Fostering Agency
AD Regulated Provision,Revenue Budgets,Childrens Services,CS Commissioning Service,A0492,Agency Fostercare,A56000,Other Establishments,30141183,10/07/2023,202305,"3,919.52",1007402,Ivy House Fostering Agency
AD Regulated Provision,Revenue Budgets,Childrens Services,Children in Care Disability,A0517,Direct Payments Scheme,A56000,Other Establishments,30139228,11/07/2023,202305,"1,729.00",1002181,Velox Healthcare
AD Regulated Provision,Revenue Budgets,Childrens Services,Children in Care Disability,A0511,Care Leavers Allowances,A60010,Tuition &/or Board Fees,30138904,13/07/2023,202305,"5,000.00",1007193,CJR Accommodation Limited
AD Regulated Provision,Revenue Budgets,Childrens Services,Children in Care Disability,A0515,Childrens Disability Team,A11005,Agency Supply Staff,30139298,14/07/2023,202305,"2,087.22",129224,Paradigm Professional Consultancy Ltd
AD Regulated Provision,Revenue Budgets,Childrens Services,CS Commissioning Service,A1789,Childrens Serv Supp Housing,A56000,Other Establishments,30136091,17/07/2023,202305,"8,724.28",147507,Educla
AD Regulated Provision,Revenue Budgets,Childrens Services,CS Commissioning Service,A0492,Agency Fostercare,A56000,Other Establishments,30139983,19/07/2023,202305,"2,663.05",101455,Foster Care Associates Limited
AD Regulated Provision,Revenue Budgets,Childrens Services,CS Commissioning Service,A0492,Agency Fostercare,A56000,Other Establishments,30139986,19/07/2023,202305,"1,031.73",101455,Foster Care Associates Limited
AD Regulated Provision,Revenue Budgets,Childrens Services,CS Commissioning Service,A0479,Lac Res Civil Secure,A49105,Other Supplies & Services,30136222,20/07/2023,202305,"1,495.00",1006250,Safe Hands
AD Regulated Provision,Revenue Budgets,Childrens Services,CS Residential Homes,A0504,REDACTED PERSONAL INFORMATION,A20005,"Property Repairs, Maintenance & Alterations",30137437,24/07/2023,202305,"1,126.07",133267,Equans Services Ltd
AD Regulated Provision,Revenue Budgets,Childrens Services,CS Residential Homes,A1757,REDACTED PERSONAL INFORMATION,A20005,"Property Repairs, Maintenance & Alterations",30137506,24/07/2023,202305,862.45,133267,Equans Services Ltd
AD Regulated Provision,Revenue Budgets,Childrens Services,Children in Care Disability,A0514,Children in Care,A44050,Translating & Interpreter Services,30134207,25/07/2023,202305,496.8,122711,HE Words
AD Regulated Provision,Revenue Budgets,Childrens Services,CS Commissioning Service,A0492,Agency Fostercare,A56000,Other Establishments,30135346,26/07/2023,202305,"3,817.34",150831,Affinity Fostering
AD Regulated Provision,Revenue Budgets,Childrens Services,CS Residential Homes,A1718,REDACTED PERSONAL INFORMATION,A16015,Staff Training Expenses,30135492,27/07/2023,202305,"4,430.00",1006007,Crisp and Crane Consultancy Limited
AD Regulated Provision,Revenue Budgets,Childrens Services,CS Commissioning Service,A0492,Agency Fostercare,A56000,Other Establishments,30139966,27/07/2023,202305,444.48,101455,Foster Care Associates Limited
AD Regulated Provision,Revenue Budgets,Childrens Services,CS Commissioning Service,A0492,Agency Fostercare,A56000,Other Establishments,30139967,27/07/2023,202305,448.96,101455,Foster Care Associates Limited
AD Regulated Provision,Revenue Budgets,Childrens Services,CS Commissioning Service,A0492,Agency Fostercare,A56000,Other Establishments,30136614,28/07/2023,202305,516.76,1007260,Capstone Foster Care Ltd (North)
AD Regulated Provision,Revenue Budgets,Childrens Services,CS Commissioning Service,A0492,Agency Fostercare,A56000,Other Establishments,30136623,28/07/2023,202305,446.72,1007260,Capstone Foster Care Ltd (North)
AD Regulated Provision,Revenue Budgets,Childrens Services,CS Commissioning Service,A1844,CH and Educ Comm Team,A45040,IT Software Purchase,30139311,30/07/2023,202305,"1,544.40",1007259,DocuSign International (EMEA) Limited
AD Regulated Provision,Revenue Budgets,Childrens Services,CS Commissioning Service,A0492,Agency Fostercare,A56000,Other Establishments,30135392,31/07/2023,202305,"3,471.69",101150,Tree House Care Fostering Solutions Ltd
AD Regulated Provision,Revenue Budgets,Childrens Services,CS Commissioning Service,A0492,Agency Fostercare,A56000,Other Establishments,30135394,31/07/2023,202305,"3,611.81",101150,Tree House Care Fostering Solutions Ltd
AD Regulated Provision,Revenue Budgets,Childrens Services,CS Commissioning Service,A0492,Agency Fostercare,A56000,Other Establishments,30135396,31/07/2023,202305,"3,641.66",101150,Tree House Care Fostering Solutions Ltd
AD Regulated Provision,Revenue Budgets,Childrens Services,CS Commissioning Service,A0492,Agency Fostercare,A56000,Other Establishments,30135397,31/07/2023,202305,"5,111.59",101150,Tree House Care Fostering Solutions Ltd
AD Regulated Provision,Revenue Budgets,Childrens Services,CS Commissioning Service,A0492,Agency Fostercare,A56000,Other Establishments,30135400,31/07/2023,202305,"3,331.88",101150,Tree House Care Fostering Solutions Ltd
AD Regulated Provision,Revenue Budgets,Childrens Services,CS Commissioning Service,A0492,Agency Fostercare,A56000,Other Establishments,30135402,31/07/2023,202305,"3,579.26",101150,Tree House Care Fostering Solutions Ltd
AD Regulated Provision,Revenue Budgets,Childrens Services,CS Commissioning Service,A0492,Agency Fostercare,A56000,Other Establishments,30135866,31/07/2023,202305,"3,877.17",112225,The National Fostering Agency
AD Regulated Provision,Revenue Budgets,Childrens Services,CS Commissioning Service,A0492,Agency Fostercare,A56000,Other Establishments,30135867,31/07/2023,202305,"3,530.82",112225,The National Fostering Agency
AD Regulated Provision,Revenue Budgets,Childrens Services,CS Commissioning Service,A0492,Agency Fostercare,A56000,Other Establishments,30135869,31/07/2023,202305,"3,877.17",112225,The National Fostering Agency
AD Regulated Provision,Revenue Budgets,Childrens Services,CS Commissioning Service,A0492,Agency Fostercare,A56000,Other Establishments,30135871,31/07/2023,202305,"3,521.50",112225,The National Fostering Agency
AD Regulated Provision,Revenue Budgets,Childrens Services,CS Commissioning Service,A0492,Agency Fostercare,A56000,Other Establishments,30135872,31/07/2023,202305,"3,877.17",112225,The National Fostering Agency
AD Regulated Provision,Revenue Budgets,Childrens Services,CS Commissioning Service,A0492,Agency Fostercare,A56000,Other Establishments,30135873,31/07/2023,202305,375.21,112225,The National Fostering Agency
AD Regulated Provision,Revenue Budgets,Childrens Services,CS Commissioning Service,A0492,Agency Fostercare,A56000,Other Establishments,30135877,31/07/2023,202305,"3,602.82",112225,The National Fostering Agency
AD Regulated Provision,Revenue Budgets,Childrens Services,CS Commissioning Service,A0492,Agency Fostercare,A56000,Other Establishments,30135878,31/07/2023,202305,"3,692.60",112225,The National Fostering Agency
AD Regulated Provision,Revenue Budgets,Childrens Services,CS Commissioning Service,A0492,Agency Fostercare,A56000,Other Establishments,30135879,31/07/2023,202305,"3,877.17",112225,The National Fostering Agency
AD Regulated Provision,Revenue Budgets,Childrens Services,CS Commissioning Service,A0492,Agency Fostercare,A56000,Other Establishments,30135880,31/07/2023,202305,"3,602.99",112225,The National Fostering Agency
AD Regulated Provision,Revenue Budgets,Childrens Services,CS Commissioning Service,A0492,Agency Fostercare,A56000,Other Establishments,30135881,31/07/2023,202305,"3,877.17",112225,The National Fostering Agency
AD Regulated Provision,Revenue Budgets,Childrens Services,CS Commissioning Service,A0492,Agency Fostercare,A56000,Other Establishments,30135882,31/07/2023,202305,"3,602.99",112225,The National Fostering Agency
AD Regulated Provision,Revenue Budgets,Childrens Services,CS Commissioning Service,A0492,Agency Fostercare,A56000,Other Establishments,30135884,31/07/2023,202305,"3,877.17",112225,The National Fostering Agency
AD Regulated Provision,Revenue Budgets,Childrens Services,CS Commissioning Service,A0492,Agency Fostercare,A56000,Other Establishments,30135962,31/07/2023,202305,"3,877.17",112225,The National Fostering Agency
AD Regulated Provision,Revenue Budgets,Childrens Services,CS Commissioning Service,A0492,Agency Fostercare,A56000,Other Establishments,30135963,31/07/2023,202305,"3,253.63",112225,The National Fostering Agency
AD Regulated Provision,Revenue Budgets,Childrens Services,CS Commissioning Service,A0492,Agency Fostercare,A56000,Other Establishments,30135964,31/07/2023,202305,"3,877.17",112225,The National Fostering Agency
AD Regulated Provision,Revenue Budgets,Childrens Services,CS Commissioning Service,A0492,Agency Fostercare,A56000,Other Establishments,30135965,31/07/2023,202305,"3,320.03",112225,The National Fostering Agency
AD Regulated Provision,Revenue Budgets,Childrens Services,CS Commissioning Service,A0492,Agency Fostercare,A56000,Other Establishments,30135967,31/07/2023,202305,"3,877.17",112225,The National Fostering Agency
AD Regulated Provision,Revenue Budgets,Childrens Services,CS Commissioning Service,A0492,Agency Fostercare,A56000,Other Establishments,30135981,31/07/2023,202305,"3,451.07",112225,The National Fostering Agency
AD Regulated Provision,Revenue Budgets,Childrens Services,CS Commissioning Service,A0492,Agency Fostercare,A56000,Other Establishments,30135988,31/07/2023,202305,"3,877.17",112225,The National Fostering Agency
AD Regulated Provision,Revenue Budgets,Childrens Services,CS Commissioning Service,A0492,Agency Fostercare,A56000,Other Establishments,30135989,31/07/2023,202305,"4,982.01",1000346,Brighter Futures Foster Care
AD Regulated Provision,Revenue Budgets,Childrens Services,CS Commissioning Service,A0492,Agency Fostercare,A56000,Other Establishments,30135993,31/07/2023,202305,"3,768.07",112225,The National Fostering Agency
AD Regulated Provision,Revenue Budgets,Childrens Services,CS Commissioning Service,A0492,Agency Fostercare,A56000,Other Establishments,30136036,31/07/2023,202305,750.42,112225,The National Fostering Agency
AD Regulated Provision,Revenue Budgets,Childrens Services,CS Commissioning Service,A0492,Agency Fostercare,A56000,Other Establishments,30136045,31/07/2023,202305,"4,067.51",132099,Five Rivers Childcare Ltd
AD Regulated Provision,Revenue Budgets,Childrens Services,CS Commissioning Service,A0492,Agency Fostercare,A56000,Other Establishments,30136047,31/07/2023,202305,"3,877.17",112225,The National Fostering Agency
AD Regulated Provision,Revenue Budgets,Childrens Services,CS Commissioning Service,A0492,Agency Fostercare,A56000,Other Establishments,30136049,31/07/2023,202305,"3,877.17",112225,The National Fostering Agency
AD Regulated Provision,Revenue Budgets,Childrens Services,CS Commissioning Service,A0492,Agency Fostercare,A56000,Other Establishments,30136056,31/07/2023,202305,"4,137.22",132099,Five Rivers Childcare Ltd
AD Regulated Provision,Revenue Budgets,Childrens Services,CS Commissioning Service,A0492,Agency Fostercare,A56000,Other Establishments,30136057,31/07/2023,202305,"3,785.19",132099,Five Rivers Childcare Ltd
AD Regulated Provision,Revenue Budgets,Childrens Services,CS Commissioning Service,A0492,Agency Fostercare,A56000,Other Establishments,30136089,31/07/2023,202305,"4,067.38",132099,Five Rivers Childcare Ltd
AD Regulated Provision,Revenue Budgets,Childrens Services,CS Commissioning Service,A0492,Agency Fostercare,A56000,Other Establishments,30136090,31/07/2023,202305,"7,589.42",132099,Five Rivers Childcare Ltd
AD Regulated Provision,Revenue Budgets,Childrens Services,CS Commissioning Service,A0492,Agency Fostercare,A56000,Other Establishments,30136207,31/07/2023,202305,"4,557.93",1005044,Team Fostering
AD Regulated Provision,Revenue Budgets,Childrens Services,CS Commissioning Service,A0273,Agency Placement,A56000,Other Establishments,30136208,31/07/2023,202305,"22,132.45",146328,Hexagon Care Services Ltd
AD Regulated Provision,Revenue Budgets,Childrens Services,CS Commissioning Service,A0492,Agency Fostercare,A56000,Other Establishments,30136209,31/07/2023,202305,"4,557.93",1005044,Team Fostering
AD Regulated Provision,Revenue Budgets,Childrens Services,CS Commissioning Service,A0273,Agency Placement,A56000,Other Establishments,30136211,31/07/2023,202305,"15,398.59",146328,Hexagon Care Services Ltd
AD Regulated Provision,Revenue Budgets,Childrens Services,AD Regulated Provision,A1895,AD Regulated Provision,A44065,Consultancy Services,30136213,31/07/2023,202305,"9,888.00",1003779,Alexander Kemp Ltd
AD Regulated Provision,Revenue Budgets,Childrens Services,CS Commissioning Service,A0492,Agency Fostercare,A56000,Other Establishments,30136216,31/07/2023,202305,"3,777.75",150830,Sunbeam Fostering Agency Ltd
AD Regulated Provision,Revenue Budgets,Childrens Services,CS Commissioning Service,A0492,Agency Fostercare,A56000,Other Establishments,30136223,31/07/2023,202305,"3,777.75",150830,Sunbeam Fostering Agency Ltd
AD Regulated Provision,Revenue Budgets,Childrens Services,CS Commissioning Service,A0492,Agency Fostercare,A56000,Other Establishments,30136388,31/07/2023,202305,"3,974.20",149498,Compass Fostering London Ltd
AD Regulated Provision,Revenue Budgets,Childrens Services,CS Commissioning Service,A0492,Agency Fostercare,A56000,Other Establishments,30136475,31/07/2023,202305,"3,877.17",112225,The National Fostering Agency
AD Regulated Provision,Revenue Budgets,Childrens Services,CS Commissioning Service,A0492,Agency Fostercare,A56000,Other Establishments,30136485,31/07/2023,202305,"3,946.30",132099,Five Rivers Childcare Ltd
AD Regulated Provision,Revenue Budgets,Childrens Services,CS Commissioning Service,A0492,Agency Fostercare,A56000,Other Establishments,30136486,31/07/2023,202305,"4,067.20",132099,Five Rivers Childcare Ltd
AD Regulated Provision,Revenue Budgets,Childrens Services,CS Commissioning Service,A0492,Agency Fostercare,A56000,Other Establishments,30136487,31/07/2023,202305,"3,877.17",112225,The National Fostering Agency
AD Regulated Provision,Revenue Budgets,Childrens Services,CS Commissioning Service,A0492,Agency Fostercare,A56000,Other Establishments,30136516,31/07/2023,202305,"3,877.17",112225,The National Fostering Agency
AD Regulated Provision,Revenue Budgets,Childrens Services,CS Commissioning Service,A0492,Agency Fostercare,A56000,Other Establishments,30136984,31/07/2023,202305,"3,751.00",129923,The Adolescent & Childrens Trust
AD Regulated Provision,Revenue Budgets,Childrens Services,CS Commissioning Service,A0492,Agency Fostercare,A56000,Other Establishments,30137064,31/07/2023,202305,"3,520.67",1002705,Horizon Fostering Services
AD Regulated Provision,Revenue Budgets,Childrens Services,CS Commissioning Service,A0273,Agency Placement,A56000,Other Establishments,30137072,31/07/2023,202305,"19,928.35",110615,Timeout Homes Ltd
AD Regulated Provision,Revenue Budgets,Childrens Services,CS Commissioning Service,A1767,Looked After Chld Travel Costs,A33005,Public Transport - Non Staff,30137192,31/07/2023,202305,"4,885.00",100546,Links Taxis
AD Regulated Provision,Revenue Budgets,Childrens Services,CS Commissioning Service,A1789,Childrens Serv Supp Housing,A56000,Other Establishments,30137237,31/07/2023,202305,"31,553.66",1006289,Rossie Young Peoples Trust
AD Regulated Provision,Revenue Budgets,Childrens Services,CS Commissioning Service,A0273,Agency Placement,A56000,Other Establishments,30137243,31/07/2023,202305,"30,594.58",1002458,Witherslack Group Limited
AD Regulated Provision,Revenue Budgets,Childrens Services,CS Commissioning Service,A0273,Agency Placement,A56000,Other Establishments,30137300,31/07/2023,202305,"21,430.33",1002458,Witherslack Group Limited
AD Regulated Provision,Revenue Budgets,Childrens Services,CS Commissioning Service,A0273,Agency Placement,A56000,Other Establishments,30137310,31/07/2023,202305,"6,795.00",1002458,Witherslack Group Limited
AD Regulated Provision,Revenue Budgets,Childrens Services,CS Commissioning Service,A0492,Agency Fostercare,A56000,Other Establishments,30137347,31/07/2023,202305,"3,689.00",145801,Young People At Heart
AD Regulated Provision,Revenue Budgets,Childrens Services,CS Commissioning Service,A0492,Agency Fostercare,A56000,Other Establishments,30137349,31/07/2023,202305,"3,689.00",145801,Young People At Heart
AD Regulated Provision,Revenue Budgets,Childrens Services,CS Commissioning Service,A0492,Agency Fostercare,A56000,Other Establishments,30137361,31/07/2023,202305,"3,689.00",145801,Young People At Heart
AD Regulated Provision,Revenue Budgets,Childrens Services,CS Commissioning Service,A0492,Agency Fostercare,A56000,Other Establishments,30137367,31/07/2023,202305,"3,782.00",145801,Young People At Heart
AD Regulated Provision,Revenue Budgets,Childrens Services,CS Commissioning Service,A0492,Agency Fostercare,A56000,Other Establishments,30137417,31/07/2023,202305,"3,782.00",145801,Young People At Heart
AD Regulated Provision,Revenue Budgets,Childrens Services,CS Commissioning Service,A0492,Agency Fostercare,A56000,Other Establishments,30137420,31/07/2023,202305,"3,782.00",145801,Young People At Heart
AD Regulated Provision,Revenue Budgets,Childrens Services,CS Commissioning Service,A0492,Agency Fostercare,A56000,Other Establishments,30138000,31/07/2023,202305,"3,472.00",1004631,Integrated Fostering Services Ltd
AD Regulated Provision,Revenue Budgets,Childrens Services,CS Commissioning Service,A0492,Agency Fostercare,A56000,Other Establishments,30138002,31/07/2023,202305,"3,631.34",1004631,Integrated Fostering Services Ltd
AD Regulated Provision,Revenue Budgets,Childrens Services,CS Commissioning Service,A0492,Agency Fostercare,A56000,Other Establishments,30138005,31/07/2023,202305,"5,314.33",1004631,Integrated Fostering Services Ltd
AD Regulated Provision,Revenue Budgets,Childrens Services,CS Commissioning Service,A0492,Agency Fostercare,A56000,Other Establishments,30139029,31/07/2023,202305,"3,751.00",129923,The Adolescent & Childrens Trust
AD Regulated Provision,Revenue Budgets,Childrens Services,CS Commissioning Service,A0273,Agency Placement,A56000,Other Establishments,30139673,31/07/2023,202305,"44,285.71",1002153,Prosperity Children's Services
AD Regulated Provision,Revenue Budgets,Childrens Services,CS Commissioning Service,A0273,Agency Placement,A56000,Other Establishments,30139680,31/07/2023,202305,"39,857.14",1002153,Prosperity Children's Services
AD Regulated Provision,Revenue Budgets,Childrens Services,Fostering and Adoption,A1603,Adoption Support Fund,A49105,Other Supplies & Services,30139946,31/07/2023,202305,"1,330.00",1001758,Oakdale Therapies Ltd
AD Regulated Provision,Revenue Budgets,Childrens Services,Children in Care Disability,A0514,Children in Care,A61156,Section 17,30139982,31/07/2023,202305,428.83,1007407,RJD Saxon Ltd
AD Regulated Provision,Revenue Budgets,Childrens Services,CS Commissioning Service,A0492,Agency Fostercare,A56000,Other Establishments,30141037,31/07/2023,202305,890.8,1007402,Ivy House Fostering Agency
AD Regulated Provision,Revenue Budgets,Childrens Services,Children in Care Disability,A0509,Unaccomp Childr Asylum Seekers,A44050,Translating & Interpreter Services,30141529,31/07/2023,202305,508.4,148993,Clear Voice Interpreting Services
AD Regulated Provision,Revenue Budgets,Childrens Services,CS Commissioning Service,A0492,Agency Fostercare,A56000,Other Establishments,30135566,01/08/2023,202305,"3,554.46",143409,Family Fostercare Ltd
AD Regulated Provision,Revenue Budgets,Childrens Services,CS Commissioning Service,A0492,Agency Fostercare,A56000,Other Establishments,30135791,01/08/2023,202305,"4,296.87",146086,Fusion Fostering Ltd
AD Regulated Provision,Revenue Budgets,Childrens Services,CS Commissioning Service,A0492,Agency Fostercare,A56000,Other Establishments,30135870,01/08/2023,202305,"4,457.55",148494,By The Bridge Northwest Ltd
AD Regulated Provision,Revenue Budgets,Childrens Services,CS Commissioning Service,A0492,Agency Fostercare,A56000,Other Establishments,30135875,01/08/2023,202305,"4,276.29",148494,By The Bridge Northwest Ltd
AD Regulated Provision,Revenue Budgets,Childrens Services,CS Commissioning Service,A0273,Agency Placement,A56000,Other Establishments,30136028,01/08/2023,202305,"19,862.14",145195,Keys Pce Limited
AD Regulated Provision,Revenue Budgets,Childrens Services,CS Commissioning Service,A0492,Agency Fostercare,A56000,Other Establishments,30136030,01/08/2023,202305,"1,618.92",145652,Parallel Parents
AD Regulated Provision,Revenue Budgets,Childrens Services,CS Commissioning Service,A0492,Agency Fostercare,A56000,Other Establishments,30136031,01/08/2023,202305,"3,553.84",145652,Parallel Parents
AD Regulated Provision,Revenue Budgets,Childrens Services,CS Commissioning Service,A0492,Agency Fostercare,A56000,Other Establishments,30136038,01/08/2023,202305,"3,666.06",145652,Parallel Parents
AD Regulated Provision,Revenue Budgets,Childrens Services,CS Commissioning Service,A0492,Agency Fostercare,A56000,Other Establishments,30136042,01/08/2023,202305,"5,986.72",145652,Parallel Parents
AD Regulated Provision,Revenue Budgets,Childrens Services,CS Commissioning Service,A0492,Agency Fostercare,A56000,Other Establishments,30136050,01/08/2023,202305,"3,979.47",145652,Parallel Parents
AD Regulated Provision,Revenue Budgets,Childrens Services,CS Commissioning Service,A0492,Agency Fostercare,A56000,Other Establishments,30136054,01/08/2023,202305,"3,857.64",145652,Parallel Parents
AD Regulated Provision,Revenue Budgets,Childrens Services,CS Commissioning Service,A0492,Agency Fostercare,A56000,Other Establishments,30136150,01/08/2023,202305,"4,058.21",1006055,Star Fostering Ltd
AD Regulated Provision,Revenue Budgets,Childrens Services,CS Commissioning Service,A0492,Agency Fostercare,A56000,Other Establishments,30136152,01/08/2023,202305,"3,861.67",1006055,Star Fostering Ltd
AD Regulated Provision,Revenue Budgets,Childrens Services,CS Commissioning Service,A0492,Agency Fostercare,A56000,Other Establishments,30136180,01/08/2023,202305,"3,316.95",1006055,Star Fostering Ltd
AD Regulated Provision,Revenue Budgets,Childrens Services,CS Commissioning Service,A0492,Agency Fostercare,A56000,Other Establishments,30136183,01/08/2023,202305,"3,316.95",1006055,Star Fostering Ltd
AD Regulated Provision,Revenue Budgets,Childrens Services,CS Commissioning Service,A0273,Agency Placement,A56000,Other Establishments,30136218,01/08/2023,202305,"23,250.00",1002134,Your Chapter Limited
AD Regulated Provision,Revenue Budgets,Childrens Services,CS Commissioning Service,A0492,Agency Fostercare,A56000,Other Establishments,30136608,01/08/2023,202305,"3,462.08",1007260,Capstone Foster Care Ltd (North)
AD Regulated Provision,Revenue Budgets,Childrens Services,CS Commissioning Service,A0492,Agency Fostercare,A56000,Other Establishments,30136609,01/08/2023,202305,"4,004.89",1007260,Capstone Foster Care Ltd (North)
AD Regulated Provision,Revenue Budgets,Childrens Services,CS Commissioning Service,A0273,Agency Placement,A56000,Other Establishments,30137086,01/08/2023,202305,"23,482.50",142624,Compass Childrens Homes Ltd
AD Regulated Provision,Revenue Budgets,Childrens Services,CS Commissioning Service,A0492,Agency Fostercare,A56000,Other Establishments,30137105,01/08/2023,202305,"3,644.27",132099,Five Rivers Childcare Ltd
AD Regulated Provision,Revenue Budgets,Childrens Services,CS Commissioning Service,A0273,Agency Placement,A56000,Other Establishments,30137108,01/08/2023,202305,"29,178.75",142624,Compass Childrens Homes Ltd
AD Regulated Provision,Revenue Budgets,Childrens Services,CS Commissioning Service,A0492,Agency Fostercare,A56000,Other Establishments,30137110,01/08/2023,202305,"3,779.74",132099,Five Rivers Childcare Ltd
AD Regulated Provision,Revenue Budgets,Childrens Services,CS Commissioning Service,A0492,Agency Fostercare,A56000,Other Establishments,30137113,01/08/2023,202305,"3,815.48",132099,Five Rivers Childcare Ltd
AD Regulated Provision,Revenue Budgets,Childrens Services,CS Commissioning Service,A0492,Agency Fostercare,A56000,Other Establishments,30137115,01/08/2023,202305,"3,644.27",132099,Five Rivers Childcare Ltd
AD Regulated Provision,Revenue Budgets,Childrens Services,CS Commissioning Service,A0273,Agency Placement,A56000,Other Establishments,30137116,01/08/2023,202305,"44,064.33",142624,Compass Childrens Homes Ltd
AD Regulated Provision,Revenue Budgets,Childrens Services,CS Commissioning Service,A0492,Agency Fostercare,A56000,Other Establishments,30137252,01/08/2023,202305,"3,960.25",128418,Nexus Fostering Ltd
AD Regulated Provision,Revenue Budgets,Childrens Services,CS Commissioning Service,A0492,Agency Fostercare,A56000,Other Establishments,30137254,01/08/2023,202305,"6,479.00",128418,Nexus Fostering Ltd
AD Regulated Provision,Revenue Budgets,Childrens Services,CS Commissioning Service,A0492,Agency Fostercare,A56000,Other Establishments,30137255,01/08/2023,202305,"3,681.25",128418,Nexus Fostering Ltd
AD Regulated Provision,Revenue Budgets,Childrens Services,CS Commissioning Service,A0492,Agency Fostercare,A56000,Other Establishments,30137290,01/08/2023,202305,"3,740.46",128844,Compass Fostering North Limited
AD Regulated Provision,Revenue Budgets,Childrens Services,CS Commissioning Service,A0492,Agency Fostercare,A56000,Other Establishments,30137292,01/08/2023,202305,"3,769.91",128844,Compass Fostering North Limited
AD Regulated Provision,Revenue Budgets,Childrens Services,CS Commissioning Service,A0492,Agency Fostercare,A56000,Other Establishments,30137293,01/08/2023,202305,"3,740.46",128844,Compass Fostering North Limited
AD Regulated Provision,Revenue Budgets,Childrens Services,CS Commissioning Service,A0492,Agency Fostercare,A56000,Other Establishments,30137294,01/08/2023,202305,506.65,128844,Compass Fostering North Limited
AD Regulated Provision,Revenue Budgets,Childrens Services,CS Commissioning Service,A0492,Agency Fostercare,A56000,Other Establishments,30137298,01/08/2023,202305,"3,852.68",128844,Compass Fostering North Limited
AD Regulated Provision,Revenue Budgets,Childrens Services,CS Commissioning Service,A0492,Agency Fostercare,A56000,Other Establishments,30137303,01/08/2023,202305,"3,780.14",128844,Compass Fostering North Limited
AD Regulated Provision,Revenue Budgets,Childrens Services,CS Commissioning Service,A0492,Agency Fostercare,A56000,Other Establishments,30137305,01/08/2023,202305,"3,692.41",128844,Compass Fostering North Limited
AD Regulated Provision,Revenue Budgets,Childrens Services,CS Commissioning Service,A0492,Agency Fostercare,A56000,Other Establishments,30140068,01/08/2023,202305,-303.45,101455,Foster Care Associates Limited
AD Regulated Provision,Revenue Budgets,Childrens Services,CS Commissioning Service,A0273,Agency Placement,A56000,Other Establishments,30141056,01/08/2023,202305,"23,250.00",1000494,New Horizons - (Stockport) Ltd
AD Regulated Provision,Revenue Budgets,Childrens Services,Children in Care Disability,A0509,Unaccomp Childr Asylum Seekers,A56000,Other Establishments,30136196,02/08/2023,202305,"7,476.66",144120,Learning4life-Gy-Cic
AD Regulated Provision,Revenue Budgets,Childrens Services,Children in Care Disability,A0517,Direct Payments Scheme,A56000,Other Establishments,30137189,02/08/2023,202305,412.07,1001303,Thornbury Nursing Services
AD Regulated Provision,Revenue Budgets,Childrens Services,Children in Care Disability,A0517,Direct Payments Scheme,A56000,Other Establishments,30137193,02/08/2023,202305,509.46,1001303,Thornbury Nursing Services
AD Regulated Provision,Revenue Budgets,Childrens Services,Children in Care Disability,A0517,Direct Payments Scheme,A56000,Other Establishments,30137195,02/08/2023,202305,396.93,1001303,Thornbury Nursing Services
AD Regulated Provision,Revenue Budgets,Childrens Services,CS Commissioning Service,A0273,Agency Placement,A56000,Other Establishments,30140208,02/08/2023,202305,"28,802.94",1004639,Westbrook Fields Limited
AD Regulated Provision,Revenue Budgets,Childrens Services,CS Commissioning Service,A0492,Agency Fostercare,A56000,Other Establishments,30137467,03/08/2023,202305,"5,314.33",1000540,Chrysalis Consortium Ltd
AD Regulated Provision,Revenue Budgets,Childrens Services,Children in Care Disability,A0517,Direct Payments Scheme,A56000,Other Establishments,42244462,03/08/2023,202305,398.19,REDACTED PERSONAL INFORMATION,REDACTED PERSONAL INFORMATION
AD Regulated Provision,Revenue Budgets,Childrens Services,Children in Care Disability,A0517,Direct Payments Scheme,A56000,Other Establishments,42244463,03/08/2023,202305,305.31,REDACTED PERSONAL INFORMATION,REDACTED PERSONAL INFORMATION
AD Regulated Provision,Revenue Budgets,Childrens Services,Children in Care Disability,A0517,Direct Payments Scheme,A56000,Other Establishments,42244471,03/08/2023,202305,384.45,REDACTED PERSONAL INFORMATION,REDACTED PERSONAL INFORMATION
AD Regulated Provision,Revenue Budgets,Childrens Services,Children in Care Disability,A0517,Direct Payments Scheme,A56000,Other Establishments,42244471,03/08/2023,202305,447.07,REDACTED PERSONAL INFORMATION,REDACTED PERSONAL INFORMATION
AD Regulated Provision,Revenue Budgets,Childrens Services,Children in Care Disability,A0511,Care Leavers Allowances,A61165,Housing Benefit,42244473,03/08/2023,202305,257,REDACTED PERSONAL INFORMATION,REDACTED PERSONAL INFORMATION
AD Regulated Provision,Revenue Budgets,Childrens Services,Children in Care Disability,A0511,Care Leavers Allowances,A61165,Housing Benefit,42244477,03/08/2023,202305,257,REDACTED PERSONAL INFORMATION,REDACTED PERSONAL INFORMATION
AD Regulated Provision,Revenue Budgets,Childrens Services,Children in Care Disability,A0511,Care Leavers Allowances,A61165,Housing Benefit,42244478,03/08/2023,202305,360,REDACTED PERSONAL INFORMATION,REDACTED PERSONAL INFORMATION
AD Regulated Provision,Revenue Budgets,Childrens Services,Children in Care Disability,A0511,Care Leavers Allowances,A61165,Housing Benefit,42244480,03/08/2023,202305,257,REDACTED PERSONAL INFORMATION,REDACTED PERSONAL INFORMATION
AD Regulated Provision,Revenue Budgets,Childrens Services,Children in Care Disability,A0511,Care Leavers Allowances,A61165,Housing Benefit,42244481,03/08/2023,202305,257,REDACTED PERSONAL INFORMATION,REDACTED PERSONAL INFORMATION
AD Regulated Provision,Revenue Budgets,Childrens Services,Children in Care Disability,A0511,Care Leavers Allowances,A61165,Housing Benefit,42244484,03/08/2023,202305,257,REDACTED PERSONAL INFORMATION,REDACTED PERSONAL INFORMATION
AD Regulated Provision,Revenue Budgets,Childrens Services,Children in Care Disability,A0511,Care Leavers Allowances,A61165,Housing Benefit,42244487,03/08/2023,202305,257,REDACTED PERSONAL INFORMATION,REDACTED PERSONAL INFORMATION
AD Regulated Provision,Revenue Budgets,Childrens Services,Children in Care Disability,A0511,Care Leavers Allowances,A61165,Housing Benefit,42244491,03/08/2023,202305,257,REDACTED PERSONAL INFORMATION,REDACTED PERSONAL INFORMATION
AD Regulated Provision,Revenue Budgets,Childrens Services,Fostering and Adoption,A0484,Mainstream Carer Payments,A61115,Holiday Allowances,42244535,03/08/2023,202305,398,REDACTED PERSONAL INFORMATION,REDACTED PERSONAL INFORMATION
AD Regulated Provision,Revenue Budgets,Childrens Services,Fostering and Adoption,A0484,Mainstream Carer Payments,A61166,Contract Plus,42244552,03/08/2023,202305,315,REDACTED PERSONAL INFORMATION,REDACTED PERSONAL INFORMATION
AD Regulated Provision,Revenue Budgets,Childrens Services,Fostering and Adoption,A0489,Adoption Support,A61120,Adoptions Allowances,42244556,03/08/2023,202305,370.74,REDACTED PERSONAL INFORMATION,REDACTED PERSONAL INFORMATION
AD Regulated Provision,Revenue Budgets,Childrens Services,Fostering and Adoption,A0489,Adoption Support,A61120,Adoptions Allowances,42244556,03/08/2023,202305,370.74,REDACTED PERSONAL INFORMATION,REDACTED PERSONAL INFORMATION
AD Regulated Provision,Revenue Budgets,Childrens Services,Fostering and Adoption,A0484,Mainstream Carer Payments,A61166,Contract Plus,42244558,03/08/2023,202305,315,REDACTED PERSONAL INFORMATION,REDACTED PERSONAL INFORMATION
AD Regulated Provision,Revenue Budgets,Childrens Services,Fostering and Adoption,A0484,Mainstream Carer Payments,A61166,Contract Plus,42244619,03/08/2023,202305,315,REDACTED PERSONAL INFORMATION,REDACTED PERSONAL INFORMATION
AD Regulated Provision,Revenue Budgets,Childrens Services,Fostering and Adoption,A0484,Mainstream Carer Payments,A61115,Holiday Allowances,42244682,03/08/2023,202305,350,REDACTED PERSONAL INFORMATION,REDACTED PERSONAL INFORMATION
AD Regulated Provision,Revenue Budgets,Childrens Services,Fostering and Adoption,A0484,Mainstream Carer Payments,A61115,Holiday Allowances,42244682,03/08/2023,202305,466,REDACTED PERSONAL INFORMATION,REDACTED PERSONAL INFORMATION
AD Regulated Provision,Revenue Budgets,Childrens Services,Fostering and Adoption,A0484,Mainstream Carer Payments,A57205,Child Care Payments,42244694,03/08/2023,202305,651.84,REDACTED PERSONAL INFORMATION,REDACTED PERSONAL INFORMATION
AD Regulated Provision,Revenue Budgets,Childrens Services,Fostering and Adoption,A0486,Residence  Or Special G'Ship,A61015,Fostering and Guardianship Allowances,42244701,03/08/2023,202305,364.08,REDACTED PERSONAL INFORMATION,REDACTED PERSONAL INFORMATION
AD Regulated Provision,Revenue Budgets,Childrens Services,Fostering and Adoption,A0486,Residence  Or Special G'Ship,A61015,Fostering and Guardianship Allowances,42244701,03/08/2023,202305,364.08,REDACTED PERSONAL INFORMATION,REDACTED PERSONAL INFORMATION
AD Regulated Provision,Revenue Budgets,Childrens Services,Fostering and Adoption,A0484,Mainstream Carer Payments,A61166,Contract Plus,42244706,03/08/2023,202305,315,REDACTED PERSONAL INFORMATION,REDACTED PERSONAL INFORMATION
AD Regulated Provision,Revenue Budgets,Childrens Services,Fostering and Adoption,A0484,Mainstream Carer Payments,A61166,Contract Plus,42244725,03/08/2023,202305,315,REDACTED PERSONAL INFORMATION,REDACTED PERSONAL INFORMATION
AD Regulated Provision,Revenue Budgets,Childrens Services,Fostering and Adoption,A0484,Mainstream Carer Payments,A61166,Contract Plus,42244726,03/08/2023,202305,315,REDACTED PERSONAL INFORMATION,REDACTED PERSONAL INFORMATION
AD Regulated Provision,Revenue Budgets,Childrens Services,Fostering and Adoption,A0484,Mainstream Carer Payments,A57205,Child Care Payments,42244727,03/08/2023,202305,711.58,REDACTED PERSONAL INFORMATION,REDACTED PERSONAL INFORMATION
AD Regulated Provision,Revenue Budgets,Childrens Services,Fostering and Adoption,A0484,Mainstream Carer Payments,A61166,Contract Plus,42244728,03/08/2023,202305,315,REDACTED PERSONAL INFORMATION,REDACTED PERSONAL INFORMATION
AD Regulated Provision,Revenue Budgets,Childrens Services,Fostering and Adoption,A0484,Mainstream Carer Payments,A61166,Contract Plus,42244729,03/08/2023,202305,315,REDACTED PERSONAL INFORMATION,REDACTED PERSONAL INFORMATION
AD Regulated Provision,Revenue Budgets,Childrens Services,Fostering and Adoption,A0484,Mainstream Carer Payments,A61166,Contract Plus,42244730,03/08/2023,202305,315,REDACTED PERSONAL INFORMATION,REDACTED PERSONAL INFORMATION
AD Regulated Provision,Revenue Budgets,Childrens Services,Fostering and Adoption,A0484,Mainstream Carer Payments,A61159,Special Carer Payments,42244753,03/08/2023,202305,711.58,REDACTED PERSONAL INFORMATION,REDACTED PERSONAL INFORMATION
AD Regulated Provision,Revenue Budgets,Childrens Services,Fostering and Adoption,A0484,Mainstream Carer Payments,A61166,Contract Plus,42244764,03/08/2023,202305,315,REDACTED PERSONAL INFORMATION,REDACTED PERSONAL INFORMATION
AD Regulated Provision,Revenue Budgets,Childrens Services,Fostering and Adoption,A0484,Mainstream Carer Payments,A61166,Contract Plus,42244768,03/08/2023,202305,315,REDACTED PERSONAL INFORMATION,REDACTED PERSONAL INFORMATION
AD Regulated Provision,Revenue Budgets,Childrens Services,Fostering and Adoption,A0484,Mainstream Carer Payments,A61166,Contract Plus,42244772,03/08/2023,202305,315,REDACTED PERSONAL INFORMATION,REDACTED PERSONAL INFORMATION
AD Regulated Provision,Revenue Budgets,Childrens Services,Fostering and Adoption,A0489,Adoption Support,A61120,Adoptions Allowances,42244775,03/08/2023,202305,559.44,REDACTED PERSONAL INFORMATION,REDACTED PERSONAL INFORMATION
AD Regulated Provision,Revenue Budgets,Childrens Services,Fostering and Adoption,A0484,Mainstream Carer Payments,A61166,Contract Plus,42244781,03/08/2023,202305,315,REDACTED PERSONAL INFORMATION,REDACTED PERSONAL INFORMATION
AD Regulated Provision,Revenue Budgets,Childrens Services,Fostering and Adoption,A0484,Mainstream Carer Payments,A61166,Contract Plus,42244782,03/08/2023,202305,315,REDACTED PERSONAL INFORMATION,REDACTED PERSONAL INFORMATION
AD Regulated Provision,Revenue Budgets,Childrens Services,Fostering and Adoption,A0486,Residence  Or Special G'Ship,A61015,Fostering and Guardianship Allowances,42244786,03/08/2023,202305,357,REDACTED PERSONAL INFORMATION,REDACTED PERSONAL INFORMATION
AD Regulated Provision,Revenue Budgets,Childrens Services,Fostering and Adoption,A0486,Residence  Or Special G'Ship,A61015,Fostering and Guardianship Allowances,42244786,03/08/2023,202305,365.1,REDACTED PERSONAL INFORMATION,REDACTED PERSONAL INFORMATION
AD Regulated Provision,Revenue Budgets,Childrens Services,Fostering and Adoption,A0486,Residence  Or Special G'Ship,A61015,Fostering and Guardianship Allowances,42244810,03/08/2023,202305,420,REDACTED PERSONAL INFORMATION,REDACTED PERSONAL INFORMATION
AD Regulated Provision,Revenue Budgets,Childrens Services,Fostering and Adoption,A0486,Residence  Or Special G'Ship,A61015,Fostering and Guardianship Allowances,42244810,03/08/2023,202305,428.1,REDACTED PERSONAL INFORMATION,REDACTED PERSONAL INFORMATION
AD Regulated Provision,Revenue Budgets,Childrens Services,Fostering and Adoption,A0489,Adoption Support,A61120,Adoptions Allowances,42244813,03/08/2023,202305,886.58,REDACTED PERSONAL INFORMATION,REDACTED PERSONAL INFORMATION
AD Regulated Provision,Revenue Budgets,Childrens Services,Fostering and Adoption,A0484,Mainstream Carer Payments,A61166,Contract Plus,42244856,03/08/2023,202305,315,REDACTED PERSONAL INFORMATION,REDACTED PERSONAL INFORMATION
AD Regulated Provision,Revenue Budgets,Childrens Services,Fostering and Adoption,A0484,Mainstream Carer Payments,A57205,Child Care Payments,42244884,03/08/2023,202305,318,REDACTED PERSONAL INFORMATION,REDACTED PERSONAL INFORMATION
AD Regulated Provision,Revenue Budgets,Childrens Services,Fostering and Adoption,A0484,Mainstream Carer Payments,A61166,Contract Plus,42244926,03/08/2023,202305,315,REDACTED PERSONAL INFORMATION,REDACTED PERSONAL INFORMATION
AD Regulated Provision,Revenue Budgets,Childrens Services,Fostering and Adoption,A0484,Mainstream Carer Payments,A61115,Holiday Allowances,42244932,03/08/2023,202305,350,REDACTED PERSONAL INFORMATION,REDACTED PERSONAL INFORMATION
AD Regulated Provision,Revenue Budgets,Childrens Services,Fostering and Adoption,A0484,Mainstream Carer Payments,A61115,Holiday Allowances,42244932,03/08/2023,202305,398,REDACTED PERSONAL INFORMATION,REDACTED PERSONAL INFORMATION
AD Regulated Provision,Revenue Budgets,Childrens Services,Fostering and Adoption,A0484,Mainstream Carer Payments,A61115,Holiday Allowances,42244932,03/08/2023,202305,466,REDACTED PERSONAL INFORMATION,REDACTED PERSONAL INFORMATION
AD Regulated Provision,Revenue Budgets,Childrens Services,Fostering and Adoption,A0486,Residence  Or Special G'Ship,A61015,Fostering and Guardianship Allowances,42244934,03/08/2023,202305,357,REDACTED PERSONAL INFORMATION,REDACTED PERSONAL INFORMATION
AD Regulated Provision,Revenue Budgets,Childrens Services,Fostering and Adoption,A0486,Residence  Or Special G'Ship,A61015,Fostering and Guardianship Allowances,42244934,03/08/2023,202305,357,REDACTED PERSONAL INFORMATION,REDACTED PERSONAL INFORMATION
AD Regulated Provision,Revenue Budgets,Childrens Services,Fostering and Adoption,A0486,Residence  Or Special G'Ship,A61015,Fostering and Guardianship Allowances,42244947,03/08/2023,202305,466,REDACTED PERSONAL INFORMATION,REDACTED PERSONAL INFORMATION
AD Regulated Provision,Revenue Budgets,Childrens Services,Fostering and Adoption,A0486,Residence  Or Special G'Ship,A61015,Fostering and Guardianship Allowances,42244948,03/08/2023,202305,357,REDACTED PERSONAL INFORMATION,REDACTED PERSONAL INFORMATION
AD Regulated Provision,Revenue Budgets,Childrens Services,Fostering and Adoption,A0486,Residence  Or Special G'Ship,A61015,Fostering and Guardianship Allowances,42244956,03/08/2023,202305,333,REDACTED PERSONAL INFORMATION,REDACTED PERSONAL INFORMATION
AD Regulated Provision,Revenue Budgets,Childrens Services,Fostering and Adoption,A0484,Mainstream Carer Payments,A61115,Holiday Allowances,42244957,03/08/2023,202305,398,REDACTED PERSONAL INFORMATION,REDACTED PERSONAL INFORMATION
AD Regulated Provision,Revenue Budgets,Childrens Services,Fostering and Adoption,A0484,Mainstream Carer Payments,A61150,Additional Cost,42244990,03/08/2023,202305,335.5,REDACTED PERSONAL INFORMATION,REDACTED PERSONAL INFORMATION
AD Regulated Provision,Revenue Budgets,Childrens Services,Fostering and Adoption,A0484,Mainstream Carer Payments,A57205,Child Care Payments,42244991,03/08/2023,202305,560.71,REDACTED PERSONAL INFORMATION,REDACTED PERSONAL INFORMATION
AD Regulated Provision,Revenue Budgets,Childrens Services,Fostering and Adoption,A0484,Mainstream Carer Payments,A57205,Child Care Payments,42244992,03/08/2023,202305,300,REDACTED PERSONAL INFORMATION,REDACTED PERSONAL INFORMATION
AD Regulated Provision,Revenue Budgets,Childrens Services,Children in Care Disability,A0517,Direct Payments Scheme,A56000,Other Establishments,30137253,04/08/2023,202305,280,105925,The Rowan Organisation
AD Regulated Provision,Revenue Budgets,Childrens Services,CS Commissioning Service,A0492,Agency Fostercare,A56000,Other Establishments,30137251,07/08/2023,202305,-505.24,101455,Foster Care Associates Limited
AD Regulated Provision,Revenue Budgets,Childrens Services,CS Commissioning Service,A0492,Agency Fostercare,A56000,Other Establishments,30137265,07/08/2023,202305,527.64,101455,Foster Care Associates Limited
AD Regulated Provision,Revenue Budgets,Childrens Services,CS Commissioning Service,A0492,Agency Fostercare,A56000,Other Establishments,30138038,07/08/2023,202305,"4,182.50",146857,Swiis Foster Care Ltd
AD Regulated Provision,Revenue Budgets,Childrens Services,CS Commissioning Service,A1789,Childrens Serv Supp Housing,A56000,Other Establishments,30139146,07/08/2023,202305,825,145139,Signis Ltd
AD Regulated Provision,Revenue Budgets,Childrens Services,CS Commissioning Service,A0492,Agency Fostercare,A56000,Other Establishments,30139987,07/08/2023,202305,606.9,101455,Foster Care Associates Limited
AD Regulated Provision,Revenue Budgets,Childrens Services,CS Residential Homes,A0502,REDACTED PERSONAL INFORMATION,A44030,Provisions,30137345,08/08/2023,202305,499.93,PETTY CASH,PETTY CASH
AD Regulated Provision,Revenue Budgets,Childrens Services,CS Residential Homes,A0502,REDACTED PERSONAL INFORMATION,A49106,Holidays - Service Users,30137345,08/08/2023,202305,437.77,PETTY CASH,PETTY CASH
AD Regulated Provision,Revenue Budgets,Childrens Services,Fostering and Adoption,A0490,Fostering And Adoption Team,A11005,Agency Supply Staff,30137611,08/08/2023,202305,"2,127.50",120715,Nonstop Consulting Limited
AD Regulated Provision,Revenue Budgets,Childrens Services,Children in Care Disability,A0517,Direct Payments Scheme,A56000,Other Establishments,30138712,08/08/2023,202305,"2,718.77",1002181,Velox Healthcare
AD Regulated Provision,Revenue Budgets,Childrens Services,Children in Care Disability,A0517,Direct Payments Scheme,A56000,Other Establishments,30138513,09/08/2023,202305,400.67,1001303,Thornbury Nursing Services
AD Regulated Provision,Revenue Budgets,Childrens Services,Children in Care Disability,A0517,Direct Payments Scheme,A56000,Other Establishments,30138526,09/08/2023,202305,393.57,1001303,Thornbury Nursing Services
AD Regulated Provision,Revenue Budgets,Childrens Services,Children in Care Disability,A0517,Direct Payments Scheme,A56000,Other Establishments,30138529,09/08/2023,202305,486.46,1001303,Thornbury Nursing Services
AD Regulated Provision,Revenue Budgets,Childrens Services,Children in Care Disability,A0509,Unaccomp Childr Asylum Seekers,A44050,Translating & Interpreter Services,30138554,09/08/2023,202305,347.62,122711,HE Words
AD Regulated Provision,Revenue Budgets,Childrens Services,Fostering and Adoption,A1603,Adoption Support Fund,A49105,Other Supplies & Services,30139942,09/08/2023,202305,550,140435,Time To Listen Limited
AD Regulated Provision,Revenue Budgets,Childrens Services,Head Of Corporate Parenting,A0506,Head Of Service Resources,A56000,Other Establishments,30138621,10/08/2023,202305,"2,100.00",1005418,E.B.I.S.W Ltd
AD Regulated Provision,Revenue Budgets,Childrens Services,Fostering and Adoption,A0489,Adoption Support,A49105,Other Supplies & Services,30141040,10/08/2023,202305,"39,121.00",1007398,SSAFA
AD Regulated Provision,Revenue Budgets,Childrens Services,Children in Care Disability,A0511,Care Leavers Allowances,A61165,Housing Benefit,42245977,10/08/2023,202305,257,REDACTED PERSONAL INFORMATION,REDACTED PERSONAL INFORMATION
AD Regulated Provision,Revenue Budgets,Childrens Services,Children in Care Disability,A0511,Care Leavers Allowances,A61165,Housing Benefit,42245979,10/08/2023,202305,257,REDACTED PERSONAL INFORMATION,REDACTED PERSONAL INFORMATION
AD Regulated Provision,Revenue Budgets,Childrens Services,Children in Care Disability,A0511,Care Leavers Allowances,A61165,Housing Benefit,42245980,10/08/2023,202305,360,REDACTED PERSONAL INFORMATION,REDACTED PERSONAL INFORMATION
AD Regulated Provision,Revenue Budgets,Childrens Services,Children in Care Disability,A0511,Care Leavers Allowances,A61165,Housing Benefit,42245983,10/08/2023,202305,257,REDACTED PERSONAL INFORMATION,REDACTED PERSONAL INFORMATION
AD Regulated Provision,Revenue Budgets,Childrens Services,Children in Care Disability,A0511,Care Leavers Allowances,A61165,Housing Benefit,42245985,10/08/2023,202305,257,REDACTED PERSONAL INFORMATION,REDACTED PERSONAL INFORMATION
AD Regulated Provision,Revenue Budgets,Childrens Services,Children in Care Disability,A0511,Care Leavers Allowances,A61165,Housing Benefit,42245988,10/08/2023,202305,257,REDACTED PERSONAL INFORMATION,REDACTED PERSONAL INFORMATION
AD Regulated Provision,Revenue Budgets,Childrens Services,Children in Care Disability,A0511,Care Leavers Allowances,A61165,Housing Benefit,42245992,10/08/2023,202305,257,REDACTED PERSONAL INFORMATION,REDACTED PERSONAL INFORMATION
AD Regulated Provision,Revenue Budgets,Childrens Services,Children in Care Disability,A0511,Care Leavers Allowances,A61165,Housing Benefit,42245993,10/08/2023,202305,257,REDACTED PERSONAL INFORMATION,REDACTED PERSONAL INFORMATION
AD Regulated Provision,Revenue Budgets,Childrens Services,Children in Care Disability,A0511,Care Leavers Allowances,A61163,Driving Lessons,42246002,10/08/2023,202305,374,REDACTED PERSONAL INFORMATION,REDACTED PERSONAL INFORMATION
AD Regulated Provision,Revenue Budgets,Childrens Services,Children in Care Disability,A0517,Direct Payments Scheme,A56000,Other Establishments,42246059,10/08/2023,202305,398.19,REDACTED PERSONAL INFORMATION,REDACTED PERSONAL INFORMATION
AD Regulated Provision,Revenue Budgets,Childrens Services,Children in Care Disability,A0517,Direct Payments Scheme,A56000,Other Establishments,42246060,10/08/2023,202305,305.31,REDACTED PERSONAL INFORMATION,REDACTED PERSONAL INFORMATION
AD Regulated Provision,Revenue Budgets,Childrens Services,Children in Care Disability,A0517,Direct Payments Scheme,A56000,Other Establishments,42246066,10/08/2023,202305,384.45,REDACTED PERSONAL INFORMATION,REDACTED PERSONAL INFORMATION
AD Regulated Provision,Revenue Budgets,Childrens Services,Children in Care Disability,A0517,Direct Payments Scheme,A56000,Other Establishments,42246066,10/08/2023,202305,447.07,REDACTED PERSONAL INFORMATION,REDACTED PERSONAL INFORMATION
AD Regulated Provision,Revenue Budgets,Childrens Services,Children in Care Disability,A0517,Direct Payments Scheme,A56000,Other Establishments,42246066,10/08/2023,202305,967.3,REDACTED PERSONAL INFORMATION,REDACTED PERSONAL INFORMATION
AD Regulated Provision,Revenue Budgets,Childrens Services,Children in Care Disability,A0517,Direct Payments Scheme,A56000,Other Establishments,42246066,10/08/2023,202305,"1,779.44",REDACTED PERSONAL INFORMATION,REDACTED PERSONAL INFORMATION
AD Regulated Provision,Revenue Budgets,Childrens Services,Fostering and Adoption,A0484,Mainstream Carer Payments,A61166,Contract Plus,42246087,10/08/2023,202305,315,REDACTED PERSONAL INFORMATION,REDACTED PERSONAL INFORMATION
AD Regulated Provision,Revenue Budgets,Childrens Services,Fostering and Adoption,A0489,Adoption Support,A61120,Adoptions Allowances,42246091,10/08/2023,202305,370.74,REDACTED PERSONAL INFORMATION,REDACTED PERSONAL INFORMATION
AD Regulated Provision,Revenue Budgets,Childrens Services,Fostering and Adoption,A0489,Adoption Support,A61120,Adoptions Allowances,42246091,10/08/2023,202305,370.74,REDACTED PERSONAL INFORMATION,REDACTED PERSONAL INFORMATION
AD Regulated Provision,Revenue Budgets,Childrens Services,Fostering and Adoption,A0484,Mainstream Carer Payments,A61166,Contract Plus,42246093,10/08/2023,202305,315,REDACTED PERSONAL INFORMATION,REDACTED PERSONAL INFORMATION
AD Regulated Provision,Revenue Budgets,Childrens Services,Fostering and Adoption,A0484,Mainstream Carer Payments,A61166,Contract Plus,42246155,10/08/2023,202305,315,REDACTED PERSONAL INFORMATION,REDACTED PERSONAL INFORMATION
AD Regulated Provision,Revenue Budgets,Childrens Services,Fostering and Adoption,A0489,Adoption Support,A61120,Adoptions Allowances,42246174,10/08/2023,202305,435.69,REDACTED PERSONAL INFORMATION,REDACTED PERSONAL INFORMATION
AD Regulated Provision,Revenue Budgets,Childrens Services,Fostering and Adoption,A0486,Residence  Or Special G'Ship,A61015,Fostering and Guardianship Allowances,42246237,10/08/2023,202305,364.08,REDACTED PERSONAL INFORMATION,REDACTED PERSONAL INFORMATION
AD Regulated Provision,Revenue Budgets,Childrens Services,Fostering and Adoption,A0486,Residence  Or Special G'Ship,A61015,Fostering and Guardianship Allowances,42246237,10/08/2023,202305,364.08,REDACTED PERSONAL INFORMATION,REDACTED PERSONAL INFORMATION
AD Regulated Provision,Revenue Budgets,Childrens Services,Fostering and Adoption,A0484,Mainstream Carer Payments,A61166,Contract Plus,42246242,10/08/2023,202305,315,REDACTED PERSONAL INFORMATION,REDACTED PERSONAL INFORMATION
AD Regulated Provision,Revenue Budgets,Childrens Services,Fostering and Adoption,A0484,Mainstream Carer Payments,A61166,Contract Plus,42246261,10/08/2023,202305,315,REDACTED PERSONAL INFORMATION,REDACTED PERSONAL INFORMATION
AD Regulated Provision,Revenue Budgets,Childrens Services,Fostering and Adoption,A0484,Mainstream Carer Payments,A61166,Contract Plus,42246262,10/08/2023,202305,315,REDACTED PERSONAL INFORMATION,REDACTED PERSONAL INFORMATION
AD Regulated Provision,Revenue Budgets,Childrens Services,Fostering and Adoption,A0484,Mainstream Carer Payments,A57205,Child Care Payments,42246263,10/08/2023,202305,711.58,REDACTED PERSONAL INFORMATION,REDACTED PERSONAL INFORMATION
AD Regulated Provision,Revenue Budgets,Childrens Services,Fostering and Adoption,A0484,Mainstream Carer Payments,A61166,Contract Plus,42246264,10/08/2023,202305,315,REDACTED PERSONAL INFORMATION,REDACTED PERSONAL INFORMATION
AD Regulated Provision,Revenue Budgets,Childrens Services,Fostering and Adoption,A0484,Mainstream Carer Payments,A61166,Contract Plus,42246265,10/08/2023,202305,315,REDACTED PERSONAL INFORMATION,REDACTED PERSONAL INFORMATION
AD Regulated Provision,Revenue Budgets,Childrens Services,Fostering and Adoption,A0484,Mainstream Carer Payments,A61166,Contract Plus,42246266,10/08/2023,202305,315,REDACTED PERSONAL INFORMATION,REDACTED PERSONAL INFORMATION
AD Regulated Provision,Revenue Budgets,Childrens Services,Fostering and Adoption,A0484,Mainstream Carer Payments,A61159,Special Carer Payments,42246289,10/08/2023,202305,711.58,REDACTED PERSONAL INFORMATION,REDACTED PERSONAL INFORMATION
AD Regulated Provision,Revenue Budgets,Childrens Services,Fostering and Adoption,A0484,Mainstream Carer Payments,A61166,Contract Plus,42246300,10/08/2023,202305,315,REDACTED PERSONAL INFORMATION,REDACTED PERSONAL INFORMATION
AD Regulated Provision,Revenue Budgets,Childrens Services,Fostering and Adoption,A0484,Mainstream Carer Payments,A61166,Contract Plus,42246303,10/08/2023,202305,315,REDACTED PERSONAL INFORMATION,REDACTED PERSONAL INFORMATION
AD Regulated Provision,Revenue Budgets,Childrens Services,Fostering and Adoption,A0484,Mainstream Carer Payments,A61166,Contract Plus,42246307,10/08/2023,202305,315,REDACTED PERSONAL INFORMATION,REDACTED PERSONAL INFORMATION
AD Regulated Provision,Revenue Budgets,Childrens Services,Fostering and Adoption,A0489,Adoption Support,A61120,Adoptions Allowances,42246310,10/08/2023,202305,559.44,REDACTED PERSONAL INFORMATION,REDACTED PERSONAL INFORMATION
AD Regulated Provision,Revenue Budgets,Childrens Services,Fostering and Adoption,A0484,Mainstream Carer Payments,A61166,Contract Plus,42246316,10/08/2023,202305,315,REDACTED PERSONAL INFORMATION,REDACTED PERSONAL INFORMATION
AD Regulated Provision,Revenue Budgets,Childrens Services,Fostering and Adoption,A0484,Mainstream Carer Payments,A61166,Contract Plus,42246317,10/08/2023,202305,315,REDACTED PERSONAL INFORMATION,REDACTED PERSONAL INFORMATION
AD Regulated Provision,Revenue Budgets,Childrens Services,Fostering and Adoption,A0486,Residence  Or Special G'Ship,A61015,Fostering and Guardianship Allowances,42246321,10/08/2023,202305,357,REDACTED PERSONAL INFORMATION,REDACTED PERSONAL INFORMATION
AD Regulated Provision,Revenue Budgets,Childrens Services,Fostering and Adoption,A0486,Residence  Or Special G'Ship,A61015,Fostering and Guardianship Allowances,42246321,10/08/2023,202305,365.1,REDACTED PERSONAL INFORMATION,REDACTED PERSONAL INFORMATION
AD Regulated Provision,Revenue Budgets,Childrens Services,Fostering and Adoption,A0486,Residence  Or Special G'Ship,A61015,Fostering and Guardianship Allowances,42246345,10/08/2023,202305,420,REDACTED PERSONAL INFORMATION,REDACTED PERSONAL INFORMATION
AD Regulated Provision,Revenue Budgets,Childrens Services,Fostering and Adoption,A0486,Residence  Or Special G'Ship,A61015,Fostering and Guardianship Allowances,42246345,10/08/2023,202305,428.1,REDACTED PERSONAL INFORMATION,REDACTED PERSONAL INFORMATION
AD Regulated Provision,Revenue Budgets,Childrens Services,Fostering and Adoption,A0489,Adoption Support,A61120,Adoptions Allowances,42246348,10/08/2023,202305,886.58,REDACTED PERSONAL INFORMATION,REDACTED PERSONAL INFORMATION
AD Regulated Provision,Revenue Budgets,Childrens Services,Fostering and Adoption,A0484,Mainstream Carer Payments,A61166,Contract Plus,42246391,10/08/2023,202305,315,REDACTED PERSONAL INFORMATION,REDACTED PERSONAL INFORMATION
AD Regulated Provision,Revenue Budgets,Childrens Services,Fostering and Adoption,A0484,Mainstream Carer Payments,A57205,Child Care Payments,42246419,10/08/2023,202305,318,REDACTED PERSONAL INFORMATION,REDACTED PERSONAL INFORMATION
AD Regulated Provision,Revenue Budgets,Childrens Services,Fostering and Adoption,A0484,Mainstream Carer Payments,A61166,Contract Plus,42246460,10/08/2023,202305,315,REDACTED PERSONAL INFORMATION,REDACTED PERSONAL INFORMATION
AD Regulated Provision,Revenue Budgets,Childrens Services,Fostering and Adoption,A0486,Residence  Or Special G'Ship,A61015,Fostering and Guardianship Allowances,42246468,10/08/2023,202305,357,REDACTED PERSONAL INFORMATION,REDACTED PERSONAL INFORMATION
AD Regulated Provision,Revenue Budgets,Childrens Services,Fostering and Adoption,A0486,Residence  Or Special G'Ship,A61015,Fostering and Guardianship Allowances,42246468,10/08/2023,202305,357,REDACTED PERSONAL INFORMATION,REDACTED PERSONAL INFORMATION
AD Regulated Provision,Revenue Budgets,Childrens Services,Fostering and Adoption,A0486,Residence  Or Special G'Ship,A61015,Fostering and Guardianship Allowances,42246479,10/08/2023,202305,466,REDACTED PERSONAL INFORMATION,REDACTED PERSONAL INFORMATION
AD Regulated Provision,Revenue Budgets,Childrens Services,Fostering and Adoption,A0486,Residence  Or Special G'Ship,A61015,Fostering and Guardianship Allowances,42246480,10/08/2023,202305,357,REDACTED PERSONAL INFORMATION,REDACTED PERSONAL INFORMATION
AD Regulated Provision,Revenue Budgets,Childrens Services,Fostering and Adoption,A0486,Residence  Or Special G'Ship,A61015,Fostering and Guardianship Allowances,42246488,10/08/2023,202305,333,REDACTED PERSONAL INFORMATION,REDACTED PERSONAL INFORMATION
AD Regulated Provision,Revenue Budgets,Childrens Services,Fostering and Adoption,A0484,Mainstream Carer Payments,A57205,Child Care Payments,42246522,10/08/2023,202305,272.57,REDACTED PERSONAL INFORMATION,REDACTED PERSONAL INFORMATION
AD Regulated Provision,Revenue Budgets,Childrens Services,Fostering and Adoption,A0484,Mainstream Carer Payments,A61148,Setting Up,42246526,10/08/2023,202305,279,REDACTED PERSONAL INFORMATION,REDACTED PERSONAL INFORMATION
AD Regulated Provision,Revenue Budgets,Childrens Services,Fostering and Adoption,A0484,Mainstream Carer Payments,A61148,Setting Up,42246527,10/08/2023,202305,290,REDACTED PERSONAL INFORMATION,REDACTED PERSONAL INFORMATION
AD Regulated Provision,Revenue Budgets,Childrens Services,Fostering and Adoption,A0484,Mainstream Carer Payments,A57205,Child Care Payments,42246529,10/08/2023,202305,950,REDACTED PERSONAL INFORMATION,REDACTED PERSONAL INFORMATION
AD Regulated Provision,Revenue Budgets,Childrens Services,CS Commissioning Service,A0273,Agency Placement,A56000,Other Establishments,30140083,11/08/2023,202305,"22,762.45",1000489,Acorn Care & Education Ltd (Sales)
AD Regulated Provision,Revenue Budgets,Childrens Services,CS Commissioning Service,A0273,Agency Placement,A56000,Other Establishments,30140091,11/08/2023,202305,"13,684.29",1000489,Acorn Care & Education Ltd (Sales)
AD Regulated Provision,Revenue Budgets,Childrens Services,CS Commissioning Service,A0492,Agency Fostercare,A56000,Other Establishments,30138618,14/08/2023,202305,"4,089.21",101455,Foster Care Associates Limited
AD Regulated Provision,Revenue Budgets,Childrens Services,CS Commissioning Service,A0492,Agency Fostercare,A56000,Other Establishments,30138619,14/08/2023,202305,"3,915.61",101455,Foster Care Associates Limited
AD Regulated Provision,Revenue Budgets,Childrens Services,CS Commissioning Service,A0492,Agency Fostercare,A56000,Other Establishments,30138622,14/08/2023,202305,"3,915.61",101455,Foster Care Associates Limited
AD Regulated Provision,Revenue Budgets,Childrens Services,CS Commissioning Service,A0492,Agency Fostercare,A56000,Other Establishments,30138626,14/08/2023,202305,"4,089.21",101455,Foster Care Associates Limited
AD Regulated Provision,Revenue Budgets,Childrens Services,CS Commissioning Service,A0492,Agency Fostercare,A56000,Other Establishments,30138627,14/08/2023,202305,"4,089.21",101455,Foster Care Associates Limited
AD Regulated Provision,Revenue Budgets,Childrens Services,CS Commissioning Service,A0492,Agency Fostercare,A56000,Other Establishments,30138628,14/08/2023,202305,"4,089.21",101455,Foster Care Associates Limited
AD Regulated Provision,Revenue Budgets,Childrens Services,CS Commissioning Service,A0492,Agency Fostercare,A56000,Other Establishments,30138629,14/08/2023,202305,"4,089.21",101455,Foster Care Associates Limited
AD Regulated Provision,Revenue Budgets,Childrens Services,CS Commissioning Service,A0492,Agency Fostercare,A56000,Other Establishments,30138631,14/08/2023,202305,"4,089.21",101455,Foster Care Associates Limited
AD Regulated Provision,Revenue Budgets,Childrens Services,CS Commissioning Service,A0492,Agency Fostercare,A56000,Other Establishments,30138664,14/08/2023,202305,"4,089.21",101455,Foster Care Associates Limited
AD Regulated Provision,Revenue Budgets,Childrens Services,CS Commissioning Service,A0492,Agency Fostercare,A56000,Other Establishments,30138665,14/08/2023,202305,"4,202.05",101455,Foster Care Associates Limited
AD Regulated Provision,Revenue Budgets,Childrens Services,CS Commissioning Service,A0492,Agency Fostercare,A56000,Other Establishments,30138667,14/08/2023,202305,"4,005.20",101455,Foster Care Associates Limited
AD Regulated Provision,Revenue Budgets,Childrens Services,CS Commissioning Service,A0492,Agency Fostercare,A56000,Other Establishments,30138668,14/08/2023,202305,"3,482.72",101455,Foster Care Associates Limited
AD Regulated Provision,Revenue Budgets,Childrens Services,CS Commissioning Service,A0492,Agency Fostercare,A56000,Other Establishments,30138670,14/08/2023,202305,"4,661.51",101455,Foster Care Associates Limited
AD Regulated Provision,Revenue Budgets,Childrens Services,CS Commissioning Service,A0492,Agency Fostercare,A56000,Other Establishments,30138671,14/08/2023,202305,"3,915.61",101455,Foster Care Associates Limited
AD Regulated Provision,Revenue Budgets,Childrens Services,CS Commissioning Service,A0492,Agency Fostercare,A56000,Other Establishments,30138672,14/08/2023,202305,"3,915.61",101455,Foster Care Associates Limited
AD Regulated Provision,Revenue Budgets,Childrens Services,CS Commissioning Service,A0492,Agency Fostercare,A56000,Other Establishments,30138673,14/08/2023,202305,"4,202.36",101455,Foster Care Associates Limited
AD Regulated Provision,Revenue Budgets,Childrens Services,CS Commissioning Service,A0492,Agency Fostercare,A56000,Other Establishments,30138674,14/08/2023,202305,"3,598.81",101455,Foster Care Associates Limited
AD Regulated Provision,Revenue Budgets,Childrens Services,CS Commissioning Service,A0492,Agency Fostercare,A56000,Other Establishments,30138675,14/08/2023,202305,"3,598.81",101455,Foster Care Associates Limited
AD Regulated Provision,Revenue Budgets,Childrens Services,CS Commissioning Service,A0492,Agency Fostercare,A56000,Other Establishments,30138676,14/08/2023,202305,"3,876.45",101455,Foster Care Associates Limited
AD Regulated Provision,Revenue Budgets,Childrens Services,CS Commissioning Service,A0492,Agency Fostercare,A56000,Other Establishments,30138677,14/08/2023,202305,"4,202.36",101455,Foster Care Associates Limited
AD Regulated Provision,Revenue Budgets,Childrens Services,CS Commissioning Service,A0492,Agency Fostercare,A56000,Other Establishments,30138678,14/08/2023,202305,"-3,457.44",101455,Foster Care Associates Limited
AD Regulated Provision,Revenue Budgets,Childrens Services,CS Commissioning Service,A0492,Agency Fostercare,A56000,Other Establishments,30138679,14/08/2023,202305,"4,089.21",101455,Foster Care Associates Limited
AD Regulated Provision,Revenue Budgets,Childrens Services,CS Commissioning Service,A0492,Agency Fostercare,A56000,Other Establishments,30138680,14/08/2023,202305,"3,876.45",101455,Foster Care Associates Limited
AD Regulated Provision,Revenue Budgets,Childrens Services,CS Commissioning Service,A0492,Agency Fostercare,A56000,Other Establishments,30138681,14/08/2023,202305,"-3,457.44",101455,Foster Care Associates Limited
AD Regulated Provision,Revenue Budgets,Childrens Services,CS Commissioning Service,A0492,Agency Fostercare,A56000,Other Establishments,30138682,14/08/2023,202305,"3,598.81",101455,Foster Care Associates Limited
AD Regulated Provision,Revenue Budgets,Childrens Services,CS Commissioning Service,A0492,Agency Fostercare,A56000,Other Establishments,30138683,14/08/2023,202305,"3,482.72",101455,Foster Care Associates Limited
AD Regulated Provision,Revenue Budgets,Childrens Services,CS Commissioning Service,A0492,Agency Fostercare,A56000,Other Establishments,30138685,14/08/2023,202305,"4,005.20",101455,Foster Care Associates Limited
AD Regulated Provision,Revenue Budgets,Childrens Services,CS Commissioning Service,A0492,Agency Fostercare,A56000,Other Establishments,30138687,14/08/2023,202305,"3,915.61",101455,Foster Care Associates Limited
AD Regulated Provision,Revenue Budgets,Childrens Services,CS Commissioning Service,A0492,Agency Fostercare,A56000,Other Establishments,30138688,14/08/2023,202305,"-3,572.69",101455,Foster Care Associates Limited
AD Regulated Provision,Revenue Budgets,Childrens Services,CS Commissioning Service,A0492,Agency Fostercare,A56000,Other Establishments,30138689,14/08/2023,202305,"3,915.61",101455,Foster Care Associates Limited
AD Regulated Provision,Revenue Budgets,Childrens Services,CS Commissioning Service,A0492,Agency Fostercare,A56000,Other Establishments,30138691,14/08/2023,202305,"4,202.36",101455,Foster Care Associates Limited
AD Regulated Provision,Revenue Budgets,Childrens Services,CS Commissioning Service,A0492,Agency Fostercare,A56000,Other Establishments,30138692,14/08/2023,202305,"3,915.61",101455,Foster Care Associates Limited
AD Regulated Provision,Revenue Budgets,Childrens Services,CS Commissioning Service,A0492,Agency Fostercare,A56000,Other Establishments,30138693,14/08/2023,202305,"3,915.61",101455,Foster Care Associates Limited
AD Regulated Provision,Revenue Budgets,Childrens Services,CS Commissioning Service,A0492,Agency Fostercare,A56000,Other Establishments,30138695,14/08/2023,202305,"-3,572.69",101455,Foster Care Associates Limited
AD Regulated Provision,Revenue Budgets,Childrens Services,CS Commissioning Service,A0492,Agency Fostercare,A56000,Other Establishments,30138938,14/08/2023,202305,"4,045.19",1004752,Active Care Solutions Limited
AD Regulated Provision,Revenue Budgets,Childrens Services,CS Commissioning Service,A0492,Agency Fostercare,A56000,Other Establishments,30139988,14/08/2023,202305,"4,856.15",101455,Foster Care Associates Limited
AD Regulated Provision,Revenue Budgets,Childrens Services,CS Commissioning Service,A0492,Agency Fostercare,A56000,Other Establishments,30139989,14/08/2023,202305,"3,762.78",101455,Foster Care Associates Limited
AD Regulated Provision,Revenue Budgets,Childrens Services,CS Residential Homes,A0501,REDACTED PERSONAL INFORMATION,A40920,Purchase of Equipment,30138920,15/08/2023,202305,295.83,103135,David Bury Ltd
AD Regulated Provision,Revenue Budgets,Childrens Services,CS Residential Homes,A1713,REDACTED PERSONAL INFORMATION,A40920,Purchase of Equipment,30138942,15/08/2023,202305,977.5,100851,Humberside Sunblinds Ltd
AD Regulated Provision,Revenue Budgets,Childrens Services,CS Residential Homes,A0501,REDACTED PERSONAL INFORMATION,A44030,Provisions,30138973,15/08/2023,202305,307.31,PETTY CASH,PETTY CASH
AD Regulated Provision,Revenue Budgets,Childrens Services,CS Residential Homes,A0501,REDACTED PERSONAL INFORMATION,A49106,Holidays - Service Users,30138973,15/08/2023,202305,630.96,PETTY CASH,PETTY CASH
AD Regulated Provision,Revenue Budgets,Childrens Services,CS Residential Homes,A0501,REDACTED PERSONAL INFORMATION,A61145,Clothing,30138973,15/08/2023,202305,316.24,PETTY CASH,PETTY CASH
AD Regulated Provision,Revenue Budgets,Childrens Services,CS Residential Homes,A0501,REDACTED PERSONAL INFORMATION,A40920,Purchase of Equipment,30139511,17/08/2023,202305,747,1000434,Tough Furniture Limited
AD Regulated Provision,Revenue Budgets,Childrens Services,CS Residential Homes,A1757,REDACTED PERSONAL INFORMATION,A40920,Purchase of Equipment,30139747,17/08/2023,202305,298.12,PETTY CASH,PETTY CASH
AD Regulated Provision,Revenue Budgets,Childrens Services,CS Residential Homes,A1757,REDACTED PERSONAL INFORMATION,A44030,Provisions,30139747,17/08/2023,202305,756.67,PETTY CASH,PETTY CASH
AD Regulated Provision,Revenue Budgets,Childrens Services,CS Residential Homes,A1757,REDACTED PERSONAL INFORMATION,A61145,Clothing,30139747,17/08/2023,202305,267.35,PETTY CASH,PETTY CASH
AD Regulated Provision,Revenue Budgets,Childrens Services,CS Residential Homes,A0499,REDACTED PERSONAL INFORMATION,A44030,Provisions,30139922,17/08/2023,202305,397.08,PETTY CASH,PETTY CASH
AD Regulated Provision,Revenue Budgets,Childrens Services,CS Residential Homes,A0499,REDACTED PERSONAL INFORMATION,A49106,Holidays - Service Users,30139922,17/08/2023,202305,260.53,PETTY CASH,PETTY CASH
AD Regulated Provision,Revenue Budgets,Childrens Services,CS Residential Homes,A0499,REDACTED PERSONAL INFORMATION,A49107,Activities - Service Users,30139922,17/08/2023,202305,477.39,PETTY CASH,PETTY CASH
AD Regulated Provision,Revenue Budgets,Childrens Services,Children in Care Disability,A0517,Direct Payments Scheme,A56000,Other Establishments,42247640,17/08/2023,202305,398.19,REDACTED PERSONAL INFORMATION,REDACTED PERSONAL INFORMATION
AD Regulated Provision,Revenue Budgets,Childrens Services,Children in Care Disability,A0517,Direct Payments Scheme,A56000,Other Establishments,42247641,17/08/2023,202305,305.31,REDACTED PERSONAL INFORMATION,REDACTED PERSONAL INFORMATION
AD Regulated Provision,Revenue Budgets,Childrens Services,Children in Care Disability,A0517,Direct Payments Scheme,A56000,Other Establishments,42247649,17/08/2023,202305,384.45,REDACTED PERSONAL INFORMATION,REDACTED PERSONAL INFORMATION
AD Regulated Provision,Revenue Budgets,Childrens Services,Children in Care Disability,A0517,Direct Payments Scheme,A56000,Other Establishments,42247649,17/08/2023,202305,447.07,REDACTED PERSONAL INFORMATION,REDACTED PERSONAL INFORMATION
AD Regulated Provision,Revenue Budgets,Childrens Services,Children in Care Disability,A0511,Care Leavers Allowances,A61165,Housing Benefit,42247710,17/08/2023,202305,257,REDACTED PERSONAL INFORMATION,REDACTED PERSONAL INFORMATION
AD Regulated Provision,Revenue Budgets,Childrens Services,Children in Care Disability,A0511,Care Leavers Allowances,A61165,Housing Benefit,42247712,17/08/2023,202305,257,REDACTED PERSONAL INFORMATION,REDACTED PERSONAL INFORMATION
AD Regulated Provision,Revenue Budgets,Childrens Services,Children in Care Disability,A0511,Care Leavers Allowances,A61165,Housing Benefit,42247713,17/08/2023,202305,257,REDACTED PERSONAL INFORMATION,REDACTED PERSONAL INFORMATION
AD Regulated Provision,Revenue Budgets,Childrens Services,Children in Care Disability,A0511,Care Leavers Allowances,A61165,Housing Benefit,42247716,17/08/2023,202305,257,REDACTED PERSONAL INFORMATION,REDACTED PERSONAL INFORMATION
AD Regulated Provision,Revenue Budgets,Childrens Services,Children in Care Disability,A0511,Care Leavers Allowances,A61165,Housing Benefit,42247717,17/08/2023,202305,360,REDACTED PERSONAL INFORMATION,REDACTED PERSONAL INFORMATION
AD Regulated Provision,Revenue Budgets,Childrens Services,Children in Care Disability,A0511,Care Leavers Allowances,A61165,Housing Benefit,42247722,17/08/2023,202305,257,REDACTED PERSONAL INFORMATION,REDACTED PERSONAL INFORMATION
AD Regulated Provision,Revenue Budgets,Childrens Services,Children in Care Disability,A0511,Care Leavers Allowances,A61165,Housing Benefit,42247723,17/08/2023,202305,257,REDACTED PERSONAL INFORMATION,REDACTED PERSONAL INFORMATION
AD Regulated Provision,Revenue Budgets,Childrens Services,Children in Care Disability,A0511,Care Leavers Allowances,A61165,Housing Benefit,42247724,17/08/2023,202305,257,REDACTED PERSONAL INFORMATION,REDACTED PERSONAL INFORMATION
AD Regulated Provision,Revenue Budgets,Childrens Services,Children in Care Disability,A0511,Care Leavers Allowances,A61152,Leaving Care Grant,42247729,17/08/2023,202305,347.49,REDACTED PERSONAL INFORMATION,REDACTED PERSONAL INFORMATION
AD Regulated Provision,Revenue Budgets,Childrens Services,Fostering and Adoption,A0484,Mainstream Carer Payments,A61166,Contract Plus,42247748,17/08/2023,202305,315,REDACTED PERSONAL INFORMATION,REDACTED PERSONAL INFORMATION
AD Regulated Provision,Revenue Budgets,Childrens Services,Fostering and Adoption,A0489,Adoption Support,A61120,Adoptions Allowances,42247752,17/08/2023,202305,370.74,REDACTED PERSONAL INFORMATION,REDACTED PERSONAL INFORMATION
AD Regulated Provision,Revenue Budgets,Childrens Services,Fostering and Adoption,A0489,Adoption Support,A61120,Adoptions Allowances,42247752,17/08/2023,202305,370.74,REDACTED PERSONAL INFORMATION,REDACTED PERSONAL INFORMATION
AD Regulated Provision,Revenue Budgets,Childrens Services,Fostering and Adoption,A0484,Mainstream Carer Payments,A61166,Contract Plus,42247754,17/08/2023,202305,315,REDACTED PERSONAL INFORMATION,REDACTED PERSONAL INFORMATION
AD Regulated Provision,Revenue Budgets,Childrens Services,Fostering and Adoption,A0484,Mainstream Carer Payments,A61166,Contract Plus,42247816,17/08/2023,202305,315,REDACTED PERSONAL INFORMATION,REDACTED PERSONAL INFORMATION
AD Regulated Provision,Revenue Budgets,Childrens Services,Fostering and Adoption,A0486,Residence  Or Special G'Ship,A61015,Fostering and Guardianship Allowances,42247898,17/08/2023,202305,364.08,REDACTED PERSONAL INFORMATION,REDACTED PERSONAL INFORMATION
AD Regulated Provision,Revenue Budgets,Childrens Services,Fostering and Adoption,A0486,Residence  Or Special G'Ship,A61015,Fostering and Guardianship Allowances,42247898,17/08/2023,202305,364.08,REDACTED PERSONAL INFORMATION,REDACTED PERSONAL INFORMATION
AD Regulated Provision,Revenue Budgets,Childrens Services,Fostering and Adoption,A0484,Mainstream Carer Payments,A61166,Contract Plus,42247903,17/08/2023,202305,315,REDACTED PERSONAL INFORMATION,REDACTED PERSONAL INFORMATION
AD Regulated Provision,Revenue Budgets,Childrens Services,Fostering and Adoption,A0484,Mainstream Carer Payments,A61115,Holiday Allowances,42247909,17/08/2023,202305,318,REDACTED PERSONAL INFORMATION,REDACTED PERSONAL INFORMATION
AD Regulated Provision,Revenue Budgets,Childrens Services,Fostering and Adoption,A0484,Mainstream Carer Payments,A61115,Holiday Allowances,42247909,17/08/2023,202305,398,REDACTED PERSONAL INFORMATION,REDACTED PERSONAL INFORMATION
AD Regulated Provision,Revenue Budgets,Childrens Services,Fostering and Adoption,A0484,Mainstream Carer Payments,A61166,Contract Plus,42247922,17/08/2023,202305,315,REDACTED PERSONAL INFORMATION,REDACTED PERSONAL INFORMATION
AD Regulated Provision,Revenue Budgets,Childrens Services,Fostering and Adoption,A0484,Mainstream Carer Payments,A61166,Contract Plus,42247923,17/08/2023,202305,315,REDACTED PERSONAL INFORMATION,REDACTED PERSONAL INFORMATION
AD Regulated Provision,Revenue Budgets,Childrens Services,Fostering and Adoption,A0484,Mainstream Carer Payments,A57205,Child Care Payments,42247924,17/08/2023,202305,711.58,REDACTED PERSONAL INFORMATION,REDACTED PERSONAL INFORMATION
AD Regulated Provision,Revenue Budgets,Childrens Services,Fostering and Adoption,A0484,Mainstream Carer Payments,A61166,Contract Plus,42247925,17/08/2023,202305,315,REDACTED PERSONAL INFORMATION,REDACTED PERSONAL INFORMATION
AD Regulated Provision,Revenue Budgets,Childrens Services,Fostering and Adoption,A0484,Mainstream Carer Payments,A61166,Contract Plus,42247926,17/08/2023,202305,315,REDACTED PERSONAL INFORMATION,REDACTED PERSONAL INFORMATION
AD Regulated Provision,Revenue Budgets,Childrens Services,Fostering and Adoption,A0484,Mainstream Carer Payments,A61166,Contract Plus,42247927,17/08/2023,202305,315,REDACTED PERSONAL INFORMATION,REDACTED PERSONAL INFORMATION
AD Regulated Provision,Revenue Budgets,Childrens Services,Fostering and Adoption,A0484,Mainstream Carer Payments,A61150,Additional Cost,42247949,17/08/2023,202305,350,REDACTED PERSONAL INFORMATION,REDACTED PERSONAL INFORMATION
AD Regulated Provision,Revenue Budgets,Childrens Services,Fostering and Adoption,A0484,Mainstream Carer Payments,A61159,Special Carer Payments,42247950,17/08/2023,202305,711.58,REDACTED PERSONAL INFORMATION,REDACTED PERSONAL INFORMATION
AD Regulated Provision,Revenue Budgets,Childrens Services,Fostering and Adoption,A0484,Mainstream Carer Payments,A61166,Contract Plus,42247960,17/08/2023,202305,315,REDACTED PERSONAL INFORMATION,REDACTED PERSONAL INFORMATION
AD Regulated Provision,Revenue Budgets,Childrens Services,Fostering and Adoption,A0484,Mainstream Carer Payments,A61166,Contract Plus,42247963,17/08/2023,202305,315,REDACTED PERSONAL INFORMATION,REDACTED PERSONAL INFORMATION
AD Regulated Provision,Revenue Budgets,Childrens Services,Fostering and Adoption,A0484,Mainstream Carer Payments,A61166,Contract Plus,42247967,17/08/2023,202305,315,REDACTED PERSONAL INFORMATION,REDACTED PERSONAL INFORMATION
AD Regulated Provision,Revenue Budgets,Childrens Services,Fostering and Adoption,A0489,Adoption Support,A61120,Adoptions Allowances,42247970,17/08/2023,202305,559.44,REDACTED PERSONAL INFORMATION,REDACTED PERSONAL INFORMATION
AD Regulated Provision,Revenue Budgets,Childrens Services,Fostering and Adoption,A0484,Mainstream Carer Payments,A61166,Contract Plus,42247976,17/08/2023,202305,315,REDACTED PERSONAL INFORMATION,REDACTED PERSONAL INFORMATION
AD Regulated Provision,Revenue Budgets,Childrens Services,Fostering and Adoption,A0484,Mainstream Carer Payments,A61166,Contract Plus,42247977,17/08/2023,202305,315,REDACTED PERSONAL INFORMATION,REDACTED PERSONAL INFORMATION
AD Regulated Provision,Revenue Budgets,Childrens Services,Fostering and Adoption,A0486,Residence  Or Special G'Ship,A61015,Fostering and Guardianship Allowances,42247981,17/08/2023,202305,357,REDACTED PERSONAL INFORMATION,REDACTED PERSONAL INFORMATION
AD Regulated Provision,Revenue Budgets,Childrens Services,Fostering and Adoption,A0486,Residence  Or Special G'Ship,A61015,Fostering and Guardianship Allowances,42247981,17/08/2023,202305,365.1,REDACTED PERSONAL INFORMATION,REDACTED PERSONAL INFORMATION
AD Regulated Provision,Revenue Budgets,Childrens Services,Fostering and Adoption,A0486,Residence  Or Special G'Ship,A61015,Fostering and Guardianship Allowances,42248005,17/08/2023,202305,420,REDACTED PERSONAL INFORMATION,REDACTED PERSONAL INFORMATION
AD Regulated Provision,Revenue Budgets,Childrens Services,Fostering and Adoption,A0486,Residence  Or Special G'Ship,A61015,Fostering and Guardianship Allowances,42248005,17/08/2023,202305,428.1,REDACTED PERSONAL INFORMATION,REDACTED PERSONAL INFORMATION
AD Regulated Provision,Revenue Budgets,Childrens Services,Fostering and Adoption,A0489,Adoption Support,A61120,Adoptions Allowances,42248008,17/08/2023,202305,886.58,REDACTED PERSONAL INFORMATION,REDACTED PERSONAL INFORMATION
AD Regulated Provision,Revenue Budgets,Childrens Services,Fostering and Adoption,A0484,Mainstream Carer Payments,A61166,Contract Plus,42248051,17/08/2023,202305,315,REDACTED PERSONAL INFORMATION,REDACTED PERSONAL INFORMATION
AD Regulated Provision,Revenue Budgets,Childrens Services,Fostering and Adoption,A0484,Mainstream Carer Payments,A57205,Child Care Payments,42248079,17/08/2023,202305,318,REDACTED PERSONAL INFORMATION,REDACTED PERSONAL INFORMATION
AD Regulated Provision,Revenue Budgets,Childrens Services,Fostering and Adoption,A0489,Adoption Support,A61150,Additional Cost,42248111,17/08/2023,202305,516,REDACTED PERSONAL INFORMATION,REDACTED PERSONAL INFORMATION
AD Regulated Provision,Revenue Budgets,Childrens Services,Fostering and Adoption,A0484,Mainstream Carer Payments,A61166,Contract Plus,42248121,17/08/2023,202305,315,REDACTED PERSONAL INFORMATION,REDACTED PERSONAL INFORMATION
AD Regulated Provision,Revenue Budgets,Childrens Services,Fostering and Adoption,A0486,Residence  Or Special G'Ship,A61015,Fostering and Guardianship Allowances,42248129,17/08/2023,202305,357,REDACTED PERSONAL INFORMATION,REDACTED PERSONAL INFORMATION
AD Regulated Provision,Revenue Budgets,Childrens Services,Fostering and Adoption,A0486,Residence  Or Special G'Ship,A61015,Fostering and Guardianship Allowances,42248129,17/08/2023,202305,357,REDACTED PERSONAL INFORMATION,REDACTED PERSONAL INFORMATION
AD Regulated Provision,Revenue Budgets,Childrens Services,Fostering and Adoption,A0486,Residence  Or Special G'Ship,A61015,Fostering and Guardianship Allowances,42248140,17/08/2023,202305,466,REDACTED PERSONAL INFORMATION,REDACTED PERSONAL INFORMATION
AD Regulated Provision,Revenue Budgets,Childrens Services,Fostering and Adoption,A0486,Residence  Or Special G'Ship,A61015,Fostering and Guardianship Allowances,42248141,17/08/2023,202305,357,REDACTED PERSONAL INFORMATION,REDACTED PERSONAL INFORMATION
AD Regulated Provision,Revenue Budgets,Childrens Services,Fostering and Adoption,A0486,Residence  Or Special G'Ship,A61015,Fostering and Guardianship Allowances,42248150,17/08/2023,202305,333,REDACTED PERSONAL INFORMATION,REDACTED PERSONAL INFORMATION
AD Regulated Provision,Revenue Budgets,Childrens Services,Fostering and Adoption,A0489,Adoption Support,A61148,Setting Up,42248188,17/08/2023,202305,350,REDACTED PERSONAL INFORMATION,REDACTED PERSONAL INFORMATION
AD Regulated Provision,Revenue Budgets,Childrens Services,Fostering and Adoption,A0489,Adoption Support,A61150,Additional Cost,42248188,17/08/2023,202305,481.25,REDACTED PERSONAL INFORMATION,REDACTED PERSONAL INFORMATION
AD Regulated Provision,Revenue Budgets,Childrens Services,Fostering and Adoption,A0489,Adoption Support,A61150,Additional Cost,42248188,17/08/2023,202305,515.21,REDACTED PERSONAL INFORMATION,REDACTED PERSONAL INFORMATION
AD Regulated Provision,Revenue Budgets,Childrens Services,CS Commissioning Service,A0273,Agency Placement,A56000,Other Establishments,30139889,18/08/2023,202305,"25,548.83",100406,Kisimul School
AD Regulated Provision,Revenue Budgets,Childrens Services,CS Residential Homes,A0504,REDACTED PERSONAL INFORMATION,A40920,Purchase of Equipment,30139891,18/08/2023,202305,361.63,103135,David Bury Ltd
AD Regulated Provision,Revenue Budgets,Childrens Services,CS Commissioning Service,A0273,Agency Placement,A56000,Other Establishments,30139892,18/08/2023,202305,"27,593.59",100406,Kisimul School
AD Regulated Provision,Revenue Budgets,Childrens Services,CS Commissioning Service,A0273,Agency Placement,A56000,Other Establishments,30139895,18/08/2023,202305,"27,529.90",100406,Kisimul School
AD Regulated Provision,Revenue Budgets,Childrens Services,CS Residential Homes,A0504,REDACTED PERSONAL INFORMATION,A40920,Purchase of Equipment,30139887,19/08/2023,202305,"1,140.82",103135,David Bury Ltd
AD Regulated Provision,Revenue Budgets,Childrens Services,Head Of Corporate Parenting,A1826,Therapeutic Services,A56000,Other Establishments,30139984,19/08/2023,202305,"36,750.00",122809,Barnardos
AD Regulated Provision,Revenue Budgets,Childrens Services,Fostering and Adoption,A0490,Fostering And Adoption Team,A49105,Other Supplies & Services,30140141,22/08/2023,202305,580,1007050,Mandy Worsley
AD Regulated Provision,Revenue Budgets,Childrens Services,CS Residential Homes,A0504,REDACTED PERSONAL INFORMATION,A40920,Purchase of Equipment,30140171,22/08/2023,202305,490.42,103262,Carpets Galore
AD Regulated Provision,Revenue Budgets,Childrens Services,CS Commissioning Service,A0273,Agency Placement,A56000,Other Establishments,30140226,22/08/2023,202305,"1,672.26",145195,Keys Pce Limited
AD Regulated Provision,Revenue Budgets,Childrens Services,Fostering and Adoption,A0490,Fostering And Adoption Team,A11005,Agency Supply Staff,30140227,22/08/2023,202305,"2,127.50",120715,Nonstop Consulting Limited
AD Regulated Provision,Revenue Budgets,Childrens Services,Fostering and Adoption,A0490,Fostering And Adoption Team,A49105,Other Supplies & Services,30141355,23/08/2023,202305,300,1007052,Maria Chase
AD Regulated Provision,Revenue Budgets,Childrens Services,Children in Care Disability,A0517,Direct Payments Scheme,A56000,Other Establishments,42248422,24/08/2023,202305,398.19,REDACTED PERSONAL INFORMATION,REDACTED PERSONAL INFORMATION
AD Regulated Provision,Revenue Budgets,Childrens Services,Children in Care Disability,A0517,Direct Payments Scheme,A56000,Other Establishments,42248423,24/08/2023,202305,305.31,REDACTED PERSONAL INFORMATION,REDACTED PERSONAL INFORMATION
AD Regulated Provision,Revenue Budgets,Childrens Services,Children in Care Disability,A0517,Direct Payments Scheme,A56000,Other Establishments,42248429,24/08/2023,202305,384.45,REDACTED PERSONAL INFORMATION,REDACTED PERSONAL INFORMATION
AD Regulated Provision,Revenue Budgets,Childrens Services,Children in Care Disability,A0517,Direct Payments Scheme,A56000,Other Establishments,42248429,24/08/2023,202305,447.07,REDACTED PERSONAL INFORMATION,REDACTED PERSONAL INFORMATION
AD Regulated Provision,Revenue Budgets,Childrens Services,Children in Care Disability,A0511,Care Leavers Allowances,A61165,Housing Benefit,42248461,24/08/2023,202305,257,REDACTED PERSONAL INFORMATION,REDACTED PERSONAL INFORMATION
AD Regulated Provision,Revenue Budgets,Childrens Services,Children in Care Disability,A0511,Care Leavers Allowances,A61165,Housing Benefit,42248463,24/08/2023,202305,257,REDACTED PERSONAL INFORMATION,REDACTED PERSONAL INFORMATION
AD Regulated Provision,Revenue Budgets,Childrens Services,Children in Care Disability,A0511,Care Leavers Allowances,A61165,Housing Benefit,42248464,24/08/2023,202305,360,REDACTED PERSONAL INFORMATION,REDACTED PERSONAL INFORMATION
AD Regulated Provision,Revenue Budgets,Childrens Services,Children in Care Disability,A0511,Care Leavers Allowances,A61165,Housing Benefit,42248468,24/08/2023,202305,257,REDACTED PERSONAL INFORMATION,REDACTED PERSONAL INFORMATION
AD Regulated Provision,Revenue Budgets,Childrens Services,Children in Care Disability,A0511,Care Leavers Allowances,A61165,Housing Benefit,42248473,24/08/2023,202305,257,REDACTED PERSONAL INFORMATION,REDACTED PERSONAL INFORMATION
AD Regulated Provision,Revenue Budgets,Childrens Services,Children in Care Disability,A0511,Care Leavers Allowances,A61165,Housing Benefit,42248474,24/08/2023,202305,257,REDACTED PERSONAL INFORMATION,REDACTED PERSONAL INFORMATION
AD Regulated Provision,Revenue Budgets,Childrens Services,Children in Care Disability,A0511,Care Leavers Allowances,A61165,Housing Benefit,42248475,24/08/2023,202305,257,REDACTED PERSONAL INFORMATION,REDACTED PERSONAL INFORMATION
AD Regulated Provision,Revenue Budgets,Childrens Services,Children in Care Disability,A0511,Care Leavers Allowances,A61165,Housing Benefit,42248479,24/08/2023,202305,257,REDACTED PERSONAL INFORMATION,REDACTED PERSONAL INFORMATION
AD Regulated Provision,Revenue Budgets,Childrens Services,Fostering and Adoption,A0484,Mainstream Carer Payments,A61166,Contract Plus,42248531,24/08/2023,202305,315,REDACTED PERSONAL INFORMATION,REDACTED PERSONAL INFORMATION
AD Regulated Provision,Revenue Budgets,Childrens Services,Fostering and Adoption,A0489,Adoption Support,A61120,Adoptions Allowances,42248535,24/08/2023,202305,370.74,REDACTED PERSONAL INFORMATION,REDACTED PERSONAL INFORMATION
AD Regulated Provision,Revenue Budgets,Childrens Services,Fostering and Adoption,A0489,Adoption Support,A61120,Adoptions Allowances,42248535,24/08/2023,202305,370.74,REDACTED PERSONAL INFORMATION,REDACTED PERSONAL INFORMATION
AD Regulated Provision,Revenue Budgets,Childrens Services,Fostering and Adoption,A0484,Mainstream Carer Payments,A61166,Contract Plus,42248537,24/08/2023,202305,315,REDACTED PERSONAL INFORMATION,REDACTED PERSONAL INFORMATION
AD Regulated Provision,Revenue Budgets,Childrens Services,Fostering and Adoption,A0484,Mainstream Carer Payments,A61166,Contract Plus,42248598,24/08/2023,202305,315,REDACTED PERSONAL INFORMATION,REDACTED PERSONAL INFORMATION
AD Regulated Provision,Revenue Budgets,Childrens Services,Fostering and Adoption,A0486,Residence  Or Special G'Ship,A61015,Fostering and Guardianship Allowances,42248680,24/08/2023,202305,364.08,REDACTED PERSONAL INFORMATION,REDACTED PERSONAL INFORMATION
AD Regulated Provision,Revenue Budgets,Childrens Services,Fostering and Adoption,A0486,Residence  Or Special G'Ship,A61015,Fostering and Guardianship Allowances,42248680,24/08/2023,202305,364.08,REDACTED PERSONAL INFORMATION,REDACTED PERSONAL INFORMATION
AD Regulated Provision,Revenue Budgets,Childrens Services,Fostering and Adoption,A0484,Mainstream Carer Payments,A61166,Contract Plus,42248685,24/08/2023,202305,315,REDACTED PERSONAL INFORMATION,REDACTED PERSONAL INFORMATION
AD Regulated Provision,Revenue Budgets,Childrens Services,Fostering and Adoption,A0484,Mainstream Carer Payments,A61115,Holiday Allowances,42248693,24/08/2023,202305,318,REDACTED PERSONAL INFORMATION,REDACTED PERSONAL INFORMATION
AD Regulated Provision,Revenue Budgets,Childrens Services,Fostering and Adoption,A0484,Mainstream Carer Payments,A61115,Holiday Allowances,42248693,24/08/2023,202305,398,REDACTED PERSONAL INFORMATION,REDACTED PERSONAL INFORMATION
AD Regulated Provision,Revenue Budgets,Childrens Services,Fostering and Adoption,A0484,Mainstream Carer Payments,A61166,Contract Plus,42248704,24/08/2023,202305,315,REDACTED PERSONAL INFORMATION,REDACTED PERSONAL INFORMATION
AD Regulated Provision,Revenue Budgets,Childrens Services,Fostering and Adoption,A0484,Mainstream Carer Payments,A61166,Contract Plus,42248705,24/08/2023,202305,315,REDACTED PERSONAL INFORMATION,REDACTED PERSONAL INFORMATION
AD Regulated Provision,Revenue Budgets,Childrens Services,Fostering and Adoption,A0484,Mainstream Carer Payments,A57205,Child Care Payments,42248706,24/08/2023,202305,711.58,REDACTED PERSONAL INFORMATION,REDACTED PERSONAL INFORMATION
AD Regulated Provision,Revenue Budgets,Childrens Services,Fostering and Adoption,A0484,Mainstream Carer Payments,A61166,Contract Plus,42248707,24/08/2023,202305,315,REDACTED PERSONAL INFORMATION,REDACTED PERSONAL INFORMATION
AD Regulated Provision,Revenue Budgets,Childrens Services,Fostering and Adoption,A0484,Mainstream Carer Payments,A61166,Contract Plus,42248708,24/08/2023,202305,315,REDACTED PERSONAL INFORMATION,REDACTED PERSONAL INFORMATION
AD Regulated Provision,Revenue Budgets,Childrens Services,Fostering and Adoption,A0484,Mainstream Carer Payments,A61166,Contract Plus,42248709,24/08/2023,202305,315,REDACTED PERSONAL INFORMATION,REDACTED PERSONAL INFORMATION
AD Regulated Provision,Revenue Budgets,Childrens Services,Fostering and Adoption,A0484,Mainstream Carer Payments,A61159,Special Carer Payments,42248731,24/08/2023,202305,711.58,REDACTED PERSONAL INFORMATION,REDACTED PERSONAL INFORMATION
AD Regulated Provision,Revenue Budgets,Childrens Services,Fostering and Adoption,A0484,Mainstream Carer Payments,A61166,Contract Plus,42248741,24/08/2023,202305,315,REDACTED PERSONAL INFORMATION,REDACTED PERSONAL INFORMATION
AD Regulated Provision,Revenue Budgets,Childrens Services,Fostering and Adoption,A0484,Mainstream Carer Payments,A61166,Contract Plus,42248744,24/08/2023,202305,315,REDACTED PERSONAL INFORMATION,REDACTED PERSONAL INFORMATION
AD Regulated Provision,Revenue Budgets,Childrens Services,Fostering and Adoption,A0484,Mainstream Carer Payments,A61166,Contract Plus,42248748,24/08/2023,202305,315,REDACTED PERSONAL INFORMATION,REDACTED PERSONAL INFORMATION
AD Regulated Provision,Revenue Budgets,Childrens Services,Fostering and Adoption,A0489,Adoption Support,A61120,Adoptions Allowances,42248751,24/08/2023,202305,559.44,REDACTED PERSONAL INFORMATION,REDACTED PERSONAL INFORMATION
AD Regulated Provision,Revenue Budgets,Childrens Services,Fostering and Adoption,A0484,Mainstream Carer Payments,A61166,Contract Plus,42248757,24/08/2023,202305,315,REDACTED PERSONAL INFORMATION,REDACTED PERSONAL INFORMATION
AD Regulated Provision,Revenue Budgets,Childrens Services,Fostering and Adoption,A0484,Mainstream Carer Payments,A61166,Contract Plus,42248758,24/08/2023,202305,315,REDACTED PERSONAL INFORMATION,REDACTED PERSONAL INFORMATION
AD Regulated Provision,Revenue Budgets,Childrens Services,Fostering and Adoption,A0484,Mainstream Carer Payments,A61115,Holiday Allowances,42248760,24/08/2023,202305,466,REDACTED PERSONAL INFORMATION,REDACTED PERSONAL INFORMATION
AD Regulated Provision,Revenue Budgets,Childrens Services,Fostering and Adoption,A0484,Mainstream Carer Payments,A61115,Holiday Allowances,42248760,24/08/2023,202305,466,REDACTED PERSONAL INFORMATION,REDACTED PERSONAL INFORMATION
AD Regulated Provision,Revenue Budgets,Childrens Services,Fostering and Adoption,A0486,Residence  Or Special G'Ship,A61015,Fostering and Guardianship Allowances,42248762,24/08/2023,202305,357,REDACTED PERSONAL INFORMATION,REDACTED PERSONAL INFORMATION
AD Regulated Provision,Revenue Budgets,Childrens Services,Fostering and Adoption,A0486,Residence  Or Special G'Ship,A61015,Fostering and Guardianship Allowances,42248762,24/08/2023,202305,365.1,REDACTED PERSONAL INFORMATION,REDACTED PERSONAL INFORMATION
AD Regulated Provision,Revenue Budgets,Childrens Services,Fostering and Adoption,A0486,Residence  Or Special G'Ship,A61015,Fostering and Guardianship Allowances,42248785,24/08/2023,202305,420,REDACTED PERSONAL INFORMATION,REDACTED PERSONAL INFORMATION
AD Regulated Provision,Revenue Budgets,Childrens Services,Fostering and Adoption,A0486,Residence  Or Special G'Ship,A61015,Fostering and Guardianship Allowances,42248785,24/08/2023,202305,428.1,REDACTED PERSONAL INFORMATION,REDACTED PERSONAL INFORMATION
AD Regulated Provision,Revenue Budgets,Childrens Services,Fostering and Adoption,A0489,Adoption Support,A61120,Adoptions Allowances,42248788,24/08/2023,202305,886.58,REDACTED PERSONAL INFORMATION,REDACTED PERSONAL INFORMATION
AD Regulated Provision,Revenue Budgets,Childrens Services,Fostering and Adoption,A0484,Mainstream Carer Payments,A61166,Contract Plus,42248831,24/08/2023,202305,315,REDACTED PERSONAL INFORMATION,REDACTED PERSONAL INFORMATION
AD Regulated Provision,Revenue Budgets,Childrens Services,Fostering and Adoption,A0484,Mainstream Carer Payments,A57205,Child Care Payments,42248860,24/08/2023,202305,318,REDACTED PERSONAL INFORMATION,REDACTED PERSONAL INFORMATION
AD Regulated Provision,Revenue Budgets,Childrens Services,Fostering and Adoption,A0484,Mainstream Carer Payments,A61166,Contract Plus,42248901,24/08/2023,202305,315,REDACTED PERSONAL INFORMATION,REDACTED PERSONAL INFORMATION
AD Regulated Provision,Revenue Budgets,Childrens Services,Fostering and Adoption,A0486,Residence  Or Special G'Ship,A61015,Fostering and Guardianship Allowances,42248909,24/08/2023,202305,357,REDACTED PERSONAL INFORMATION,REDACTED PERSONAL INFORMATION
AD Regulated Provision,Revenue Budgets,Childrens Services,Fostering and Adoption,A0486,Residence  Or Special G'Ship,A61015,Fostering and Guardianship Allowances,42248909,24/08/2023,202305,357,REDACTED PERSONAL INFORMATION,REDACTED PERSONAL INFORMATION
AD Regulated Provision,Revenue Budgets,Childrens Services,Fostering and Adoption,A0484,Mainstream Carer Payments,A61115,Holiday Allowances,42248917,24/08/2023,202305,350,REDACTED PERSONAL INFORMATION,REDACTED PERSONAL INFORMATION
AD Regulated Provision,Revenue Budgets,Childrens Services,Fostering and Adoption,A0486,Residence  Or Special G'Ship,A61015,Fostering and Guardianship Allowances,42248920,24/08/2023,202305,466,REDACTED PERSONAL INFORMATION,REDACTED PERSONAL INFORMATION
AD Regulated Provision,Revenue Budgets,Childrens Services,Fostering and Adoption,A0486,Residence  Or Special G'Ship,A61015,Fostering and Guardianship Allowances,42248921,24/08/2023,202305,357,REDACTED PERSONAL INFORMATION,REDACTED PERSONAL INFORMATION
AD Regulated Provision,Revenue Budgets,Childrens Services,Fostering and Adoption,A0486,Residence  Or Special G'Ship,A61015,Fostering and Guardianship Allowances,42248930,24/08/2023,202305,333,REDACTED PERSONAL INFORMATION,REDACTED PERSONAL INFORMATION
AD Regulated Provision,Revenue Budgets,Childrens Services,Fostering and Adoption,A0489,Adoption Support,A61148,Setting Up,42248954,24/08/2023,202305,"1,050.00",REDACTED PERSONAL INFORMATION,REDACTED PERSONAL INFORMATION
AD Regulated Provision,Revenue Budgets,Childrens Services,CS Commissioning Service,A0273,Agency Placement,A56000,Other Establishments,30140961,25/08/2023,202305,"21,649.74",145195,Keys Pce Limited
AD Regulated Provision,Revenue Budgets,Childrens Services,CS Commissioning Service,A0273,Agency Placement,A56000,Other Establishments,30140965,25/08/2023,202305,"21,649.74",145195,Keys Pce Limited
AD Regulated Provision,Revenue Budgets,Childrens Services,CS Commissioning Service,A0492,Agency Fostercare,A56000,Other Establishments,30141012,25/08/2023,202305,803.25,132099,Five Rivers Childcare Ltd
AD Regulated Provision,Revenue Budgets,Childrens Services,CS Commissioning Service,A0492,Agency Fostercare,A56000,Other Establishments,30141088,28/08/2023,202305,"3,817.34",150831,Affinity Fostering
AD Regulated Provision,Revenue Budgets,Childrens Services,Fostering and Adoption,A0490,Fostering And Adoption Team,A11005,Agency Supply Staff,30141217,29/08/2023,202305,"2,127.50",120715,Nonstop Consulting Limited
AD Regulated Provision,Revenue Budgets,Childrens Services,CS Commissioning Service,A0492,Agency Fostercare,A56000,Other Establishments,30141430,30/08/2023,202305,"3,776.54",145485,Fosterplus Ltd
AD Regulated Provision,Revenue Budgets,Childrens Services,CS Commissioning Service,A0492,Agency Fostercare,A56000,Other Establishments,30141433,30/08/2023,202305,"4,116.49",145485,Fosterplus Ltd
AD Regulated Provision,Revenue Budgets,Childrens Services,CS Commissioning Service,A0492,Agency Fostercare,A56000,Other Establishments,30137890,31/08/2023,202305,"4,976.12",144562,Unity Foster Care Ltd
AD Regulated Provision,Revenue Budgets,Childrens Services,CS Commissioning Service,A0492,Agency Fostercare,A56000,Other Establishments,30137891,31/08/2023,202305,"3,156.11",144562,Unity Foster Care Ltd
AD Regulated Provision,Revenue Budgets,Childrens Services,CS Commissioning Service,A0492,Agency Fostercare,A56000,Other Establishments,30137894,31/08/2023,202305,"3,253.76",144562,Unity Foster Care Ltd
AD Regulated Provision,Revenue Budgets,Childrens Services,CS Commissioning Service,A0492,Agency Fostercare,A56000,Other Establishments,30137903,31/08/2023,202305,"3,321.96",144562,Unity Foster Care Ltd
AD Regulated Provision,Revenue Budgets,Childrens Services,CS Commissioning Service,A0492,Agency Fostercare,A56000,Other Establishments,30139923,31/08/2023,202305,"3,343.35",144562,Unity Foster Care Ltd
AD Regulated Provision,Revenue Budgets,Childrens Services,CS Commissioning Service,A0492,Agency Fostercare,A56000,Other Establishments,30141821,01/09/2023,202305,"3,439.80",143409,Family Fostercare Ltd
AD Regulated Provision,Revenue Budgets,Childrens Services,CS Commissioning Service,A0492,Agency Fostercare,A56000,Other Establishments,30141824,01/09/2023,202305,"3,439.80",143409,Family Fostercare Ltd
Adult Services,Revenue Budgets,Adult Services,Assisted Living Centre,A0764,Assisted Living Centre,A40920,Purchase of Equipment,30137626,06/06/2023,202305,576.73,119507,Prism Medical Uk Ltd
Adult Services,Revenue Budgets,Adult Services,Assisted Living Centre,A0764,Assisted Living Centre,A40920,Purchase of Equipment,30141097,08/06/2023,202305,"3,344.67",139184,Ambre-Stone Ltd
Adult Services,Revenue Budgets,Adult Services,Assisted Living Centre,A0764,Assisted Living Centre,A40080,Health & Safety Equipment,30140100,15/06/2023,202305,"3,000.00",1006670,Apollo Healthcare Technologies Limited
Adult Services,Revenue Budgets,Adult Services,Assisted Living Centre,A0764,Assisted Living Centre,A40080,Health & Safety Equipment,30136126,01/08/2023,202305,490.2,101627,Drive Devilbiss Healthcare Ltd
Adult Services,Revenue Budgets,Adult Services,Assisted Living Centre,A0764,Assisted Living Centre,A40920,Purchase of Equipment,30138520,01/08/2023,202305,349,101985,Osteopoise Healthcare Ltd
Adult Services,Revenue Budgets,Adult Services,Assisted Living Centre,A0764,Assisted Living Centre,A40920,Purchase of Equipment,30136364,03/08/2023,202305,"3,125.00",1004009,Accora Ltd
Adult Services,Revenue Budgets,Adult Services,Assisted Living Centre,A0764,Assisted Living Centre,A40080,Health & Safety Equipment,30136637,03/08/2023,202305,"3,812.80",146221,Katnic Ltd
Adult Services,Revenue Budgets,Adult Services,Assisted Living Centre,A0764,Assisted Living Centre,A40080,Health & Safety Equipment,30136964,04/08/2023,202305,"1,126.80",101715,Nottingham Rehab Limited
Adult Services,Revenue Budgets,Adult Services,Assisted Living Centre,A0764,Assisted Living Centre,A40080,Health & Safety Equipment,30136964,04/08/2023,202305,"1,200.00",101715,Nottingham Rehab Limited
Adult Services,Revenue Budgets,Adult Services,Assisted Living Centre,A0764,Assisted Living Centre,A40080,Health & Safety Equipment,30136964,04/08/2023,202305,"1,400.00",101715,Nottingham Rehab Limited
Adult Services,Revenue Budgets,Adult Services,Assisted Living Centre,A0764,Assisted Living Centre,A40080,Health & Safety Equipment,30137241,07/08/2023,202305,284,101134,The Helping Hand Company (Ledbury) Ltd
Adult Services,Revenue Budgets,Adult Services,Assisted Living Centre,A0764,Assisted Living Centre,A40920,Purchase of Equipment,30137746,08/08/2023,202305,"2,116.00",100833,Jenx Ltd
Adult Services,Revenue Budgets,Adult Services,Adult Social Care,A0172,Adult Social Care,A16020,Staff Professional Membership Fees,30138559,11/08/2023,202305,"2,408.00",1001739,Association of Directors of Adult Social Services
Adult Services,Revenue Budgets,Adult Services,Assisted Living Centre,A0764,Assisted Living Centre,A40095,Equipment Maintenance and Repair,30138586,14/08/2023,202305,455,101785,Lisclare Ltd
Adult Services,Revenue Budgets,Adult Services,Assisted Living Centre,A0764,Assisted Living Centre,A40920,Purchase of Equipment,30139108,14/08/2023,202305,"2,178.00",111970,Smirthwaite Limited
Adult Services,Revenue Budgets,Adult Services,Assisted Living Centre,A0764,Assisted Living Centre,A40080,Health & Safety Equipment,30139884,18/08/2023,202305,479.9,101627,Drive Devilbiss Healthcare Ltd
Adult Services,Revenue Budgets,Adult Services,Assisted Living Centre,A0764,Assisted Living Centre,A40080,Health & Safety Equipment,30140108,21/08/2023,202305,"1,050.00",101627,Drive Devilbiss Healthcare Ltd
Adult Services,Revenue Budgets,Adult Services,Assisted Living Centre,A0764,Assisted Living Centre,A40920,Purchase of Equipment,30140189,21/08/2023,202305,"3,094.00",100833,Jenx Ltd
Adult Services,Revenue Budgets,Adult Services,Assisted Living Centre,A0764,Assisted Living Centre,A40080,Health & Safety Equipment,30140228,22/08/2023,202305,"1,137.50",101715,Nottingham Rehab Limited
Adult Services,Revenue Budgets,Adult Services,Assisted Living Centre,A0764,Assisted Living Centre,A40080,Health & Safety Equipment,30140313,22/08/2023,202305,529.66,104008,Performance Health
Adult Services,Revenue Budgets,Adult Services,Assisted Living Centre,A0764,Assisted Living Centre,A40080,Health & Safety Equipment,30140381,23/08/2023,202305,290,101134,The Helping Hand Company (Ledbury) Ltd
Adult Services,Revenue Budgets,Adult Services,Assisted Living Centre,A0764,Assisted Living Centre,A40080,Health & Safety Equipment,30140375,24/08/2023,202305,308.8,101070,Smitcare Ltd
Adult Services,Revenue Budgets,Adult Services,Assisted Living Centre,A0764,Assisted Living Centre,A40080,Health & Safety Equipment,30140375,24/08/2023,202305,515.2,101070,Smitcare Ltd
Adult Services,Revenue Budgets,Adult Services,Assisted Living Centre,A0764,Assisted Living Centre,A40095,Equipment Maintenance and Repair,30141330,30/08/2023,202305,834,101785,Lisclare Ltd
Assistant Chief Executive,Revenue Budgets,Resources,Elections Team,A0219,Elections,A22005,Building Rents,30138719,09/02/2023,202305,300,1001397,Immingham Christian Centre
Assistant Chief Executive,Revenue Budgets,Resources,Elections Team,A0218,Electoral Registration,A45015,Postages,30141206,14/07/2023,202305,"9,177.34",125574,Print Image Facilities Llp
Assistant Chief Executive,Revenue Budgets,Resources,Assistant Chief Executive,A0770,Dem Improvement And Engagement,A56000,Other Establishments,30140566,03/08/2023,202305,"25,000.00",1002339,NHS Humber and North Yorkshire ICB
Assistant Chief Executive,Revenue Budgets,Resources,Elections Team,A0218,Electoral Registration,A45015,Postages,30138715,07/08/2023,202305,749.94,101082,Royal Mail Group Plc
Assistant Chief Executive,Revenue Budgets,Resources,Elections Team,A0218,Electoral Registration,A45015,Postages,30138812,10/08/2023,202305,"19,603.75",125574,Print Image Facilities Llp
Assistant Chief Executive,Revenue Budgets,Resources,Asylum & Resettlement,A1857,Ukraine Scheme,A52005,Payments to Other Local Authorities,30139068,11/08/2023,202305,"1,227.60",100545,Leeds City Council
Assistant Chief Executive,Revenue Budgets,Resources,Elections Team,A0218,Electoral Registration,A45015,Postages,30139600,14/08/2023,202305,412.38,101082,Royal Mail Group Plc
Assistant Chief Executive,Revenue Budgets,Resources,Elections Team,A0218,Electoral Registration,A43020,General Office Expenses,30141363,23/08/2023,202305,"7,963.75",103724,Print Image Network Ltd
Assistant Chief Executive,Revenue Budgets,Resources,Asylum & Resettlement,A1857,Ukraine Scheme,A56000,Other Establishments,30140483,24/08/2023,202305,350,REDACTED PERSONAL INFORMATION,REDACTED PERSONAL INFORMATION
Assistant Chief Executive,Revenue Budgets,Resources,Asylum & Resettlement,A1857,Ukraine Scheme,A56000,Other Establishments,30140483,24/08/2023,202305,350,REDACTED PERSONAL INFORMATION,REDACTED PERSONAL INFORMATION
Assistant Chief Executive,Revenue Budgets,Resources,Asylum & Resettlement,A1857,Ukraine Scheme,A56000,Other Establishments,30140483,24/08/2023,202305,350,REDACTED PERSONAL INFORMATION,REDACTED PERSONAL INFORMATION
Assistant Chief Executive,Revenue Budgets,Resources,Asylum & Resettlement,A1857,Ukraine Scheme,A56000,Other Establishments,30140483,24/08/2023,202305,500,REDACTED PERSONAL INFORMATION,REDACTED PERSONAL INFORMATION
Assistant Chief Executive,Revenue Budgets,Resources,Asylum & Resettlement,A1857,Ukraine Scheme,A56000,Other Establishments,30140483,24/08/2023,202305,500,REDACTED PERSONAL INFORMATION,REDACTED PERSONAL INFORMATION
Assistant Chief Executive,Revenue Budgets,Resources,Asylum & Resettlement,A1857,Ukraine Scheme,A56000,Other Establishments,30140483,24/08/2023,202305,500,REDACTED PERSONAL INFORMATION,REDACTED PERSONAL INFORMATION
Assistant Chief Executive,Revenue Budgets,Resources,Asylum & Resettlement,A1857,Ukraine Scheme,A56000,Other Establishments,30140483,24/08/2023,202305,500,REDACTED PERSONAL INFORMATION,REDACTED PERSONAL INFORMATION
Assistant Chief Executive,Revenue Budgets,Resources,Asylum & Resettlement,A1857,Ukraine Scheme,A56000,Other Establishments,30140483,24/08/2023,202305,500,REDACTED PERSONAL INFORMATION,REDACTED PERSONAL INFORMATION
Assistant Chief Executive,Revenue Budgets,Resources,Asylum & Resettlement,A1857,Ukraine Scheme,A56000,Other Establishments,30140483,24/08/2023,202305,500,REDACTED PERSONAL INFORMATION,REDACTED PERSONAL INFORMATION
Assistant Chief Executive,Revenue Budgets,Resources,Asylum & Resettlement,A1857,Ukraine Scheme,A56000,Other Establishments,30140483,24/08/2023,202305,500,REDACTED PERSONAL INFORMATION,REDACTED PERSONAL INFORMATION
Assistant Chief Executive,Revenue Budgets,Resources,Asylum & Resettlement,A1857,Ukraine Scheme,A56000,Other Establishments,30140483,24/08/2023,202305,500,REDACTED PERSONAL INFORMATION,REDACTED PERSONAL INFORMATION
Assistant Chief Executive,Revenue Budgets,Resources,Asylum & Resettlement,A1857,Ukraine Scheme,A56000,Other Establishments,30140483,24/08/2023,202305,500,REDACTED PERSONAL INFORMATION,REDACTED PERSONAL INFORMATION
Assistant Chief Executive,Revenue Budgets,Resources,Asylum & Resettlement,A1857,Ukraine Scheme,A56000,Other Establishments,30140483,24/08/2023,202305,500,REDACTED PERSONAL INFORMATION,REDACTED PERSONAL INFORMATION
Assistant Chief Executive,Revenue Budgets,Resources,Asylum & Resettlement,A1857,Ukraine Scheme,A56000,Other Establishments,30140483,24/08/2023,202305,500,REDACTED PERSONAL INFORMATION,REDACTED PERSONAL INFORMATION
Assistant Chief Executive,Revenue Budgets,Resources,Asylum & Resettlement,A1857,Ukraine Scheme,A56000,Other Establishments,30140483,24/08/2023,202305,500,REDACTED PERSONAL INFORMATION,REDACTED PERSONAL INFORMATION
Assistant Chief Executive,Revenue Budgets,Resources,Asylum & Resettlement,A1857,Ukraine Scheme,A56000,Other Establishments,30140483,24/08/2023,202305,500,REDACTED PERSONAL INFORMATION,REDACTED PERSONAL INFORMATION
Assistant Chief Executive,Revenue Budgets,Resources,Asylum & Resettlement,A1857,Ukraine Scheme,A56000,Other Establishments,30140483,24/08/2023,202305,500,REDACTED PERSONAL INFORMATION,REDACTED PERSONAL INFORMATION
Assistant Chief Executive,Revenue Budgets,Resources,Asylum & Resettlement,A1857,Ukraine Scheme,A56000,Other Establishments,30140483,24/08/2023,202305,500,REDACTED PERSONAL INFORMATION,REDACTED PERSONAL INFORMATION
Assistant Chief Executive,Revenue Budgets,Resources,Asylum & Resettlement,A1857,Ukraine Scheme,A56000,Other Establishments,30140483,24/08/2023,202305,500,REDACTED PERSONAL INFORMATION,REDACTED PERSONAL INFORMATION
Assistant Chief Executive,Revenue Budgets,Resources,Asylum & Resettlement,A1857,Ukraine Scheme,A56000,Other Establishments,30140483,24/08/2023,202305,500,REDACTED PERSONAL INFORMATION,REDACTED PERSONAL INFORMATION
Assistant Chief Executive,Revenue Budgets,Resources,Asylum & Resettlement,A1857,Ukraine Scheme,A56000,Other Establishments,30140483,24/08/2023,202305,500,REDACTED PERSONAL INFORMATION,REDACTED PERSONAL INFORMATION
Assistant Chief Executive,Revenue Budgets,Resources,Asylum & Resettlement,A1857,Ukraine Scheme,A56000,Other Establishments,30140483,24/08/2023,202305,500,REDACTED PERSONAL INFORMATION,REDACTED PERSONAL INFORMATION
Assistant Chief Executive,Revenue Budgets,Resources,Asylum & Resettlement,A1857,Ukraine Scheme,A56000,Other Establishments,30140483,24/08/2023,202305,500,REDACTED PERSONAL INFORMATION,REDACTED PERSONAL INFORMATION
Assistant Chief Executive,Revenue Budgets,Resources,Asylum & Resettlement,A1857,Ukraine Scheme,A56000,Other Establishments,30140483,24/08/2023,202305,500,REDACTED PERSONAL INFORMATION,REDACTED PERSONAL INFORMATION
Assistant Chief Executive,Revenue Budgets,Resources,Asylum & Resettlement,A1857,Ukraine Scheme,A56000,Other Establishments,30140483,24/08/2023,202305,500,REDACTED PERSONAL INFORMATION,REDACTED PERSONAL INFORMATION
Assistant Chief Executive,Revenue Budgets,Resources,Asylum & Resettlement,A1857,Ukraine Scheme,A56000,Other Establishments,30140483,24/08/2023,202305,500,REDACTED PERSONAL INFORMATION,REDACTED PERSONAL INFORMATION
Assistant Chief Executive,Revenue Budgets,Resources,Asylum & Resettlement,A1857,Ukraine Scheme,A56000,Other Establishments,30140483,24/08/2023,202305,500,REDACTED PERSONAL INFORMATION,REDACTED PERSONAL INFORMATION
Assistant Chief Executive,Revenue Budgets,Resources,Asylum & Resettlement,A1857,Ukraine Scheme,A56000,Other Establishments,30140483,24/08/2023,202305,800,REDACTED PERSONAL INFORMATION,REDACTED PERSONAL INFORMATION
Assistant Director People & Organisation,Revenue Budgets,Resources,People and Culture,A0814,Corporate Training & Devel,A16015,Staff Training Expenses,30136799,21/06/2023,202305,"2,500.00",1006716,Sheilds Ltd
Assistant Director People & Organisation,Revenue Budgets,Resources,People and Culture,A1537,P&C - Governance & Workforce,A49080,OBC Holding Account,30136617,24/07/2023,202305,"1,037.42",1002597,AVC Wise Ltd
Assistant Director People & Organisation,Revenue Budgets,Resources,People and Culture,A0790,Disclosure Check Pmts,A11005,Agency Supply Staff,30136399,30/07/2023,202305,"108,758.32",145197,Comensura Ltd
Assistant Director People & Organisation,Revenue Budgets,Resources,Business Support,A1442,Postal Services,A45015,Postages,30136622,30/07/2023,202305,469.55,135925,Whistl Uk Ltd
Assistant Director People & Organisation,Revenue Budgets,Resources,Business Support,A1442,Postal Services,A45015,Postages,30136624,30/07/2023,202305,"1,434.73",135925,Whistl Uk Ltd
Assistant Director People & Organisation,Revenue Budgets,Resources,People and Culture,A0790,Disclosure Check Pmts,A16025,Recruitment Expenses,30136381,31/07/2023,202305,532,148286,Ucheck
Assistant Director People & Organisation,Revenue Budgets,Resources,Business Support,A1442,Postal Services,A45015,Postages,30136573,31/07/2023,202305,278.51,101082,Royal Mail Group Plc
Assistant Director People & Organisation,Revenue Budgets,Resources,Business Support,A0214,Business Support Unit (Sbs),A33005,Public Transport - Non Staff,30136904,31/07/2023,202305,"2,131.24",127476,Click Travel
Assistant Director People & Organisation,Revenue Budgets,Resources,Business Support,A0214,Business Support Unit (Sbs),A33005,Public Transport - Non Staff,30136904,31/07/2023,202305,"3,856.44",127476,Click Travel
Assistant Director People & Organisation,Revenue Budgets,Resources,Business Support,A0214,Business Support Unit (Sbs),A33005,Public Transport - Non Staff,30137053,31/07/2023,202305,-288.65,127476,Click Travel
Assistant Director People & Organisation,Revenue Budgets,Resources,People and Culture,A1536,P&C - Occup Health & Safety,A16030,Employee Benefits,30139131,31/07/2023,202305,"2,500.00",130544,Manor Occupational Health Ltd
Assistant Director People & Organisation,Revenue Budgets,Resources,People and Culture,A1536,P&C - Occup Health & Safety,A16030,Employee Benefits,30137607,01/08/2023,202305,"7,698.00",109880,Dr M R East
Assistant Director People & Organisation,Revenue Budgets,Resources,People and Culture,A0790,Disclosure Check Pmts,A11005,Agency Supply Staff,30138215,06/08/2023,202305,"99,388.15",145197,Comensura Ltd
Assistant Director People & Organisation,Revenue Budgets,Resources,Business Support,A1442,Postal Services,A45015,Postages,30138512,06/08/2023,202305,"1,725.08",135925,Whistl Uk Ltd
Assistant Director People & Organisation,Revenue Budgets,Resources,Business Support,A1442,Postal Services,A45015,Postages,30138525,06/08/2023,202305,345.33,135925,Whistl Uk Ltd
Assistant Director People & Organisation,Revenue Budgets,Resources,People and Culture,A0790,Disclosure Check Pmts,A16025,Recruitment Expenses,30138225,07/08/2023,202305,304,148286,Ucheck
Assistant Director People & Organisation,Revenue Budgets,Resources,People and Culture,A0814,Corporate Training & Devel,A16015,Staff Training Expenses,30137577,08/08/2023,202305,"3,300.00",101460,Institute Of Cemetery & Crematorium Mgt
Assistant Director People & Organisation,Revenue Budgets,Resources,Business Support,A1442,Postal Services,A45015,Postages,30138928,13/08/2023,202305,289.71,135925,Whistl Uk Ltd
Assistant Director People & Organisation,Revenue Budgets,Resources,Business Support,A1442,Postal Services,A45015,Postages,30138941,13/08/2023,202305,"3,487.38",135925,Whistl Uk Ltd
Assistant Director People & Organisation,Revenue Budgets,Resources,People and Culture,A0790,Disclosure Check Pmts,A11005,Agency Supply Staff,30139536,13/08/2023,202305,"71,149.67",145197,Comensura Ltd
Assistant Director People & Organisation,Revenue Budgets,Resources,People and Culture,A0790,Disclosure Check Pmts,A11005,Agency Supply Staff,30139539,13/08/2023,202305,"96,129.36",145197,Comensura Ltd
Assistant Director People & Organisation,Revenue Budgets,Resources,People and Culture,A0790,Disclosure Check Pmts,A16025,Recruitment Expenses,30139525,14/08/2023,202305,570,148286,Ucheck
Assistant Director People & Organisation,Revenue Budgets,Resources,People and Culture,A0790,Disclosure Check Pmts,A11005,Agency Supply Staff,30140407,20/08/2023,202305,"17,737.21",145197,Comensura Ltd
Assistant Director People & Organisation,Revenue Budgets,Resources,People and Culture,A0790,Disclosure Check Pmts,A11005,Agency Supply Staff,30140673,20/08/2023,202305,"105,618.36",145197,Comensura Ltd
Assistant Director People & Organisation,Revenue Budgets,Resources,Business Support,A1442,Postal Services,A45015,Postages,30140927,20/08/2023,202305,473.82,135925,Whistl Uk Ltd
Assistant Director People & Organisation,Revenue Budgets,Resources,Business Support,A1442,Postal Services,A45015,Postages,30140931,20/08/2023,202305,"1,889.36",135925,Whistl Uk Ltd
Assistant Director People & Organisation,Revenue Budgets,Resources,People and Culture,A0790,Disclosure Check Pmts,A16025,Recruitment Expenses,30140420,21/08/2023,202305,684,148286,Ucheck
Assistant Director People & Organisation,Revenue Budgets,Resources,Business Support,A1442,Postal Services,A45015,Postages,30140963,21/08/2023,202305,395,101082,Royal Mail Group Plc
Assistant Director People & Organisation,Revenue Budgets,Resources,Business Support,A1442,Postal Services,A45015,Postages,30140964,21/08/2023,202305,309.76,101082,Royal Mail Group Plc
Assistant Director People & Organisation,Revenue Budgets,Resources,Business Support,A1442,Postal Services,A45015,Postages,30141202,27/08/2023,202305,340.14,135925,Whistl Uk Ltd
Assistant Director People & Organisation,Revenue Budgets,Resources,Business Support,A1442,Postal Services,A45015,Postages,30141204,27/08/2023,202305,"1,147.86",135925,Whistl Uk Ltd
Assistant Director People & Organisation,Revenue Budgets,Resources,Business Support,A1442,Postal Services,A45015,Postages,30141213,27/08/2023,202305,503.14,135925,Whistl Uk Ltd
Assistant Director People & Organisation,Revenue Budgets,Resources,People and Culture,A0790,Disclosure Check Pmts,A11005,Agency Supply Staff,30141745,27/08/2023,202305,"102,850.33",145197,Comensura Ltd
Assistant Director People & Organisation,Revenue Budgets,Resources,People and Culture,A0790,Disclosure Check Pmts,A16025,Recruitment Expenses,30141709,28/08/2023,202305,378,148286,Ucheck
Deputy s151,Revenue Budgets,Resources,Local Taxation & Benefits - Shared,A0187,Debt Collection,A49053,Debt Recovery Costs,30127711,19/06/2023,202305,-446.6,101788,Jacobs Certified Bailiffs
Deputy s151,Revenue Budgets,Resources,Local Taxation & Benefits - Shared,A0187,Debt Collection,A49053,Debt Recovery Costs,30127711,19/06/2023,202305,446.6,101788,Jacobs Certified Bailiffs
Deputy s151,Revenue Budgets,Resources,Accountancy,A1837,Humber Freeport,A44065,Consultancy Services,30135966,28/06/2023,202305,"2,919.01",1002283,Starfish Search Ltd
Deputy s151,Revenue Budgets,Resources,Accountancy,A0235,Audit Commission Fees,A56000,Other Establishments,30138503,28/06/2023,202305,"25,134.00",141538,Mazars Llp
Deputy s151,Revenue Budgets,Resources,Local Taxation & Benefits - Shared,A0187,Debt Collection,A49053,Debt Recovery Costs,30137834,30/06/2023,202305,"-3,185.95",101373,Rossendales Ltd
Deputy s151,Revenue Budgets,Resources,Local Taxation & Benefits - Shared,A0187,Debt Collection,A49053,Debt Recovery Costs,30137834,30/06/2023,202305,"3,185.95",101373,Rossendales Ltd
Deputy s151,Revenue Budgets,Resources,Local Taxation & Benefits - Shared,A0187,Debt Collection,A49053,Debt Recovery Costs,30127709,03/07/2023,202305,-721.75,101788,Jacobs Certified Bailiffs
Deputy s151,Revenue Budgets,Resources,Local Taxation & Benefits - Shared,A0187,Debt Collection,A49053,Debt Recovery Costs,30127709,03/07/2023,202305,721.75,101788,Jacobs Certified Bailiffs
Deputy s151,Revenue Budgets,Resources,Local Taxation & Benefits - Shared,A0187,Debt Collection,A49053,Debt Recovery Costs,30137878,17/07/2023,202305,"-8,664.90",101788,Jacobs Certified Bailiffs
Deputy s151,Revenue Budgets,Resources,Local Taxation & Benefits - Shared,A0187,Debt Collection,A49053,Debt Recovery Costs,30137878,17/07/2023,202305,"8,664.90",101788,Jacobs Certified Bailiffs
Deputy s151,Revenue Budgets,Resources,Local Taxation & Benefits - Shared,A0187,Debt Collection,A49053,Debt Recovery Costs,30137872,29/07/2023,202305,"-11,010.71",123422,Newlyn
Deputy s151,Revenue Budgets,Resources,Local Taxation & Benefits - Shared,A0187,Debt Collection,A49053,Debt Recovery Costs,30137872,29/07/2023,202305,"11,010.71",123422,Newlyn
Deputy s151,Revenue Budgets,Resources,Local Taxation & Benefits - Shared,A0184,Control & Monitoring,A45015,Postages,30136173,31/07/2023,202305,"5,919.90",102314,Capita Business Services Ltd
Deputy s151,Revenue Budgets,Resources,Local Taxation & Benefits - Shared,A0187,Debt Collection,A49053,Debt Recovery Costs,30137892,31/07/2023,202305,"-8,162.30",101788,Jacobs Certified Bailiffs
Deputy s151,Revenue Budgets,Resources,Local Taxation & Benefits - Shared,A0187,Debt Collection,A49053,Debt Recovery Costs,30137892,31/07/2023,202305,"8,162.30",101788,Jacobs Certified Bailiffs
Deputy s151,Revenue Budgets,Resources,Local Taxation & Benefits - Shared,A0187,Debt Collection,A49053,Debt Recovery Costs,30138506,31/07/2023,202305,"-3,617.95",101373,Rossendales Ltd
Deputy s151,Revenue Budgets,Resources,Local Taxation & Benefits - Shared,A0187,Debt Collection,A49053,Debt Recovery Costs,30138506,31/07/2023,202305,"3,617.95",101373,Rossendales Ltd
Deputy s151,Revenue Budgets,Resources,Accountancy,A1837,Humber Freeport,A44065,Consultancy Services,30137191,04/08/2023,202305,"3,888.00",110782,Mr James Goudie Qc
Deputy s151,Revenue Budgets,Resources,Accountancy,A1837,Humber Freeport,A44065,Consultancy Services,30138560,08/08/2023,202305,"2,745.00",100785,Solace In Business
Deputy s151,Revenue Budgets,Resources,Local Taxation & Benefits - Shared,A0187,Debt Collection,A49053,Debt Recovery Costs,30139931,17/08/2023,202305,350,109470,Wilkin Chapman Llp Solicitors
Deputy s151,Revenue Budgets,Resources,Local Taxation & Benefits - Shared,A0184,Control & Monitoring,A45015,Postages,30141740,31/08/2023,202305,"5,031.06",102314,Capita Business Services Ltd
Director Childrens Services,Revenue Budgets,Childrens Services,Director Children & Fam Serv,A0284,Director Children / Fam Serv,A44065,Consultancy Services,30136839,04/08/2023,202305,"4,000.00",1006980,ForeTwo Group Limited
Director Childrens Services,Revenue Budgets,Childrens Services,Director Children & Fam Serv,A0284,Director Children / Fam Serv,A44065,Consultancy Services,30138539,10/08/2023,202305,"37,253.33",133446,Impower Consulting Limited
Director Childrens Services,Revenue Budgets,Childrens Services,Director Children & Fam Serv,A0284,Director Children / Fam Serv,A44065,Consultancy Services,30138792,14/08/2023,202305,"2,800.00",1006980,ForeTwo Group Limited
Director Childrens Services,Revenue Budgets,Childrens Services,Director Children & Fam Serv,A0284,Director Children / Fam Serv,A21010,Gas,42246839,17/08/2023,202305,-389.28,103611,Total Energies Gas & Power Ltd
Director Childrens Services,Revenue Budgets,Childrens Services,Director Children & Fam Serv,A0284,Director Children / Fam Serv,A21010,Gas,42246839,17/08/2023,202305,255.63,103611,Total Energies Gas & Power Ltd
Director Childrens Services,Revenue Budgets,Childrens Services,Director Children & Fam Serv,A0284,Director Children / Fam Serv,A21010,Gas,42246839,17/08/2023,202305,389.28,103611,Total Energies Gas & Power Ltd
Director Childrens Services,Revenue Budgets,Childrens Services,Director Children & Fam Serv,A0284,Director Children / Fam Serv,A44065,Consultancy Services,30140088,18/08/2023,202305,"4,000.00",1006980,ForeTwo Group Limited
Director Childrens Services,Revenue Budgets,Childrens Services,Director Children & Fam Serv,A0284,Director Children / Fam Serv,A44065,Consultancy Services,30141073,29/08/2023,202305,"4,000.00",1006980,ForeTwo Group Limited
Education and Inclusion,Revenue Budgets,Childrens Services,Sen/Inclusion,A1858,Education Other than After Schools,A49105,Other Supplies & Services,30138983,31/03/2023,202305,"3,121.50",1000055,1VAA CIC
Education and Inclusion,Revenue Budgets,Childrens Services,Sen/Inclusion,A1783,Top-Up Non-Maintained & Indepe,A52005,Payments to Other Local Authorities,30140570,30/04/2023,202305,"23,266.15",1002481,NAS Services Ltd
Education and Inclusion,Revenue Budgets,Childrens Services,Attainment and Progress,A0595,Reynolds Cc Daycare,A21005,Electricity,30139067,05/06/2023,202305,475.35,122175,Reynolds Academy
Education and Inclusion,Revenue Budgets,Childrens Services,Education Transport,A0254,Home To School Transport Sen,A32020,Home to School Transport,30139149,14/06/2023,202305,"3,741.75",107911,Humberston Park Special School
Education and Inclusion,Revenue Budgets,Childrens Services,Sen/Inclusion,A0271,Sen Team Admin,A45040,IT Software Purchase,30123546,20/06/2023,202305,428.44,101275,Trustmarque Solutions Ltd
Education and Inclusion,Revenue Budgets,Childrens Services,Pupil Support Safeguard/Wellbeing,A0513,Lac Education,A45005,IT Hardware Purchase,30141436,27/06/2023,202305,915,1000900,Currys Group Limited   T/a Currys Business
Education and Inclusion,Capital Spend,Childrens Services,Backlog Maintenance Schools,Y1756,Stalling Primary Remodelling,C01009,"New Construction, conversion & renovation",30135238,28/06/2023,202305,"2,668.00",1001092,Unibuild Building Contractors Ltd
Education and Inclusion,Capital Spend,Childrens Services,Backlog Maintenance Schools,Y1756,Stalling Primary Remodelling,C01009,"New Construction, conversion & renovation",30135238,28/06/2023,202305,"12,316.60",1001092,Unibuild Building Contractors Ltd
Education and Inclusion,Revenue Budgets,Childrens Services,Sen/Inclusion,A1858,Education Other than After Schools,A49105,Other Supplies & Services,30138980,28/06/2023,202305,820,145278,Prospero Recruitment Ltd
Education and Inclusion,Revenue Budgets,Childrens Services,Sen/Inclusion,A1858,Education Other than After Schools,A49105,Other Supplies & Services,30136212,30/06/2023,202305,800,1000115,Grimsby Cleethorpes and Humber Region YMCA - Trading as YMCA Humber
Education and Inclusion,Revenue Budgets,Childrens Services,Education Transport,A0247,Post 16 Sen,A32020,Home to School Transport,30138984,30/06/2023,202305,687,1006501,Fab Cab
Education and Inclusion,Revenue Budgets,Childrens Services,Education Transport,A0254,Home To School Transport Sen,A32020,Home to School Transport,30137459,03/07/2023,202305,"2,102.50",1003562,WAT Specialist Transport LTD T/A WAT
Education and Inclusion,Revenue Budgets,Childrens Services,Education Transport,A0254,Home To School Transport Sen,A32020,Home to School Transport,30137460,03/07/2023,202305,"2,160.00",1003562,WAT Specialist Transport LTD T/A WAT
Education and Inclusion,Revenue Budgets,Childrens Services,Education Transport,A0247,Post 16 Sen,A32020,Home to School Transport,30137461,03/07/2023,202305,"2,000.00",1003562,WAT Specialist Transport LTD T/A WAT
Education and Inclusion,Revenue Budgets,Childrens Services,Education Transport,A0254,Home To School Transport Sen,A32020,Home to School Transport,30137462,03/07/2023,202305,"1,040.00",1003562,WAT Specialist Transport LTD T/A WAT
Education and Inclusion,Revenue Budgets,Childrens Services,Education Transport,A0254,Home To School Transport Sen,A32020,Home to School Transport,30137466,03/07/2023,202305,825,1003562,WAT Specialist Transport LTD T/A WAT
Education and Inclusion,Revenue Budgets,Childrens Services,Sen/Inclusion,A1858,Education Other than After Schools,A49105,Other Supplies & Services,30138972,05/07/2023,202305,"1,590.00",145278,Prospero Recruitment Ltd
Education and Inclusion,Revenue Budgets,Childrens Services,Sen/Inclusion,A1858,Education Other than After Schools,A49105,Other Supplies & Services,30138990,12/07/2023,202305,715,145278,Prospero Recruitment Ltd
Education and Inclusion,Revenue Budgets,Childrens Services,Sen/Inclusion,A1784,Other La Top-Up,A52005,Payments to Other Local Authorities,30137065,13/07/2023,202305,"23,021.66",126809,Oakfield School
Education and Inclusion,Revenue Budgets,Childrens Services,Sen/Inclusion,A1783,Top-Up Non-Maintained & Indepe,A52005,Payments to Other Local Authorities,30136431,20/07/2023,202305,"23,266.15",1002481,NAS Services Ltd
Education and Inclusion,Revenue Budgets,Childrens Services,Sen/Inclusion,A1858,Education Other than After Schools,A49105,Other Supplies & Services,30138977,20/07/2023,202305,"1,265.00",145278,Prospero Recruitment Ltd
Education and Inclusion,Revenue Budgets,Childrens Services,Pupil Support Safeguard/Wellbeing,A0513,Lac Education,A60010,Tuition &/or Board Fees,30136632,21/07/2023,202305,"1,620.00",1006170,Dial A Carz
Education and Inclusion,Revenue Budgets,Childrens Services,Sen/Inclusion,A1858,Education Other than After Schools,A49105,Other Supplies & Services,30137073,21/07/2023,202305,"10,673.00",1002686,Warren Wood Specialist Academy
Education and Inclusion,Capital Spend,Childrens Services,Sufficiency Of School Places,Y1869,Waltham Provision,C01011,External Professional Fees,30134541,24/07/2023,202305,"24,000.00",133267,Equans Services Ltd
Education and Inclusion,Revenue Budgets,Childrens Services,Sen/Inclusion,A1766,Bursar Provision,A20011,Premises External Maintenance,30135642,24/07/2023,202305,322.83,133267,Equans Services Ltd
Education and Inclusion,Revenue Budgets,Childrens Services,Sen/Inclusion,A1783,Top-Up Non-Maintained & Indepe,A52005,Payments to Other Local Authorities,30135824,24/07/2023,202305,"2,500.05",146355,Castles Education Llp
Education and Inclusion,Revenue Budgets,Childrens Services,Sen/Inclusion,A1783,Top-Up Non-Maintained & Indepe,A52005,Payments to Other Local Authorities,30135832,24/07/2023,202305,"3,000.00",146355,Castles Education Llp
Education and Inclusion,Revenue Budgets,Childrens Services,Sen/Inclusion,A1783,Top-Up Non-Maintained & Indepe,A52005,Payments to Other Local Authorities,30135834,24/07/2023,202305,"3,700.05",146355,Castles Education Llp
Education and Inclusion,Revenue Budgets,Childrens Services,Sen/Inclusion,A1783,Top-Up Non-Maintained & Indepe,A52005,Payments to Other Local Authorities,30135838,24/07/2023,202305,"2,500.05",146355,Castles Education Llp
Education and Inclusion,Revenue Budgets,Childrens Services,Education Transport,A0254,Home To School Transport Sen,A16015,Staff Training Expenses,30136113,24/07/2023,202305,752,1007213,Minibus Training and Safety Ltd
Education and Inclusion,Revenue Budgets,Childrens Services,Sen/Inclusion,A1561,Education Team Hear / Vision,A16015,Staff Training Expenses,30136542,24/07/2023,202305,"1,855.00",1006914,Jamie Ross T/A J L Signing Services
Education and Inclusion,Revenue Budgets,Childrens Services,Attainment and Progress,A1640,School Improvement,A56000,Other Establishments,30136242,25/07/2023,202305,800,129030,Fairfield Primary Academy
Education and Inclusion,Revenue Budgets,Childrens Services,Education Transport,A0247,Post 16 Sen,A32020,Home to School Transport,30137082,25/07/2023,202305,840,1002574,SL TAXI'S
Education and Inclusion,Revenue Budgets,Childrens Services,Sen/Inclusion,A1858,Education Other than After Schools,A56000,Other Establishments,30138981,26/07/2023,202305,901.98,101305,Teaching Personnel Ltd
Education and Inclusion,Revenue Budgets,Childrens Services,Sen/Inclusion,A1858,Education Other than After Schools,A49105,Other Supplies & Services,30138986,26/07/2023,202305,"1,375.00",145278,Prospero Recruitment Ltd
Education and Inclusion,Capital Spend,Childrens Services,Sufficiency Of School Places,Y1868,Cleethorpes Academy,C01011,External Professional Fees,30141072,27/07/2023,202305,600,1005924,Ross Davy Ltd t/a Ross Davy Associates
Education and Inclusion,Revenue Budgets,Childrens Services,Attainment and Progress,A0295,Flexible Fund Entitle Early Yr,A56000,Other Establishments,30136029,28/07/2023,202305,892.8,120365,Scartho Infants School
Education and Inclusion,Revenue Budgets,Childrens Services,Sen/Inclusion,A1783,Top-Up Non-Maintained & Indepe,A52005,Payments to Other Local Authorities,30136224,31/07/2023,202305,"4,620.60",1003323,More Than Ed Independent School Limited
Education and Inclusion,Revenue Budgets,Childrens Services,Sen/Inclusion,A1858,Education Other than After Schools,A49105,Other Supplies & Services,30136384,31/07/2023,202305,600,1000115,Grimsby Cleethorpes and Humber Region YMCA - Trading as YMCA Humber
Education and Inclusion,Capital Spend,Childrens Services,Backlog Maintenance Schools,Y1482,Schools Cap Allocn Bud Code,C01009,"New Construction, conversion & renovation",30136576,31/07/2023,202305,450,149000,Asbestos Solution Providers Limited
Education and Inclusion,Revenue Budgets,Childrens Services,Pupil Support Safeguard/Wellbeing,A0513,Lac Education,A56000,Other Establishments,30136633,31/07/2023,202305,"1,080.45",101222,Aa Radio Cars Ltd
Education and Inclusion,Revenue Budgets,Childrens Services,Education Transport,A0254,Home To School Transport Sen,A32020,Home to School Transport,30136801,31/07/2023,202305,644,101222,Aa Radio Cars Ltd
Education and Inclusion,Revenue Budgets,Childrens Services,Education Transport,A0254,Home To School Transport Sen,A32020,Home to School Transport,30136803,31/07/2023,202305,840,101222,Aa Radio Cars Ltd
Education and Inclusion,Revenue Budgets,Childrens Services,Education Transport,A0254,Home To School Transport Sen,A32020,Home to School Transport,30136804,31/07/2023,202305,"1,317.00",101222,Aa Radio Cars Ltd
Education and Inclusion,Revenue Budgets,Childrens Services,Education Transport,A0248,Exceptional Circumstances,A32020,Home to School Transport,30136805,31/07/2023,202305,675,101222,Aa Radio Cars Ltd
Education and Inclusion,Revenue Budgets,Childrens Services,Education Transport,A0254,Home To School Transport Sen,A32020,Home to School Transport,30136806,31/07/2023,202305,"1,690.00",101222,Aa Radio Cars Ltd
Education and Inclusion,Revenue Budgets,Childrens Services,Education Transport,A0254,Home To School Transport Sen,A32020,Home to School Transport,30136971,31/07/2023,202305,"1,224.00",1000227,Mrs Sandra Delatouche T/A Sandys Taxis
Education and Inclusion,Revenue Budgets,Childrens Services,Education Transport,A0247,Post 16 Sen,A32020,Home to School Transport,30137285,31/07/2023,202305,313,100546,Links Taxis
Education and Inclusion,Revenue Budgets,Childrens Services,Education Transport,A0254,Home To School Transport Sen,A32020,Home to School Transport,30137348,31/07/2023,202305,513,100546,Links Taxis
Education and Inclusion,Revenue Budgets,Childrens Services,Education Transport,A0254,Home To School Transport Sen,A32020,Home to School Transport,30137352,31/07/2023,202305,598,100546,Links Taxis
Education and Inclusion,Revenue Budgets,Childrens Services,Education Transport,A0254,Home To School Transport Sen,A32020,Home to School Transport,30137353,31/07/2023,202305,885,100546,Links Taxis
Education and Inclusion,Revenue Budgets,Childrens Services,Education Transport,A0254,Home To School Transport Sen,A32020,Home to School Transport,30137354,31/07/2023,202305,588,100546,Links Taxis
Education and Inclusion,Revenue Budgets,Childrens Services,Education Transport,A0254,Home To School Transport Sen,A32020,Home to School Transport,30137356,31/07/2023,202305,630,100546,Links Taxis
Education and Inclusion,Revenue Budgets,Childrens Services,Education Transport,A0254,Home To School Transport Sen,A32020,Home to School Transport,30137358,31/07/2023,202305,705,100546,Links Taxis
Education and Inclusion,Revenue Budgets,Childrens Services,Education Transport,A0254,Home To School Transport Sen,A32020,Home to School Transport,30137362,31/07/2023,202305,432,100546,Links Taxis
Education and Inclusion,Revenue Budgets,Childrens Services,Education Transport,A0254,Home To School Transport Sen,A32020,Home to School Transport,30137365,31/07/2023,202305,"1,555.00",100546,Links Taxis
Education and Inclusion,Revenue Budgets,Childrens Services,Education Transport,A0254,Home To School Transport Sen,A32020,Home to School Transport,30137366,31/07/2023,202305,"1,164.00",100546,Links Taxis
Education and Inclusion,Revenue Budgets,Childrens Services,Education Transport,A0254,Home To School Transport Sen,A32020,Home to School Transport,30137410,31/07/2023,202305,800,100546,Links Taxis
Education and Inclusion,Revenue Budgets,Childrens Services,Education Transport,A0254,Home To School Transport Sen,A32020,Home to School Transport,30137413,31/07/2023,202305,407,100546,Links Taxis
Education and Inclusion,Revenue Budgets,Childrens Services,Education Transport,A0254,Home To School Transport Sen,A32020,Home to School Transport,30137415,31/07/2023,202305,"1,026.00",100546,Links Taxis
Education and Inclusion,Revenue Budgets,Childrens Services,Education Transport,A0254,Home To School Transport Sen,A32020,Home to School Transport,30137419,31/07/2023,202305,665,100546,Links Taxis
Education and Inclusion,Revenue Budgets,Childrens Services,Education Transport,A0254,Home To School Transport Sen,A32020,Home to School Transport,30137421,31/07/2023,202305,540.5,100546,Links Taxis
Education and Inclusion,Revenue Budgets,Childrens Services,Education Transport,A0254,Home To School Transport Sen,A32020,Home to School Transport,30137422,31/07/2023,202305,"2,128.00",100546,Links Taxis
Education and Inclusion,Revenue Budgets,Childrens Services,Education Transport,A0249,Excluded And Ap Transport,A32020,Home to School Transport,30137423,31/07/2023,202305,977.5,100546,Links Taxis
Education and Inclusion,Revenue Budgets,Childrens Services,Education Transport,A0254,Home To School Transport Sen,A32020,Home to School Transport,30137425,31/07/2023,202305,"1,148.00",100546,Links Taxis
Education and Inclusion,Revenue Budgets,Childrens Services,Education Transport,A0254,Home To School Transport Sen,A32020,Home to School Transport,30137426,31/07/2023,202305,"1,658.00",100546,Links Taxis
Education and Inclusion,Revenue Budgets,Childrens Services,Education Transport,A0249,Excluded And Ap Transport,A32020,Home to School Transport,30137429,31/07/2023,202305,658,100546,Links Taxis
Education and Inclusion,Revenue Budgets,Childrens Services,Education Transport,A0254,Home To School Transport Sen,A32020,Home to School Transport,30137430,31/07/2023,202305,"1,476.00",100546,Links Taxis
Education and Inclusion,Revenue Budgets,Childrens Services,Education Transport,A0254,Home To School Transport Sen,A32020,Home to School Transport,30137431,31/07/2023,202305,"6,071.00",100546,Links Taxis
Education and Inclusion,Revenue Budgets,Childrens Services,Education Transport,A0254,Home To School Transport Sen,A32020,Home to School Transport,30137432,31/07/2023,202305,"1,050.00",100546,Links Taxis
Education and Inclusion,Revenue Budgets,Childrens Services,Education Transport,A0254,Home To School Transport Sen,A32020,Home to School Transport,30137433,31/07/2023,202305,"1,008.00",100546,Links Taxis
Education and Inclusion,Revenue Budgets,Childrens Services,Education Transport,A0254,Home To School Transport Sen,A32020,Home to School Transport,30137434,31/07/2023,202305,"3,042.00",100546,Links Taxis
Education and Inclusion,Revenue Budgets,Childrens Services,Education Transport,A0254,Home To School Transport Sen,A32020,Home to School Transport,30137435,31/07/2023,202305,806,100546,Links Taxis
Education and Inclusion,Revenue Budgets,Childrens Services,Education Transport,A0253,Home To Sch Transport Sec-Gy,A32020,Home to School Transport,30137436,31/07/2023,202305,806,100546,Links Taxis
Education and Inclusion,Revenue Budgets,Childrens Services,Education Transport,A0254,Home To School Transport Sen,A32020,Home to School Transport,30137498,31/07/2023,202305,728,100546,Links Taxis
Education and Inclusion,Revenue Budgets,Childrens Services,Education Transport,A0254,Home To School Transport Sen,A32020,Home to School Transport,30137499,31/07/2023,202305,780,100546,Links Taxis
Education and Inclusion,Revenue Budgets,Childrens Services,Education Transport,A0254,Home To School Transport Sen,A32020,Home to School Transport,30137503,31/07/2023,202305,623.7,100546,Links Taxis
Education and Inclusion,Revenue Budgets,Childrens Services,Education Transport,A0254,Home To School Transport Sen,A32020,Home to School Transport,30137521,31/07/2023,202305,951.6,100546,Links Taxis
Education and Inclusion,Revenue Budgets,Childrens Services,Education Transport,A0248,Exceptional Circumstances,A32020,Home to School Transport,30137565,31/07/2023,202305,551.25,100546,Links Taxis
Education and Inclusion,Revenue Budgets,Childrens Services,Education Transport,A0254,Home To School Transport Sen,A32020,Home to School Transport,30137566,31/07/2023,202305,667,100546,Links Taxis
Education and Inclusion,Revenue Budgets,Childrens Services,Education Transport,A0254,Home To School Transport Sen,A32020,Home to School Transport,30137567,31/07/2023,202305,"1,530.00",100546,Links Taxis
Education and Inclusion,Revenue Budgets,Childrens Services,Education Transport,A0254,Home To School Transport Sen,A32020,Home to School Transport,30137568,31/07/2023,202305,462,100546,Links Taxis
Education and Inclusion,Revenue Budgets,Childrens Services,Education Transport,A0254,Home To School Transport Sen,A32020,Home to School Transport,30137608,31/07/2023,202305,"2,512.00",100546,Links Taxis
Education and Inclusion,Revenue Budgets,Childrens Services,Education Transport,A0254,Home To School Transport Sen,A32020,Home to School Transport,30137610,31/07/2023,202305,679,100546,Links Taxis
Education and Inclusion,Revenue Budgets,Childrens Services,Education Transport,A0254,Home To School Transport Sen,A32020,Home to School Transport,30137623,31/07/2023,202305,"2,440.00",100546,Links Taxis
Education and Inclusion,Revenue Budgets,Childrens Services,Education Transport,A0254,Home To School Transport Sen,A32020,Home to School Transport,30137624,31/07/2023,202305,"1,080.00",100546,Links Taxis
Education and Inclusion,Revenue Budgets,Childrens Services,Education Transport,A0254,Home To School Transport Sen,A32020,Home to School Transport,30137625,31/07/2023,202305,864.8,100546,Links Taxis
Education and Inclusion,Revenue Budgets,Childrens Services,Education Transport,A0254,Home To School Transport Sen,A32020,Home to School Transport,30137634,31/07/2023,202305,780,100546,Links Taxis
Education and Inclusion,Revenue Budgets,Childrens Services,Education Transport,A0253,Home To Sch Transport Sec-Gy,A32020,Home to School Transport,30137635,31/07/2023,202305,900,100546,Links Taxis
Education and Inclusion,Revenue Budgets,Childrens Services,Education Transport,A0254,Home To School Transport Sen,A32020,Home to School Transport,30137663,31/07/2023,202305,"2,451.00",100546,Links Taxis
Education and Inclusion,Revenue Budgets,Childrens Services,Education Transport,A0254,Home To School Transport Sen,A32020,Home to School Transport,30137668,31/07/2023,202305,575,100546,Links Taxis
Education and Inclusion,Revenue Budgets,Childrens Services,Education Transport,A0254,Home To School Transport Sen,A32020,Home to School Transport,30137669,31/07/2023,202305,"2,211.00",100546,Links Taxis
Education and Inclusion,Revenue Budgets,Childrens Services,Education Transport,A0254,Home To School Transport Sen,A32020,Home to School Transport,30137671,31/07/2023,202305,"1,456.00",100546,Links Taxis
Education and Inclusion,Revenue Budgets,Childrens Services,Education Transport,A0247,Post 16 Sen,A32020,Home to School Transport,30137674,31/07/2023,202305,416,100546,Links Taxis
Education and Inclusion,Revenue Budgets,Childrens Services,Education Transport,A0254,Home To School Transport Sen,A32020,Home to School Transport,30137678,31/07/2023,202305,"1,380.00",100546,Links Taxis
Education and Inclusion,Revenue Budgets,Childrens Services,Education Transport,A0254,Home To School Transport Sen,A32020,Home to School Transport,30137882,31/07/2023,202305,714,100546,Links Taxis
Education and Inclusion,Revenue Budgets,Childrens Services,Education Transport,A0254,Home To School Transport Sen,A32020,Home to School Transport,30137884,31/07/2023,202305,"1,011.00",100546,Links Taxis
Education and Inclusion,Revenue Budgets,Childrens Services,Education Transport,A0254,Home To School Transport Sen,A32020,Home to School Transport,30137893,31/07/2023,202305,"1,312.00",100546,Links Taxis
Education and Inclusion,Revenue Budgets,Childrens Services,Education Transport,A0254,Home To School Transport Sen,A32020,Home to School Transport,30137896,31/07/2023,202305,"1,044.00",100546,Links Taxis
Education and Inclusion,Revenue Budgets,Childrens Services,Education Transport,A0254,Home To School Transport Sen,A32020,Home to School Transport,30138830,31/07/2023,202305,"1,083.00",100546,Links Taxis
Education and Inclusion,Revenue Budgets,Childrens Services,Education Transport,A0252,Home To Sch Transport Pri-Grim,A32020,Home to School Transport,30138868,31/07/2023,202305,"1,476.00",100546,Links Taxis
Education and Inclusion,Revenue Budgets,Childrens Services,Education Transport,A0247,Post 16 Sen,A32020,Home to School Transport,30138871,31/07/2023,202305,267.41,100546,Links Taxis
Education and Inclusion,Revenue Budgets,Childrens Services,Education Transport,A0249,Excluded And Ap Transport,A32020,Home to School Transport,30138871,31/07/2023,202305,623.96,100546,Links Taxis
Education and Inclusion,Revenue Budgets,Childrens Services,Education Transport,A0248,Exceptional Circumstances,A32020,Home to School Transport,30138871,31/07/2023,202305,891.37,100546,Links Taxis
Education and Inclusion,Revenue Budgets,Childrens Services,Education Transport,A0254,Home To School Transport Sen,A32020,Home to School Transport,30138871,31/07/2023,202305,"7,130.96",100546,Links Taxis
Education and Inclusion,Revenue Budgets,Childrens Services,Education Transport,A0254,Home To School Transport Sen,A32020,Home to School Transport,30138877,31/07/2023,202305,620.42,107472,The Cambridge Park Academy
Education and Inclusion,Revenue Budgets,Childrens Services,Education Transport,A0254,Home To School Transport Sen,A32020,Home to School Transport,30138880,31/07/2023,202305,"1,535.99",107472,The Cambridge Park Academy
Education and Inclusion,Revenue Budgets,Childrens Services,Education Transport,A0254,Home To School Transport Sen,A32020,Home to School Transport,30138906,31/07/2023,202305,555,100546,Links Taxis
Education and Inclusion,Revenue Budgets,Childrens Services,Education Transport,A0254,Home To School Transport Sen,A32020,Home to School Transport,30138914,31/07/2023,202305,"1,072.00",100546,Links Taxis
Education and Inclusion,Revenue Budgets,Childrens Services,Education Transport,A0254,Home To School Transport Sen,A32020,Home to School Transport,30138916,31/07/2023,202305,902,100546,Links Taxis
Education and Inclusion,Revenue Budgets,Childrens Services,Education Transport,A0247,Post 16 Sen,A32020,Home to School Transport,30138975,31/07/2023,202305,687,1006501,Fab Cab
Education and Inclusion,Revenue Budgets,Childrens Services,Sen/Inclusion,A1563,Top Up Funding Post 16,A49105,Other Supplies & Services,30139022,31/07/2023,202305,"3,285.70",138704,Motorvation Training Ltd
Education and Inclusion,Revenue Budgets,Childrens Services,Education Transport,A0254,Home To School Transport Sen,A32020,Home to School Transport,30139104,31/07/2023,202305,"2,430.00",130777,Amvale Medical Transport Ltd
Education and Inclusion,Revenue Budgets,Childrens Services,Education Transport,A0254,Home To School Transport Sen,A32020,Home to School Transport,30139106,31/07/2023,202305,"2,085.00",130777,Amvale Medical Transport Ltd
Education and Inclusion,Revenue Budgets,Childrens Services,Education Transport,A0254,Home To School Transport Sen,A32020,Home to School Transport,30139111,31/07/2023,202305,"2,430.00",130777,Amvale Medical Transport Ltd
Education and Inclusion,Revenue Budgets,Childrens Services,Education Transport,A0254,Home To School Transport Sen,A32020,Home to School Transport,30139113,31/07/2023,202305,"2,235.00",130777,Amvale Medical Transport Ltd
Education and Inclusion,Revenue Budgets,Childrens Services,Education Transport,A0254,Home To School Transport Sen,A32020,Home to School Transport,30139115,31/07/2023,202305,"4,050.00",130777,Amvale Medical Transport Ltd
Education and Inclusion,Revenue Budgets,Childrens Services,Education Transport,A0254,Home To School Transport Sen,A32020,Home to School Transport,30139116,31/07/2023,202305,"2,475.00",130777,Amvale Medical Transport Ltd
Education and Inclusion,Revenue Budgets,Childrens Services,Education Transport,A0252,Home To Sch Transport Pri-Grim,A32020,Home to School Transport,30139117,31/07/2023,202305,"3,042.00",130777,Amvale Medical Transport Ltd
Education and Inclusion,Revenue Budgets,Childrens Services,Education Transport,A0254,Home To School Transport Sen,A32020,Home to School Transport,30139118,31/07/2023,202305,"2,025.00",130777,Amvale Medical Transport Ltd
Education and Inclusion,Revenue Budgets,Childrens Services,Education Transport,A0254,Home To School Transport Sen,A32020,Home to School Transport,30139126,31/07/2023,202305,"3,735.00",130777,Amvale Medical Transport Ltd
Education and Inclusion,Revenue Budgets,Childrens Services,Education Transport,A0254,Home To School Transport Sen,A32020,Home to School Transport,30139127,31/07/2023,202305,"2,385.00",130777,Amvale Medical Transport Ltd
Education and Inclusion,Revenue Budgets,Childrens Services,Education Transport,A0254,Home To School Transport Sen,A32020,Home to School Transport,30139129,31/07/2023,202305,"2,475.00",130777,Amvale Medical Transport Ltd
Education and Inclusion,Revenue Budgets,Childrens Services,Sen/Inclusion,A1783,Top-Up Non-Maintained & Indepe,A52005,Payments to Other Local Authorities,30140564,31/07/2023,202305,"3,696.00",107472,The Cambridge Park Academy
Education and Inclusion,Revenue Budgets,Childrens Services,Sen/Inclusion,A1565,Top Up Funding Academies & Fre,A49105,Other Supplies & Services,30140569,31/07/2023,202305,"40,205.00",107472,The Cambridge Park Academy
Education and Inclusion,Revenue Budgets,Childrens Services,Sen/Inclusion,A1783,Top-Up Non-Maintained & Indepe,A56000,Other Establishments,30141376,31/07/2023,202305,300,120445,Fortis Therapy & Training
Education and Inclusion,Revenue Budgets,Childrens Services,Education Transport,A0254,Home To School Transport Sen,A32020,Home to School Transport,30141425,31/07/2023,202305,"4,050.00",1003562,WAT Specialist Transport LTD T/A WAT
Education and Inclusion,Revenue Budgets,Childrens Services,Education Transport,A0254,Home To School Transport Sen,A32020,Home to School Transport,30141426,31/07/2023,202305,"1,640.00",1003562,WAT Specialist Transport LTD T/A WAT
Education and Inclusion,Revenue Budgets,Childrens Services,Education Transport,A0254,Home To School Transport Sen,A32020,Home to School Transport,30141439,31/07/2023,202305,"3,510.00",1003562,WAT Specialist Transport LTD T/A WAT
Education and Inclusion,Revenue Budgets,Childrens Services,Education Transport,A0254,Home To School Transport Sen,A32020,Home to School Transport,30141527,31/07/2023,202305,"1,700.00",1003562,WAT Specialist Transport LTD T/A WAT
Education and Inclusion,Revenue Budgets,Childrens Services,Employability and Skills,A1723,"Youth Careers, Info & Guidance",A56000,Other Establishments,30135845,01/08/2023,202305,"19,872.08",100389,Lincolnshire County Council
Education and Inclusion,Revenue Budgets,Childrens Services,Pupil Support Safeguard/Wellbeing,A0513,Lac Education,A60010,Tuition &/or Board Fees,30135940,01/08/2023,202305,360,1005014,Twist & Flip Gymnastics
Education and Inclusion,Revenue Budgets,Childrens Services,Sen/Inclusion,A0410,Ed Psychology Service,A40005,Equipment & Materials Learning,30136215,01/08/2023,202305,529.2,1002276,EdPsychEd Ltd
Education and Inclusion,Revenue Budgets,Childrens Services,Sen/Inclusion,A1858,Education Other than After Schools,A49105,Other Supplies & Services,30138976,01/08/2023,202305,480,1003902,Mind Jam
Education and Inclusion,Revenue Budgets,Childrens Services,Sen/Inclusion,A1896,Delivering Better Value,A49105,Other Supplies & Services,30139130,01/08/2023,202305,"15,000.00",1007030,"Evaluate IT Ltd, trading as EvaluateMySchool"
Education and Inclusion,Revenue Budgets,Childrens Services,Education Transport,A0254,Home To School Transport Sen,A32020,Home to School Transport,30136110,02/08/2023,202305,"2,574.00",121524,Grimsby Minibuses Ltd
Education and Inclusion,Revenue Budgets,Childrens Services,Education Transport,A0254,Home To School Transport Sen,A32020,Home to School Transport,30136115,02/08/2023,202305,"1,763.20",121524,Grimsby Minibuses Ltd
Education and Inclusion,Revenue Budgets,Childrens Services,Education Transport,A0254,Home To School Transport Sen,A32020,Home to School Transport,30136122,02/08/2023,202305,"2,268.00",121524,Grimsby Minibuses Ltd
Education and Inclusion,Revenue Budgets,Childrens Services,Education Transport,A0254,Home To School Transport Sen,A32020,Home to School Transport,30136127,02/08/2023,202305,"1,824.00",121524,Grimsby Minibuses Ltd
Education and Inclusion,Revenue Budgets,Childrens Services,Education Transport,A0253,Home To Sch Transport Sec-Gy,A32020,Home to School Transport,30136141,02/08/2023,202305,"2,484.00",121524,Grimsby Minibuses Ltd
Education and Inclusion,Revenue Budgets,Childrens Services,Education Transport,A0253,Home To Sch Transport Sec-Gy,A32020,Home to School Transport,30136406,02/08/2023,202305,"1,996.40",121524,Grimsby Minibuses Ltd
Education and Inclusion,Capital Spend,Childrens Services,Sufficiency Of School Places,Y1096,Stanford Primary,C01009,"New Construction, conversion & renovation",30136575,02/08/2023,202305,"134,752.71",144162,Topcon Building Ltd
Education and Inclusion,Revenue Budgets,Childrens Services,Sen/Inclusion,A1783,Top-Up Non-Maintained & Indepe,A52005,Payments to Other Local Authorities,30138979,02/08/2023,202305,"1,895.00",144120,Learning4life-Gy-Cic
Education and Inclusion,Revenue Budgets,Childrens Services,Sen/Inclusion,A1563,Top Up Funding Post 16,A52005,Payments to Other Local Authorities,30138982,02/08/2023,202305,"20,353.90",144120,Learning4life-Gy-Cic
Education and Inclusion,Revenue Budgets,Childrens Services,Sen/Inclusion,A1783,Top-Up Non-Maintained & Indepe,A52005,Payments to Other Local Authorities,30138987,02/08/2023,202305,"5,400.00",144120,Learning4life-Gy-Cic
Education and Inclusion,Revenue Budgets,Childrens Services,Sen/Inclusion,A1783,Top-Up Non-Maintained & Indepe,A52005,Payments to Other Local Authorities,30140130,02/08/2023,202305,"15,600.00",144120,Learning4life-Gy-Cic
Education and Inclusion,Revenue Budgets,Childrens Services,Sen/Inclusion,A1783,Top-Up Non-Maintained & Indepe,A52005,Payments to Other Local Authorities,30140240,02/08/2023,202305,"8,697.00",144120,Learning4life-Gy-Cic
Education and Inclusion,Revenue Budgets,Childrens Services,Education Transport,A0254,Home To School Transport Sen,A32020,Home to School Transport,30136837,03/08/2023,202305,"1,267.75",100509,Arco Ltd
Education and Inclusion,Revenue Budgets,Childrens Services,Sen/Inclusion,A1565,Top Up Funding Academies & Fre,A47007,Contributions - Third Sector,42244923,03/08/2023,202305,"2,091.01",REDACTED PERSONAL INFORMATION,REDACTED PERSONAL INFORMATION
Education and Inclusion,Revenue Budgets,Childrens Services,Sen/Inclusion,A1565,Top Up Funding Academies & Fre,A47007,Contributions - Third Sector,42244995,03/08/2023,202305,"1,737.28",REDACTED PERSONAL INFORMATION,REDACTED PERSONAL INFORMATION
Education and Inclusion,Revenue Budgets,Childrens Services,Pupil Support Safeguard/Wellbeing,A0513,Lac Education,A61158,Childminders/Nurseries/Playgrp,30136902,04/08/2023,202305,360.25,1006044,Rascals
Education and Inclusion,Revenue Budgets,Childrens Services,Education Transport,A0254,Home To School Transport Sen,A40920,Purchase of Equipment,30137124,04/08/2023,202305,918,132437,In Car Safety Centre
Education and Inclusion,Revenue Budgets,Childrens Services,Sen/Inclusion,A1563,Top Up Funding Post 16,A52005,Payments to Other Local Authorities,30137242,04/08/2023,202305,"10,229.70",101728,Community Press Office Ltd
Education and Inclusion,Revenue Budgets,Childrens Services,Education Transport,A0254,Home To School Transport Sen,A32020,Home to School Transport,30140096,06/08/2023,202305,"6,278.00",100546,Links Taxis
Education and Inclusion,Revenue Budgets,Childrens Services,Sen/Inclusion,A1783,Top-Up Non-Maintained & Indepe,A52005,Payments to Other Local Authorities,30139677,09/08/2023,202305,"6,385.71",1000489,Acorn Care & Education Ltd (Sales)
Education and Inclusion,Revenue Budgets,Childrens Services,Pupil Support Safeguard/Wellbeing,A0513,Lac Education,A49105,Other Supplies & Services,30138024,10/08/2023,202305,400,121907,Eastfield Primary Academy
Education and Inclusion,Revenue Budgets,Childrens Services,Pupil Support Safeguard/Wellbeing,A0513,Lac Education,A49105,Other Supplies & Services,30138024,10/08/2023,202305,400,126685,Phoenix Park Academy
Education and Inclusion,Revenue Budgets,Childrens Services,Pupil Support Safeguard/Wellbeing,A0513,Lac Education,A49105,Other Supplies & Services,30138024,10/08/2023,202305,400,122175,Reynolds Academy
Education and Inclusion,Revenue Budgets,Childrens Services,Pupil Support Safeguard/Wellbeing,A0513,Lac Education,A49105,Other Supplies & Services,30138024,10/08/2023,202305,400,111750,Ormiston South Parade Academy
Education and Inclusion,Revenue Budgets,Childrens Services,Pupil Support Safeguard/Wellbeing,A0513,Lac Education,A49105,Other Supplies & Services,30138024,10/08/2023,202305,400,136302,William Barcroft Junior Academy
Education and Inclusion,Revenue Budgets,Childrens Services,Pupil Support Safeguard/Wellbeing,A0513,Lac Education,A49105,Other Supplies & Services,30138024,10/08/2023,202305,400,112852,Yarborough Academy
Education and Inclusion,Revenue Budgets,Childrens Services,Pupil Support Safeguard/Wellbeing,A0513,Lac Education,A49105,Other Supplies & Services,30138024,10/08/2023,202305,800,129629,Elliston Primary Academy
Education and Inclusion,Revenue Budgets,Childrens Services,Pupil Support Safeguard/Wellbeing,A0513,Lac Education,A49105,Other Supplies & Services,30138024,10/08/2023,202305,800,125655,Humberston Cloverfields Academy School
Education and Inclusion,Revenue Budgets,Childrens Services,Pupil Support Safeguard/Wellbeing,A0513,Lac Education,A49105,Other Supplies & Services,30138024,10/08/2023,202305,800,107922,Lisle Marsden C Of E Primary Academy
Education and Inclusion,Revenue Budgets,Childrens Services,Pupil Support Safeguard/Wellbeing,A0513,Lac Education,A49105,Other Supplies & Services,30138024,10/08/2023,202305,800,114833,Middlethorpe Primary Academy
Education and Inclusion,Revenue Budgets,Childrens Services,Pupil Support Safeguard/Wellbeing,A0513,Lac Education,A49105,Other Supplies & Services,30138024,10/08/2023,202305,800,110066,St Joseph'S Rc Primary Academy
Education and Inclusion,Revenue Budgets,Childrens Services,Pupil Support Safeguard/Wellbeing,A0513,Lac Education,A49105,Other Supplies & Services,30138024,10/08/2023,202305,800,115108,St Marys Catholic Primary Voluntary Academy
Education and Inclusion,Revenue Budgets,Childrens Services,Pupil Support Safeguard/Wellbeing,A0513,Lac Education,A49105,Other Supplies & Services,30138024,10/08/2023,202305,800,111862,Strand Primary Academy
Education and Inclusion,Revenue Budgets,Childrens Services,Pupil Support Safeguard/Wellbeing,A0513,Lac Education,A49105,Other Supplies & Services,30138024,10/08/2023,202305,800,132649,Woodlands Academy
Education and Inclusion,Revenue Budgets,Childrens Services,Pupil Support Safeguard/Wellbeing,A0513,Lac Education,A49105,Other Supplies & Services,30138024,10/08/2023,202305,"1,200.00",111742,Edward Heneage Primary (Academy)
Education and Inclusion,Revenue Budgets,Childrens Services,Pupil Support Safeguard/Wellbeing,A0513,Lac Education,A49105,Other Supplies & Services,30138024,10/08/2023,202305,"1,200.00",129030,Fairfield Primary Academy
Education and Inclusion,Revenue Budgets,Childrens Services,Pupil Support Safeguard/Wellbeing,A0513,Lac Education,A49105,Other Supplies & Services,30138024,10/08/2023,202305,"1,200.00",134467,Great Coates Primary Academy
Education and Inclusion,Revenue Budgets,Childrens Services,Pupil Support Safeguard/Wellbeing,A0513,Lac Education,A49105,Other Supplies & Services,30138024,10/08/2023,202305,"1,200.00",134261,Littlecoates Primary Academy
Education and Inclusion,Revenue Budgets,Childrens Services,Pupil Support Safeguard/Wellbeing,A0513,Lac Education,A49105,Other Supplies & Services,30138024,10/08/2023,202305,"1,200.00",119822,Old Clee Primary Academy
Education and Inclusion,Revenue Budgets,Childrens Services,Pupil Support Safeguard/Wellbeing,A0513,Lac Education,A49105,Other Supplies & Services,30138024,10/08/2023,202305,"1,600.00",111550,Bursar Primary Academy
Education and Inclusion,Revenue Budgets,Childrens Services,Pupil Support Safeguard/Wellbeing,A0513,Lac Education,A49105,Other Supplies & Services,30138024,10/08/2023,202305,"1,600.00",107472,The Cambridge Park Academy
Education and Inclusion,Revenue Budgets,Childrens Services,Pupil Support Safeguard/Wellbeing,A0513,Lac Education,A49105,Other Supplies & Services,30138024,10/08/2023,202305,"1,600.00",122861,Oasis Academy School (Nunsthorpe School)
Education and Inclusion,Revenue Budgets,Childrens Services,Pupil Support Safeguard/Wellbeing,A0513,Lac Education,A49105,Other Supplies & Services,30138024,10/08/2023,202305,"2,400.00",112680,Macaulay Primary Academy
Education and Inclusion,Revenue Budgets,Childrens Services,Pupil Support Safeguard/Wellbeing,A0513,Lac Education,A49105,Other Supplies & Services,30138024,10/08/2023,202305,"2,400.00",111161,Weelsby Academy
Education and Inclusion,Revenue Budgets,Childrens Services,Pupil Support Safeguard/Wellbeing,A0513,Lac Education,A49105,Other Supplies & Services,30138024,10/08/2023,202305,"2,400.00",120478,Willows Primary Academy
Education and Inclusion,Revenue Budgets,Childrens Services,Pupil Support Safeguard/Wellbeing,A0513,Lac Education,A49105,Other Supplies & Services,30138024,10/08/2023,202305,"2,800.00",126646,Canon Peter Hall Ce Primary Academy
Education and Inclusion,Revenue Budgets,Childrens Services,Pupil Support Safeguard/Wellbeing,A0513,Lac Education,A49105,Other Supplies & Services,30138024,10/08/2023,202305,"2,800.00",108556,New Waltham Academy
Education and Inclusion,Revenue Budgets,Childrens Services,Pupil Support Safeguard/Wellbeing,A0513,Lac Education,A49105,Other Supplies & Services,30138024,10/08/2023,202305,"3,200.00",136366,Pilgrim Academy
Education and Inclusion,Revenue Budgets,Childrens Services,Pupil Support Safeguard/Wellbeing,A0513,Lac Education,A49105,Other Supplies & Services,30138024,10/08/2023,202305,"4,000.00",127227,Welholme Academy
Education and Inclusion,Revenue Budgets,Childrens Services,Pupil Support Safeguard/Wellbeing,A0513,Lac Education,A90130,Pupil Premium Grant,30138024,10/08/2023,202305,"1,200.00",138130,Beacon Academy
Education and Inclusion,Revenue Budgets,Childrens Services,Pupil Support Safeguard/Wellbeing,A0513,Lac Education,A49105,Other Supplies & Services,30138025,10/08/2023,202305,400,1002666,Alderman Cogans CofE Primary Academy
Education and Inclusion,Revenue Budgets,Childrens Services,Pupil Support Safeguard/Wellbeing,A0513,Lac Education,A49105,Other Supplies & Services,30138025,10/08/2023,202305,400,127070,Alkborough Primary
Education and Inclusion,Revenue Budgets,Childrens Services,Pupil Support Safeguard/Wellbeing,A0513,Lac Education,A49105,Other Supplies & Services,30138025,10/08/2023,202305,400,1002672,Beacon Primary Academy
Education and Inclusion,Revenue Budgets,Childrens Services,Pupil Support Safeguard/Wellbeing,A0513,Lac Education,A49105,Other Supplies & Services,30138025,10/08/2023,202305,400,1005497,Broom Cottages Primary School
Education and Inclusion,Revenue Budgets,Childrens Services,Pupil Support Safeguard/Wellbeing,A0513,Lac Education,A49105,Other Supplies & Services,30138025,10/08/2023,202305,400,101186,North Lincolnshire Council
Education and Inclusion,Revenue Budgets,Childrens Services,Pupil Support Safeguard/Wellbeing,A0513,Lac Education,A49105,Other Supplies & Services,30138025,10/08/2023,202305,400,1005282,Crookesbroom Primary School
Education and Inclusion,Revenue Budgets,Childrens Services,Pupil Support Safeguard/Wellbeing,A0513,Lac Education,A49105,Other Supplies & Services,30138025,10/08/2023,202305,400,1005814,Dovecote Primary School
Education and Inclusion,Revenue Budgets,Childrens Services,Pupil Support Safeguard/Wellbeing,A0513,Lac Education,A49105,Other Supplies & Services,30138025,10/08/2023,202305,400,1002581,Goxhill Primary School
Education and Inclusion,Revenue Budgets,Childrens Services,Pupil Support Safeguard/Wellbeing,A0513,Lac Education,A49105,Other Supplies & Services,30138025,10/08/2023,202305,400,1002679,Grainthorpe Junior School
Education and Inclusion,Revenue Budgets,Childrens Services,Pupil Support Safeguard/Wellbeing,A0513,Lac Education,A49105,Other Supplies & Services,30138025,10/08/2023,202305,400,145671,Hillcrest Academy
Education and Inclusion,Revenue Budgets,Childrens Services,Pupil Support Safeguard/Wellbeing,A0513,Lac Education,A49105,Other Supplies & Services,30138025,10/08/2023,202305,400,121732,Holton Le Clay Junior School
Education and Inclusion,Revenue Budgets,Childrens Services,Pupil Support Safeguard/Wellbeing,A0513,Lac Education,A49105,Other Supplies & Services,30138025,10/08/2023,202305,400,1004872,Hornsea Community Primary School
Education and Inclusion,Revenue Budgets,Childrens Services,Pupil Support Safeguard/Wellbeing,A0513,Lac Education,A49105,Other Supplies & Services,30138025,10/08/2023,202305,400,1007016,Greenwood Academies Trust T/A Ingoldmells Academy
Education and Inclusion,Revenue Budgets,Childrens Services,Pupil Support Safeguard/Wellbeing,A0513,Lac Education,A49105,Other Supplies & Services,30138025,10/08/2023,202305,400,144759,Lincoln Gardens Primary School
Education and Inclusion,Revenue Budgets,Childrens Services,Pupil Support Safeguard/Wellbeing,A0513,Lac Education,A49105,Other Supplies & Services,30138025,10/08/2023,202305,400,1004850,Ling Moor Priory Academy
Education and Inclusion,Revenue Budgets,Childrens Services,Pupil Support Safeguard/Wellbeing,A0513,Lac Education,A49105,Other Supplies & Services,30138025,10/08/2023,202305,400,1005415,Lutton St Nicholas Primary School
Education and Inclusion,Revenue Budgets,Childrens Services,Pupil Support Safeguard/Wellbeing,A0513,Lac Education,A49105,Other Supplies & Services,30138025,10/08/2023,202305,400,138947,Market Rasen Church Of England Primary School
Education and Inclusion,Revenue Budgets,Childrens Services,Pupil Support Safeguard/Wellbeing,A0513,Lac Education,A49105,Other Supplies & Services,30138025,10/08/2023,202305,400,148586,Monk Fyston C Of E Pri School
Education and Inclusion,Revenue Budgets,Childrens Services,Pupil Support Safeguard/Wellbeing,A0513,Lac Education,A49105,Other Supplies & Services,30138025,10/08/2023,202305,400,1004860,Mountbatten Primary School
Education and Inclusion,Revenue Budgets,Childrens Services,Pupil Support Safeguard/Wellbeing,A0513,Lac Education,A49105,Other Supplies & Services,30138025,10/08/2023,202305,400,147839,Nettleton Community Primary School
Education and Inclusion,Revenue Budgets,Childrens Services,Pupil Support Safeguard/Wellbeing,A0513,Lac Education,A49105,Other Supplies & Services,30138025,10/08/2023,202305,400,1004845,Seamer & Irton CP School
Education and Inclusion,Revenue Budgets,Childrens Services,Pupil Support Safeguard/Wellbeing,A0513,Lac Education,A49105,Other Supplies & Services,30138025,10/08/2023,202305,400,1002694,Skegness Infant Academy
Education and Inclusion,Revenue Budgets,Childrens Services,Pupil Support Safeguard/Wellbeing,A0513,Lac Education,A49105,Other Supplies & Services,30138025,10/08/2023,202305,400,1004888,Skegness Junior Academy
Education and Inclusion,Revenue Budgets,Childrens Services,Pupil Support Safeguard/Wellbeing,A0513,Lac Education,A49105,Other Supplies & Services,30138025,10/08/2023,202305,400,1004908,St James CE Academy
Education and Inclusion,Revenue Budgets,Childrens Services,Pupil Support Safeguard/Wellbeing,A0513,Lac Education,A49105,Other Supplies & Services,30138025,10/08/2023,202305,400,1002577,St John of Beverley Primary
Education and Inclusion,Revenue Budgets,Childrens Services,Pupil Support Safeguard/Wellbeing,A0513,Lac Education,A49105,Other Supplies & Services,30138025,10/08/2023,202305,400,1002686,Warren Wood Specialist Academy
Education and Inclusion,Revenue Budgets,Childrens Services,Pupil Support Safeguard/Wellbeing,A0513,Lac Education,A49105,Other Supplies & Services,30138025,10/08/2023,202305,600,1002680,The Grange Primary School
Education and Inclusion,Revenue Budgets,Childrens Services,Pupil Support Safeguard/Wellbeing,A0513,Lac Education,A49105,Other Supplies & Services,30138025,10/08/2023,202305,800,1004191,Bramley St Peter's C of E Primary School
Education and Inclusion,Revenue Budgets,Childrens Services,Pupil Support Safeguard/Wellbeing,A0513,Lac Education,A49105,Other Supplies & Services,30138025,10/08/2023,202305,800,146300,Burton Green Primary School
Education and Inclusion,Revenue Budgets,Childrens Services,Pupil Support Safeguard/Wellbeing,A0513,Lac Education,A49105,Other Supplies & Services,30138025,10/08/2023,202305,800,1004397,Charles Baines Community Primary School
Education and Inclusion,Revenue Budgets,Childrens Services,Pupil Support Safeguard/Wellbeing,A0513,Lac Education,A49105,Other Supplies & Services,30138025,10/08/2023,202305,800,147940,Fortuna Primary School
Education and Inclusion,Revenue Budgets,Childrens Services,Pupil Support Safeguard/Wellbeing,A0513,Lac Education,A49105,Other Supplies & Services,30138025,10/08/2023,202305,800,148018,Holton-Le-Clay Infant School
Education and Inclusion,Revenue Budgets,Childrens Services,Pupil Support Safeguard/Wellbeing,A0513,Lac Education,A49105,Other Supplies & Services,30138025,10/08/2023,202305,800,1005498,Kelsey Primary School
Education and Inclusion,Revenue Budgets,Childrens Services,Pupil Support Safeguard/Wellbeing,A0513,Lac Education,A49105,Other Supplies & Services,30138025,10/08/2023,202305,800,1002701,Lincoln Carlton Academy
Education and Inclusion,Revenue Budgets,Childrens Services,Pupil Support Safeguard/Wellbeing,A0513,Lac Education,A49105,Other Supplies & Services,30138025,10/08/2023,202305,800,1002700,Monkfield Primary School
Education and Inclusion,Revenue Budgets,Childrens Services,Pupil Support Safeguard/Wellbeing,A0513,Lac Education,A49105,Other Supplies & Services,30138025,10/08/2023,202305,800,1002698,Navenby CofE Primary School
Education and Inclusion,Revenue Budgets,Childrens Services,Pupil Support Safeguard/Wellbeing,A0513,Lac Education,A49105,Other Supplies & Services,30138025,10/08/2023,202305,800,1004323,Partney C of E Aided Primary School
Education and Inclusion,Revenue Budgets,Childrens Services,Pupil Support Safeguard/Wellbeing,A0513,Lac Education,A49105,Other Supplies & Services,30138025,10/08/2023,202305,800,1005355,Slip End Village School
Education and Inclusion,Revenue Budgets,Childrens Services,Pupil Support Safeguard/Wellbeing,A0513,Lac Education,A49105,Other Supplies & Services,30138025,10/08/2023,202305,800,113762,Tetney Primary School
Education and Inclusion,Revenue Budgets,Childrens Services,Pupil Support Safeguard/Wellbeing,A0513,Lac Education,A49105,Other Supplies & Services,30138025,10/08/2023,202305,800,151215,Ward Jackson CofE Primary School
Education and Inclusion,Revenue Budgets,Childrens Services,Pupil Support Safeguard/Wellbeing,A0513,Lac Education,A49105,Other Supplies & Services,30138025,10/08/2023,202305,"1,000.00",149384,Sheep Dip Lane Academy
Education and Inclusion,Revenue Budgets,Childrens Services,Pupil Support Safeguard/Wellbeing,A0513,Lac Education,A49105,Other Supplies & Services,30138025,10/08/2023,202305,"1,200.00",148562,Eastrington Primary School
Education and Inclusion,Revenue Budgets,Childrens Services,Pupil Support Safeguard/Wellbeing,A0513,Lac Education,A49105,Other Supplies & Services,30138025,10/08/2023,202305,"1,600.00",1006591,Hemingbrough CP School
Education and Inclusion,Revenue Budgets,Childrens Services,Pupil Support Safeguard/Wellbeing,A0513,Lac Education,A49105,Other Supplies & Services,30138025,10/08/2023,202305,"1,600.00",150499,Swavesey Primary School
Education and Inclusion,Revenue Budgets,Childrens Services,Pupil Support Safeguard/Wellbeing,A0513,Lac Education,A90130,Pupil Premium Grant,30138025,10/08/2023,202305,"1,000.00",149384,Sheep Dip Lane Academy
Education and Inclusion,Revenue Budgets,Childrens Services,Pupil Support Safeguard/Wellbeing,A0513,Lac Education,A60010,Tuition &/or Board Fees,42246053,10/08/2023,202305,540,REDACTED PERSONAL INFORMATION,REDACTED PERSONAL INFORMATION
Education and Inclusion,Revenue Budgets,Childrens Services,Sen/Inclusion,A1783,Top-Up Non-Maintained & Indepe,A52005,Payments to Other Local Authorities,30139679,11/08/2023,202305,"10,211.70",1000489,Acorn Care & Education Ltd (Sales)
Education and Inclusion,Revenue Budgets,Childrens Services,Sen/Inclusion,A1783,Top-Up Non-Maintained & Indepe,A52005,Payments to Other Local Authorities,30140087,11/08/2023,202305,"11,129.94",1000489,Acorn Care & Education Ltd (Sales)
Education and Inclusion,Revenue Budgets,Childrens Services,Sen/Inclusion,A1783,Top-Up Non-Maintained & Indepe,A52005,Payments to Other Local Authorities,30140092,11/08/2023,202305,"8,268.33",1000489,Acorn Care & Education Ltd (Sales)
Education and Inclusion,Revenue Budgets,Childrens Services,Sen/Inclusion,A1783,Top-Up Non-Maintained & Indepe,A52005,Payments to Other Local Authorities,30140095,11/08/2023,202305,"11,117.01",1000489,Acorn Care & Education Ltd (Sales)
Education and Inclusion,Revenue Budgets,Childrens Services,Sen/Inclusion,A1783,Top-Up Non-Maintained & Indepe,A52005,Payments to Other Local Authorities,30140099,11/08/2023,202305,"10,162.05",1000489,Acorn Care & Education Ltd (Sales)
Education and Inclusion,Revenue Budgets,Childrens Services,Attainment and Progress,A0595,Reynolds Cc Daycare,A21005,Electricity,30139069,15/08/2023,202305,741.31,122175,Reynolds Academy
Education and Inclusion,Revenue Budgets,Childrens Services,Sen/Inclusion,A0277,Ap And Other High Needs,A47007,Contributions - Third Sector,30139510,17/08/2023,202305,"30,799.00",128660,Sevenhills Academy
Education and Inclusion,Revenue Budgets,Childrens Services,Sen/Inclusion,A0277,Ap And Other High Needs,A47007,Contributions - Third Sector,30139510,17/08/2023,202305,"36,189.00",126685,Phoenix Park Academy
Education and Inclusion,Revenue Budgets,Childrens Services,Sen/Inclusion,A0277,Ap And Other High Needs,A47007,Contributions - Third Sector,30139510,17/08/2023,202305,"53,128.00",107911,Humberston Park Special School
Education and Inclusion,Revenue Budgets,Childrens Services,Sen/Inclusion,A0277,Ap And Other High Needs,A47007,Contributions - Third Sector,30139510,17/08/2023,202305,"84,697.00",107472,The Cambridge Park Academy
Education and Inclusion,Revenue Budgets,Childrens Services,Sen/Inclusion,A1565,Top Up Funding Academies & Fre,A48900,Contingency Reserve,30139510,17/08/2023,202305,"3,849.00",107472,The Cambridge Park Academy
Education and Inclusion,Revenue Budgets,Childrens Services,Sen/Inclusion,A1565,Top Up Funding Academies & Fre,A48900,Contingency Reserve,30139510,17/08/2023,202305,"9,166.00",107472,The Cambridge Park Academy
Education and Inclusion,Revenue Budgets,Childrens Services,Sen/Inclusion,A1564,Top Up Funding Ap Provision,A48900,Contingency Reserve,30139510,17/08/2023,202305,"66,333.00",128660,Sevenhills Academy
Education and Inclusion,Revenue Budgets,Childrens Services,Sen/Inclusion,A1564,Top Up Funding Ap Provision,A48900,Contingency Reserve,30139510,17/08/2023,202305,"81,134.00",126685,Phoenix Park Academy
Education and Inclusion,Revenue Budgets,Childrens Services,Sen/Inclusion,A1565,Top Up Funding Academies & Fre,A48900,Contingency Reserve,30139510,17/08/2023,202305,"157,913.00",107911,Humberston Park Special School
Education and Inclusion,Revenue Budgets,Childrens Services,Sen/Inclusion,A1565,Top Up Funding Academies & Fre,A48900,Contingency Reserve,30139510,17/08/2023,202305,"196,088.00",107472,The Cambridge Park Academy
Education and Inclusion,Revenue Budgets,Childrens Services,Sen/Inclusion,A1564,Top Up Funding Ap Provision,A49105,Other Supplies & Services,30139510,17/08/2023,202305,"2,013.00",121907,Eastfield Primary Academy
Education and Inclusion,Revenue Budgets,Childrens Services,Sen/Inclusion,A1564,Top Up Funding Ap Provision,A49105,Other Supplies & Services,30139510,17/08/2023,202305,"6,300.00",121907,Eastfield Primary Academy
Education and Inclusion,Revenue Budgets,Childrens Services,Sen/Inclusion,A1564,Top Up Funding Ap Provision,A49105,Other Supplies & Services,30139510,17/08/2023,202305,"9,450.00",121907,Eastfield Primary Academy
Education and Inclusion,Revenue Budgets,Childrens Services,Sen/Inclusion,A1565,Top Up Funding Academies & Fre,A47008,Contributions - Other,30139711,18/08/2023,202305,"1,381.00",132649,Woodlands Academy
Education and Inclusion,Revenue Budgets,Childrens Services,Sen/Inclusion,A1565,Top Up Funding Academies & Fre,A47008,Contributions - Other,30139711,18/08/2023,202305,"1,744.00",134905,St Peters Cofe Primary Academy
Education and Inclusion,Revenue Budgets,Childrens Services,Sen/Inclusion,A1565,Top Up Funding Academies & Fre,A47008,Contributions - Other,30139711,18/08/2023,202305,"1,892.00",127192,Healing Primary Academy
Education and Inclusion,Revenue Budgets,Childrens Services,Sen/Inclusion,A1565,Top Up Funding Academies & Fre,A47008,Contributions - Other,30139711,18/08/2023,202305,"2,510.00",101947,Oasis Academy Immingham
Education and Inclusion,Revenue Budgets,Childrens Services,Sen/Inclusion,A1565,Top Up Funding Academies & Fre,A47008,Contributions - Other,30139711,18/08/2023,202305,"2,550.00",121907,Eastfield Primary Academy
Education and Inclusion,Revenue Budgets,Childrens Services,Sen/Inclusion,A1565,Top Up Funding Academies & Fre,A47008,Contributions - Other,30139711,18/08/2023,202305,"3,186.00",136302,William Barcroft Junior Academy
Education and Inclusion,Revenue Budgets,Childrens Services,Sen/Inclusion,A1565,Top Up Funding Academies & Fre,A47008,Contributions - Other,30139711,18/08/2023,202305,"3,215.00",107922,Lisle Marsden C Of E Primary Academy
Education and Inclusion,Revenue Budgets,Childrens Services,Sen/Inclusion,A1565,Top Up Funding Academies & Fre,A47008,Contributions - Other,30139711,18/08/2023,202305,"3,475.00",134467,Great Coates Primary Academy
Education and Inclusion,Revenue Budgets,Childrens Services,Sen/Inclusion,A1565,Top Up Funding Academies & Fre,A47008,Contributions - Other,30139711,18/08/2023,202305,"3,862.00",109167,East Ravendale C Of E Primary School Academy
Education and Inclusion,Revenue Budgets,Childrens Services,Sen/Inclusion,A1565,Top Up Funding Academies & Fre,A47008,Contributions - Other,30139711,18/08/2023,202305,"3,862.00",131526,Enfield Academy Of New Waltham
Education and Inclusion,Revenue Budgets,Childrens Services,Sen/Inclusion,A1565,Top Up Funding Academies & Fre,A47008,Contributions - Other,30139711,18/08/2023,202305,"3,898.00",114560,Toll Bar Academy
Education and Inclusion,Revenue Budgets,Childrens Services,Sen/Inclusion,A1565,Top Up Funding Academies & Fre,A47008,Contributions - Other,30139711,18/08/2023,202305,"4,560.00",110645,Signhills Infants Academy
Education and Inclusion,Revenue Budgets,Childrens Services,Sen/Inclusion,A1565,Top Up Funding Academies & Fre,A47008,Contributions - Other,30139711,18/08/2023,202305,"4,659.00",111750,Ormiston South Parade Academy
Education and Inclusion,Revenue Budgets,Childrens Services,Sen/Inclusion,A1565,Top Up Funding Academies & Fre,A47008,Contributions - Other,30139711,18/08/2023,202305,"4,853.00",111862,Strand Primary Academy
Education and Inclusion,Revenue Budgets,Childrens Services,Sen/Inclusion,A1565,Top Up Funding Academies & Fre,A47008,Contributions - Other,30139711,18/08/2023,202305,"5,301.00",114833,Middlethorpe Primary Academy
Education and Inclusion,Revenue Budgets,Childrens Services,Sen/Inclusion,A1565,Top Up Funding Academies & Fre,A47008,Contributions - Other,30139711,18/08/2023,202305,"5,455.00",112852,Yarborough Academy
Education and Inclusion,Revenue Budgets,Childrens Services,Sen/Inclusion,A1565,Top Up Funding Academies & Fre,A47008,Contributions - Other,30139711,18/08/2023,202305,"5,549.00",106898,John Whitgift Academy
Education and Inclusion,Revenue Budgets,Childrens Services,Sen/Inclusion,A1565,Top Up Funding Academies & Fre,A47008,Contributions - Other,30139711,18/08/2023,202305,"5,783.00",127227,Welholme Academy
Education and Inclusion,Revenue Budgets,Childrens Services,Sen/Inclusion,A1565,Top Up Funding Academies & Fre,A47008,Contributions - Other,30139711,18/08/2023,202305,"6,288.00",118749,Thrunscoe Primary And Nursery Academy
Education and Inclusion,Revenue Budgets,Childrens Services,Sen/Inclusion,A1565,Top Up Funding Academies & Fre,A47008,Contributions - Other,30139711,18/08/2023,202305,"6,358.00",134261,Littlecoates Primary Academy
Education and Inclusion,Revenue Budgets,Childrens Services,Sen/Inclusion,A1565,Top Up Funding Academies & Fre,A47008,Contributions - Other,30139711,18/08/2023,202305,"6,940.00",129030,Fairfield Primary Academy
Education and Inclusion,Revenue Budgets,Childrens Services,Sen/Inclusion,A1565,Top Up Funding Academies & Fre,A47008,Contributions - Other,30139711,18/08/2023,202305,"7,688.00",110066,St Joseph'S Rc Primary Academy
Education and Inclusion,Revenue Budgets,Childrens Services,Sen/Inclusion,A1565,Top Up Funding Academies & Fre,A47008,Contributions - Other,30139711,18/08/2023,202305,"8,146.00",106067,Humberston Academy
Education and Inclusion,Revenue Budgets,Childrens Services,Sen/Inclusion,A1565,Top Up Funding Academies & Fre,A47008,Contributions - Other,30139711,18/08/2023,202305,"8,540.00",119822,Old Clee Primary Academy
Education and Inclusion,Revenue Budgets,Childrens Services,Sen/Inclusion,A1565,Top Up Funding Academies & Fre,A47008,Contributions - Other,30139711,18/08/2023,202305,"9,480.00",111550,Bursar Primary Academy
Education and Inclusion,Revenue Budgets,Childrens Services,Sen/Inclusion,A1565,Top Up Funding Academies & Fre,A47008,Contributions - Other,30139711,18/08/2023,202305,"10,157.00",109335,Waltham Leas Primary Academy
Education and Inclusion,Revenue Budgets,Childrens Services,Sen/Inclusion,A1565,Top Up Funding Academies & Fre,A47008,Contributions - Other,30139711,18/08/2023,202305,"10,244.00",122175,Reynolds Academy
Education and Inclusion,Revenue Budgets,Childrens Services,Sen/Inclusion,A1565,Top Up Funding Academies & Fre,A47008,Contributions - Other,30139711,18/08/2023,202305,"14,229.00",102702,Healing Science Academy Ltd
Education and Inclusion,Revenue Budgets,Childrens Services,Sen/Inclusion,A1565,Top Up Funding Academies & Fre,A47008,Contributions - Other,30139711,18/08/2023,202305,"19,569.00",101939,Oasis Academy Wintringham
Education and Inclusion,Revenue Budgets,Childrens Services,Sen/Inclusion,A1565,Top Up Funding Academies & Fre,A47008,Contributions - Other,30139711,18/08/2023,202305,"19,764.00",108738,Scartho Junior Academy
Education and Inclusion,Revenue Budgets,Childrens Services,Sen/Inclusion,A1565,Top Up Funding Academies & Fre,A47008,Contributions - Other,30139711,18/08/2023,202305,"22,566.00",106066,Ormiston Maritime Academy
Education and Inclusion,Revenue Budgets,Childrens Services,Sen/Inclusion,A1783,Top-Up Non-Maintained & Indepe,A52005,Payments to Other Local Authorities,30139896,18/08/2023,202305,"10,556.94",100406,Kisimul School
Education and Inclusion,Capital Spend,Childrens Services,Sufficiency Of School Places,Y1868,Cleethorpes Academy,C01009,"New Construction, conversion & renovation",30139965,21/08/2023,202305,450,1005580,Lucion Services Limited
Education and Inclusion,Capital Spend,Childrens Services,Sufficiency Of School Places,Y1867,Scartho Provision,C01011,External Professional Fees,30140308,22/08/2023,202305,750,1007007,Sound Solutions Consultants Limited
Education and Inclusion,Capital Spend,Childrens Services,Sufficiency Of School Places,Y1867,Scartho Provision,C01011,External Professional Fees,30140308,22/08/2023,202305,"1,126.25",1007007,Sound Solutions Consultants Limited
Education and Inclusion,Capital Spend,Childrens Services,Sufficiency Of School Places,Y1869,Waltham Provision,C01011,External Professional Fees,30140316,22/08/2023,202305,"1,876.25",1007007,Sound Solutions Consultants Limited
Education and Inclusion,Revenue Budgets,Childrens Services,Education Transport,A0254,Home To School Transport Sen,A32020,Home to School Transport,30140365,23/08/2023,202305,"2,188.80",121524,Grimsby Minibuses Ltd
Education and Inclusion,Revenue Budgets,Childrens Services,Education Transport,A0254,Home To School Transport Sen,A32020,Home to School Transport,30140369,23/08/2023,202305,"2,188.80",121524,Grimsby Minibuses Ltd
Environment,Capital Spend,Environment,Enhancement Bereavement Serv,Y1764,Extension To Clee Cemetary,C01009,"New Construction, conversion & renovation",30136315,14/03/2023,202305,"4,257.55",100579,Specialist Surfacing Limited
Environment,Revenue Budgets,Environment,Grounds & Bereavement Services,A0661,Grounds Maint And Parks,A57115,Payments to Private Contractors,30139088,05/06/2023,202305,"6,457.49",1001056,Healing Parish Council
Environment,Revenue Budgets,Environment,Street Cleansing,A0673,Street Cleansing,A30010,Vehicles Repairs,30137934,13/06/2023,202305,290,1001841,Nice Ponds
Environment,Revenue Budgets,Environment,Garage & Fleet Strategy,A0665,Garage - Lab Holding,A30010,Vehicles Repairs,30139036,30/06/2023,202305,457.2,100537,T C Harrison J C B
Environment,Revenue Budgets,Environment,Grounds & Bereavement Services,A0646,Grimsby Crematorium,A40920,Purchase of Equipment,30135489,04/07/2023,202305,"1,201.40",128411,Bridge Insurance Brokers Ltd
Environment,Revenue Budgets,Environment,Garage & Fleet Strategy,A0665,Garage - Lab Holding,A30010,Vehicles Repairs,30135904,07/07/2023,202305,585,100604,Harris & Garrod Ltd
Environment,Revenue Budgets,Environment,Grounds & Bereavement Services,A0661,Grounds Maint And Parks,A40095,Equipment Maintenance and Repair,30136129,12/07/2023,202305,412.25,100752,F G Adamson & Son
Environment,Revenue Budgets,Environment,Energy Project,A1664,Energy Project,A44065,Consultancy Services,30141329,14/07/2023,202305,"17,845.50",1007141,Vital Energi Utilities Limited
Environment,Revenue Budgets,Environment,Energy Project,A1664,Energy Project,A44065,Consultancy Services,30141378,14/07/2023,202305,"14,932.45",1007141,Vital Energi Utilities Limited
Environment,Revenue Budgets,Environment,Grounds & Bereavement Services,A0681,Boating Lake Area,A24005,Water Services,30136903,17/07/2023,202305,684,101076,Environment Agency
Environment,Revenue Budgets,Environment,Grounds & Bereavement Services,A0661,Grounds Maint And Parks,A24005,Water Services,30136903,17/07/2023,202305,684,101076,Environment Agency
Environment,Revenue Budgets,Environment,Grounds & Bereavement Services,A0680,Foreshore,A40920,Purchase of Equipment,30138061,17/07/2023,202305,484.8,130591,Hydra International Ltd
Environment,Revenue Budgets,Environment,Garage & Fleet Strategy,A0665,Garage - Lab Holding,A30010,Vehicles Repairs,30137844,20/07/2023,202305,320,134742,M J Windscreens Ltd
Environment,Revenue Budgets,Environment,Regulatory Services,A0653,Commercial Regulatory Team,A52005,Payments to Other Local Authorities,30137112,21/07/2023,202305,"19,770.00",100377,East Riding Of Yorkshire Council
Environment,Capital Spend,Environment,Scartho Cem Lodge/Waiting Rooms,Y1827,Scartho Cem Lodge/Waiting Rm,C01009,"New Construction, conversion & renovation",30135768,24/07/2023,202305,"7,000.00",133267,Equans Services Ltd
Environment,Revenue Budgets,Environment,Regulatory Services,A1721,Environmental Enforcement,A40920,Purchase of Equipment,30136356,24/07/2023,202305,"4,830.00",148751,Wireless Cctv Ltd
Environment,Capital Spend,Environment,Depot Rationalisation,Y1812,Depot Rationalisation,C01005,Purchase of Land & Buildings,30136405,24/07/2023,202305,"30,000.00",133267,Equans Services Ltd
Environment,Revenue Budgets,Environment,Grounds & Bereavement Services,A0661,Grounds Maint And Parks,A56000,Other Establishments,30137412,24/07/2023,202305,865,133267,Equans Services Ltd
Environment,Revenue Budgets,Environment,Grounds & Bereavement Services,A0661,Grounds Maint And Parks,A56000,Other Establishments,30137418,24/07/2023,202305,"2,145.00",133267,Equans Services Ltd
Environment,Revenue Budgets,Environment,Grounds & Bereavement Services,A0661,Grounds Maint And Parks,A20005,"Property Repairs, Maintenance & Alterations",30137664,24/07/2023,202305,450,133267,Equans Services Ltd
Environment,Revenue Budgets,Environment,Grounds & Bereavement Services,A0661,Grounds Maint And Parks,A20005,"Property Repairs, Maintenance & Alterations",30137676,24/07/2023,202305,340,133267,Equans Services Ltd
Environment,Revenue Budgets,Environment,Grounds & Bereavement Services,A0661,Grounds Maint And Parks,A20005,"Property Repairs, Maintenance & Alterations",30137677,24/07/2023,202305,550,133267,Equans Services Ltd
Environment,Revenue Budgets,Environment,Grounds & Bereavement Services,A0661,Grounds Maint And Parks,A20005,"Property Repairs, Maintenance & Alterations",30137679,24/07/2023,202305,"3,305.00",133267,Equans Services Ltd
Environment,Revenue Budgets,Environment,Grounds & Bereavement Services,A0661,Grounds Maint And Parks,A20005,"Property Repairs, Maintenance & Alterations",30137745,24/07/2023,202305,"1,730.00",133267,Equans Services Ltd
Environment,Revenue Budgets,Environment,Grounds & Bereavement Services,A0680,Foreshore,A40920,Purchase of Equipment,30137749,24/07/2023,202305,"1,410.00",133267,Equans Services Ltd
Environment,Revenue Budgets,Environment,Garage & Fleet Strategy,A0665,Garage - Lab Holding,A30010,Vehicles Repairs,30139023,24/07/2023,202305,700,148165,At Auto
Environment,Revenue Budgets,Environment,Regulatory Services,A0653,Commercial Regulatory Team,A49105,Other Supplies & Services,30133982,25/07/2023,202305,925,131671,Fera Science Ltd
Environment,Revenue Budgets,Environment,Regulatory Services,A0653,Commercial Regulatory Team,A49105,Other Supplies & Services,30133984,25/07/2023,202305,925,131671,Fera Science Ltd
Environment,Revenue Budgets,Environment,Grounds & Bereavement Services,A0661,Grounds Maint And Parks,A40095,Equipment Maintenance and Repair,30136135,25/07/2023,202305,459,100752,F G Adamson & Son
Environment,Revenue Budgets,Environment,Garage & Fleet Strategy,A0665,Garage - Lab Holding,A30010,Vehicles Repairs,30136220,25/07/2023,202305,345,134742,M J Windscreens Ltd
Environment,Revenue Budgets,Environment,Garage & Fleet Strategy,A0665,Garage - Lab Holding,A30010,Vehicles Repairs,30135883,26/07/2023,202305,440.72,101828,B A Bush & Son Ltd
Environment,Revenue Budgets,Environment,Regulatory Services,A1574,Environmental Protection,A56000,Other Establishments,30138212,26/07/2023,202305,298.08,139898,Als Environmental Limited
Environment,Revenue Budgets,Environment,Waste Services,A0683,Refuse - Domestic / Recycling,A40070,Stock Materials,30134893,27/07/2023,202305,365,101138,Ellis Hardware Limited
Environment,Revenue Budgets,Environment,Garage & Fleet Strategy,A0665,Garage - Lab Holding,A30010,Vehicles Repairs,30135874,28/07/2023,202305,455.37,100886,Fleet Factors Ltd
Environment,Revenue Budgets,Environment,Garage & Fleet Strategy,A0665,Garage - Lab Holding,A30010,Vehicles Repairs,30135876,28/07/2023,202305,544.51,100886,Fleet Factors Ltd
Environment,Revenue Budgets,Environment,Regulatory Services,A0653,Commercial Regulatory Team,A11005,Agency Supply Staff,30136108,28/07/2023,202305,488.1,143357,The Best Connection
Environment,Revenue Budgets,Environment,Regulatory Services,A1574,Environmental Protection,A56000,Other Establishments,30136374,28/07/2023,202305,400,143071,Fresh Pharma
Environment,Revenue Budgets,Environment,Grounds & Bereavement Services,A0646,Grimsby Crematorium,A40920,Purchase of Equipment,30135941,30/07/2023,202305,"5,040.00",147281,Vivedia Ltd
Environment,Revenue Budgets,Environment,Garage & Fleet Strategy,A0665,Garage - Lab Holding,A42005,Clothing & Uniforms & Laundry,30138022,30/07/2023,202305,399.12,100810,Johnsons Apparelmaster
Environment,Revenue Budgets,Environment,Grounds & Bereavement Services,A0646,Grimsby Crematorium,A40920,Purchase of Equipment,30135938,31/07/2023,202305,"2,299.00",147281,Vivedia Ltd
Environment,Revenue Budgets,Environment,Grounds & Bereavement Services,A0661,Grounds Maint And Parks,A30017,Other Vehicle Costs,30136081,31/07/2023,202305,"1,096.51",108278,Allstar Business Solutions Ltd
Environment,Revenue Budgets,Environment,Regulatory Services,A0653,Commercial Regulatory Team,A49105,Other Supplies & Services,30136357,31/07/2023,202305,491.18,139602,Eurofins Water Hygiene Testing Uk Ltd
Environment,Revenue Budgets,Environment,Waste Services,A0683,Refuse - Domestic / Recycling,A56000,Other Establishments,30136480,31/07/2023,202305,286.65,101147,Systematic Print Management Ltd
Environment,Capital Spend,Environment,Depot Rationalisation,Y1812,Depot Rationalisation,C01005,Purchase of Land & Buildings,30136517,31/07/2023,202305,369.25,149901,Cleveland Containers Ltd
Environment,Capital Spend,Environment,Depot Rationalisation,Y1812,Depot Rationalisation,C01005,Purchase of Land & Buildings,30136519,31/07/2023,202305,369.25,149901,Cleveland Containers Ltd
Environment,Revenue Budgets,Environment,Grounds & Bereavement Services,A0646,Grimsby Crematorium,A57115,Payments to Private Contractors,30136621,31/07/2023,202305,470.69,101433,Ellgia Limited
Environment,Revenue Budgets,Environment,Grounds & Bereavement Services,A0661,Grounds Maint And Parks,A56000,Other Establishments,30137058,31/07/2023,202305,"1,425.12",101116,Paprec Energies Grimsby Operations Ltd
Environment,Revenue Budgets,Environment,Street Cleansing,A0673,Street Cleansing,A56000,Other Establishments,30137109,31/07/2023,202305,"1,545.85",102009,Srcl Ltd
Environment,Revenue Budgets,Environment,Waste Services,A0683,Refuse - Domestic / Recycling,A56000,Other Establishments,30137289,31/07/2023,202305,254.55,101147,Systematic Print Management Ltd
Environment,Revenue Budgets,Environment,Regulatory Services,A1750,Fsa Eu Exit Planning Fund,A27010,Contract Cleaning,30138822,31/07/2023,202305,260.92,149644,Kingdom Cleaning Limited
Environment,Revenue Budgets,Environment,Garage & Fleet Strategy,A0665,Garage - Lab Holding,A30010,Vehicles Repairs,30140266,31/07/2023,202305,285.84,129000,Energas Limited
Environment,Revenue Budgets,Environment,Energy Project,A1664,Energy Project,A44065,Consultancy Services,30136474,01/08/2023,202305,"3,943.50",1007124,Burges Salmon LLP
Environment,Revenue Budgets,Environment,Grounds & Bereavement Services,A1839,Reflections,A41905,Catering,30137054,01/08/2023,202305,255.7,121021,Holdsworth Ltd
Environment,Revenue Budgets,Environment,Grounds & Bereavement Services,A0646,Grimsby Crematorium,A27505,Grounds Maintenance,30136131,02/08/2023,202305,270,102305,BSB Services
Environment,Revenue Budgets,Environment,Grounds & Bereavement Services,A0646,Grimsby Crematorium,A40920,Purchase of Equipment,30136138,02/08/2023,202305,265,102305,BSB Services
Environment,Revenue Budgets,Environment,Grounds & Bereavement Services,A1839,Reflections,A41905,Catering,30137055,02/08/2023,202305,284.14,121021,Holdsworth Ltd
Environment,Revenue Budgets,Environment,Grounds & Bereavement Services,A0661,Grounds Maint And Parks,A40920,Purchase of Equipment,30136436,03/08/2023,202305,"3,617.75",100758,James Coles & Sons Ltd
Environment,Revenue Budgets,Environment,Countryside Management,A0647,Parks & Open Spaces,A27505,Grounds Maintenance,30136495,03/08/2023,202305,480,101926,E K M Ltd
